{"text_format":"1","workbook":"xlsx","n_sheets":17,"sheets":["Taches AF","Résumé","Personnel Detail","Bilan","Compte Budget AEP","Compte Subv ASC","Grand Livre","Banques","OD","Ventes","Achats","Caisse","Plan","Echéancier","NOMS","CALCUL divers","Programme"],"not_rendered":{"charts":0,"images":1,"macros":1,"external_links":0,"defined_names":4,"comments":1,"pivot_tables":3},"unopened":[],"bounds":{"document_bytes":16777216,"sheet_cells":100000,"rows_first":2000,"rows_last":500,"rows_between":2000,"halvings":0,"cell_chars":16384,"cell_head_chars":4096},"cells_cut":0,"cells_raw":0,"read":"whole","date_system":"1900"}

{"sheet":"Taches AF","index":0,"n_rows":0,"n_cols":0,"rows_kept":0,"cut":false,"hidden":true,"merged":[]}

{"sheet":"Résumé","index":1,"n_rows":29,"n_cols":3,"rows_kept":29,"cut":false,"hidden":false,"merged":[]}
["Mise à jour le :","2023-12-29"]
[]
[]
["Compte Subvention ASC à date :",{"$f":"GETPIVOTDATA(\"Diff\",Bilan!$B$3,\"C\",5,\"Compte\",512100)","v":25826.660000000011}]
[]
["Compte Fonctionnement à date :",{"$f":"GETPIVOTDATA(\"Diff\",Bilan!$B$3,\"C\",5,\"Compte\",512101)","v":19292.66}]
[]
["Virement ASC 2023 NESTLE envr",null,18453]
[]
[]
[]
[]
["Budget par personne 2023",2000]
["Budget Prev 2023",{"$f":"GETPIVOTDATA(\"S Crédit\",Bilan!$B$3,\"C\",1)","v":53500}]
["Utilisé 2023 à date",{"$f":"GETPIVOTDATA(\"S Débit\",Bilan!$B$3,\"C\",1)","v":53454.039999999986}]
["Reste à payer 2023 / à reporter",{"$f":"B14-B15","v":45.960000000013679}]
[]
["Activités CSE prévu 2023 ASC :",4000]
[]
["Solde Prev fin 2023 ASC :",{"$f":"B4+B8-B16-B18","v":21780.699999999997}]
[]
[]
["Prev Nombre de salarié 2024",28]
["Prev Budget 2024",{"$f":"B25*B23","v":42000}]
["Prev Budget par personne 2024",1500]
["Prev virement ASC 2024",31000]
["Activités CSE prévu 2024 ASC :",4000]
[]
["Prev Reste fin 2024",{"$f":"B20+B26-B24-B27","v":6780.6999999999971}]

{"sheet":"Personnel Detail","index":2,"n_rows":32,"n_cols":6,"rows_kept":32,"cut":false,"hidden":false,"merged":[]}
[]
[null,null,"NOMS","Budget","Dépenses","Reste AF"]
[null,null,"Amina ISCAYE",2000,2000,0]
[null,null,"ANAIS LERUS",2000,2000,0]
[null,null,"Carla MARMOLEJO",1000,1000,0]
[null,null,"Christelle CHOUAN",2000,2000,0]
[null,null,"Eddy LORBEL",2000,2000,0]
[null,null,"EDWIN SANDOT",2000,2000,0]
[null,null,"Emilie GUILLAUME",500,500,0]
[null,null,"Eric CHARTON",2000,1978.75,21.25]
[null,null,"Geraldine PINOS",2000,1986,14]
[null,null,"Grenelle Triveillot",2000,1996.25,3.75]
[null,null,"Guillaume SOULAS",2000,2000,0]
[null,null,"Guy RAMALINGON",1500,1500,0]
[null,null,"Johanne LONGRAIS",2000,2000,0]
[null,null,"Julien LALAIT",1500,1500,0]
[null,null,"Lydia THALMENSI",2000,2000,0]
[null,null,"Lydie RESON",2000,2000,0]
[null,null,"MAILINE FIDOL",1000,1000.0000000000001,0]
[null,null,"Ma-Ivah BENOIT",2000,2000,0]
[null,null,"Max NOSIBOR",2000,2000,0]
[null,null,"Maxime ANNEQUIN",2000,2000,0]
[null,null,"Mireille ROCHE",2000,2000,0]
[null,null,"Muriel DE GENTIL",2000,2000,0]
[null,null,"Mylene MARTIN",2000,2000,0]
[null,null,"Olivia LAPORAL",2000,2000,0]
[null,null,"Oriane Mayoute",2000,2000,0]
[null,null,"RAISSA LUSINE",2000,1993.04,6.9600000000000364]
[null,null,"Stephanie LUBIN",2000,2000,0]
[null,null,"Xavier CORBIN",2000,2000,0]
[null,null,"Yohan LASSALLE",2000,2000,0]
[null,null,"Total général",53500,53454.04,45.960000000006403]

{"sheet":"Bilan","index":3,"n_rows":12,"n_cols":14,"rows_kept":12,"cut":false,"hidden":false,"merged":[]}
[null,null,null,null,null,null,null,null,null,null,"Noms","Eric CHARTON"]
[]
[null,"Étiquettes de lignes","S Débit","S Crédit","Diff",null,null,null,null,null,"Étiquettes de lignes","S Débit","S Crédit","Diff"]
[null,1,53454.039999999986,53500,-45.960000000013679,null,null,null,null,null,1,375,2000,-1625]
[null,4,53454.039999999986,53454.039999999986,0,null,null,null,null,null,4,375,375,0]
[null,5,100124.36,55005.039999999986,45119.320000000014,null,null,null,null,null,"Total général",750,2375,-1625]
[null,512100,79280.7,53454.039999999986,25826.660000000011]
[null,512101,20843.66,1551,19292.66]
[null,6,110121.04000000004,null,110121.04000000004]
[null,7,null,152027.40000000002,-152027.40000000002]
[null,"(vide)",null,null,0]
[null,"Total général",317153.48,313986.48,3167]

{"sheet":"Compte Budget AEP","index":4,"n_rows":128,"n_cols":10,"rows_kept":128,"cut":false,"hidden":false,"merged":[]}
["Date opérat.","F","C","Compte","Rèf","Libéllé","Débit","Crédit","Solde","*"]
["2023-01-01",null,null,null,null,"Relevé au 01/01/2023",null,15507.66,{"$f":"+H2","v":15507.66},"*"]
["2023-06-02",null,null,null,null,"Virement transfert 10% AEP -> ASC",1551,null,{"$f":"I2-G3+H3","v":13956.66},"*"]
["2023-12-05",null,null,null,null,"Subvention de fonctionnement reçue l’employeur",null,5336,19292.66,"*"]
[null,null,null,null,null,null,null,null,19292.66]
[null,null,null,null,null,null,null,null,19292.66]
[null,null,null,null,null,null,null,null,19292.66]
[null,null,null,null,null,null,null,null,19292.66]
[null,null,null,null,null,null,null,null,19292.66]
[null,null,null,null,null,null,null,null,19292.66]
[null,null,null,null,null,null,null,null,19292.66]
[null,null,null,null,null,null,null,null,19292.66]
[null,null,null,null,null,null,null,null,19292.66]
[null,null,null,null,null,null,null,null,19292.66]
[null,null,null,null,null,null,null,null,19292.66]
[null,null,null,null,null,null,null,null,19292.66]
[null,null,null,null,null,null,null,null,19292.66]
[null,null,null,null,null,null,null,null,19292.66]
[null,null,null,null,null,null,null,null,19292.66]
[null,null,null,null,null,null,null,null,19292.66]
[null,null,null,null,null,null,null,null,19292.66]
[null,null,null,null,null,null,null,null,19292.66]
[null,null,null,null,null,null,null,null,19292.66]
[null,null,null,null,null,null,null,null,19292.66]
[null,null,null,null,null,null,null,null,19292.66]
[null,null,null,null,null,null,null,null,19292.66]
[null,null,null,null,null,null,null,null,19292.66]
[null,null,null,null,null,null,null,null,19292.66]
[null,null,null,null,null,null,null,null,19292.66]
[null,null,null,null,null,null,null,null,19292.66]
[null,null,null,null,null,null,null,null,19292.66]
[null,null,null,null,null,null,null,null,19292.66]
[null,null,null,null,null,null,null,null,19292.66]
[null,null,null,null,null,null,null,null,19292.66]
[null,null,null,null,null,null,null,null,{"$f":"I34-G35+H35","v":19292.66}]
[null,null,null,null,null,null,null,null,19292.66]
[null,null,null,null,null,null,null,null,19292.66]
[null,null,null,null,null,null,null,null,19292.66]
[null,null,null,null,null,null,null,null,19292.66]
[null,null,null,null,null,null,null,null,19292.66]
[null,null,null,null,null,null,null,null,19292.66]
[null,null,null,null,null,null,null,null,19292.66]
[null,null,null,null,null,null,null,null,19292.66]
[null,null,null,null,null,null,null,null,19292.66]
[null,null,null,null,null,null,null,null,19292.66]
[null,null,null,null,null,null,null,null,19292.66]
[null,null,null,null,null,null,null,null,19292.66]
[null,null,null,null,null,null,null,null,19292.66]
[null,null,null,null,null,null,null,null,19292.66]
[null,null,null,null,null,null,null,null,19292.66]
[null,null,null,null,null,null,null,null,19292.66]
[null,null,null,null,null,null,null,null,19292.66]
[null,null,null,null,null,null,null,null,19292.66]
[null,null,null,null,null,null,null,null,19292.66]
[null,null,null,null,null,null,null,null,19292.66]
[null,null,null,null,null,null,null,null,19292.66]
[null,null,null,null,null,null,null,null,19292.66]
[null,null,null,null,null,null,null,null,19292.66]
[null,null,null,null,null,null,null,null,19292.66]
[null,null,null,null,null,null,null,null,19292.66]
[null,null,null,null,null,null,null,null,19292.66]
[null,null,null,null,null,null,null,null,19292.66]
[null,null,null,null,null,null,null,null,19292.66]
[null,null,null,null,null,null,null,null,19292.66]
[null,null,null,null,null,null,null,null,19292.66]
[null,null,null,null,null,null,null,null,19292.66]
[null,null,null,null,null,null,null,null,{"$f":"I66-G67+H67","v":19292.66}]
[null,null,null,null,null,null,null,null,19292.66]
[null,null,null,null,null,null,null,null,19292.66]
[null,null,null,null,null,null,null,null,19292.66]
[null,null,null,null,null,null,null,null,19292.66]
[null,null,null,null,null,null,null,null,19292.66]
[null,null,null,null,null,null,null,null,19292.66]
[null,null,null,null,null,null,null,null,19292.66]
[null,null,null,null,null,null,null,null,19292.66]
[null,null,null,null,null,null,null,null,19292.66]
[null,null,null,null,null,null,null,null,19292.66]
[null,null,null,null,null,null,null,null,19292.66]
[null,null,null,null,null,null,null,null,19292.66]
[null,null,null,null,null,null,null,null,19292.66]
[null,null,null,null,null,null,null,null,19292.66]
[null,null,null,null,null,null,null,null,19292.66]
[null,null,null,null,null,null,null,null,19292.66]
[null,null,null,null,null,null,null,null,19292.66]
[null,null,null,null,null,null,null,null,19292.66]
[null,null,null,null,null,null,null,null,19292.66]
[null,null,null,null,null,null,null,null,19292.66]
[null,null,null,null,null,null,null,null,19292.66]
[null,null,null,null,null,null,null,null,19292.66]
[null,null,null,null,null,null,null,null,19292.66]
[null,null,null,null,null,null,null,null,19292.66]
[null,null,null,null,null,null,null,null,19292.66]
[null,null,null,null,null,null,null,null,19292.66]
[null,null,null,null,null,null,null,null,19292.66]
[null,null,null,null,null,null,null,null,19292.66]
[null,null,null,null,null,null,null,null,19292.66]
[null,null,null,null,null,null,null,null,19292.66]
[null,null,null,null,null,null,null,null,19292.66]
[null,null,null,null,null,null,null,null,{"$f":"I98-G99+H99","v":19292.66}]
[null,null,null,null,null,null,null,null,19292.66]
[null,null,null,null,null,null,null,null,19292.66]
[null,null,null,null,null,null,null,null,19292.66]
[null,null,null,null,null,null,null,null,19292.66]
[null,null,null,null,null,null,null,null,19292.66]
[null,null,null,null,null,null,null,null,19292.66]
[null,null,null,null,null,null,null,null,19292.66]
[null,null,null,null,null,null,null,null,19292.66]
[null,null,null,null,null,null,null,null,19292.66]
[null,null,null,null,null,null,null,null,19292.66]
[null,null,null,null,null,null,null,null,19292.66]
[null,null,null,null,null,null,null,null,19292.66]
[null,null,null,null,null,null,null,null,19292.66]
[null,null,null,null,null,null,null,null,19292.66]
[null,null,null,null,null,null,null,null,19292.66]
[null,null,null,null,null,null,null,null,19292.66]
[null,null,null,null,null,null,null,null,19292.66]
[null,null,null,null,null,null,null,null,19292.66]
[null,null,null,null,null,null,null,null,19292.66]
[null,null,null,null,null,null,null,null,19292.66]
[null,null,null,null,null,null,null,null,19292.66]
[null,null,null,null,null,null,null,null,19292.66]
[null,null,null,null,null,null,null,null,19292.66]
[null,null,null,null,null,null,null,null,19292.66]
[null,null,null,null,null,null,null,null,19292.66]
[null,null,null,null,null,null,null,null,19292.66]
[null,null,null,null,null,null,null,null,19292.66]
[null,null,null,null,null,null,null,null,19292.66]
[null,null,null,null,null,null,null,null,19292.66]

{"sheet":"Compte Subv ASC","index":5,"n_rows":126,"n_cols":12,"rows_kept":126,"cut":false,"hidden":false,"merged":[]}
["Date opérat.","F","C","Compte","Rèf","Libéllé","Débit","Crédit","Solde",null,"Justif","Justif Numérisé"]
["2023-01-01",null,null,null,null,"Relevé au 01/01/2023",null,59276.7,{"$f":"+H2","v":59276.7},"*"]
["2023-02-24",null,null,null,null,"VIREMENT EMIS           \nWEB CHATRON ERIC ASC 2023 ASC Sport et Loisirs \nASC 2023                           ",375,null,{"$f":"I2-G3+H3","v":58901.7},"*"]
["2023-03-03",null,null,null,null,"VIREMENT EMIS           \nWEB ANNEQUIN MAXIME CSE Antilles ASC VOYAGES 2023 \nCSE Antilles Guyane                ",1870.62,null,57031.079999999994,"*"]
["2023-03-03",null,null,null,null,"VIREMENT EMIS           \nWEB Oriane MAYOUTE CSE Antilles ASC VOYAGES 2023 \nCSE Antilles Guyane                ",993.82,null,56037.259999999995,"*"]
["2023-03-03",null,null,null,null,"VIREMENT EMIS           \nWEB GUILLAUME SOULAS CSE Antille ASC VOYAGES 2023 \nCSE Antilles Guyane                ",1060.6600000000001,null,54976.599999999991,"*"]
["2023-03-06",null,null,null,null,"VIREMENT EMIS           \nWEB OLIVIA LAPORAL CSE Antilles ASC Sport et Loisirs 2023 \nCSE Antilles Guyane                ",298.95,null,54677.649999999994,"*"]
["2023-03-06",null,null,null,null,"VIREMENT EMIS           \nWEB Oriane MAYOUTE CSE Antilles ASC Sport et Loisirs 2023 \nCSE Antilles Guyane                ",389.4,null,54288.249999999993,"*"]
["2023-03-06",null,null,null,null,"VIREMENT EMIS           \nWEB Muriel DE GENTIL CSE Antille ASC VOYAGES 2023 \nCSE Antilles Guyane                ",2000,null,52288.249999999993,"*"]
["2023-03-09",null,null,null,null,"VIREMENT EMIS           \nWEB OLIVIA LAPORAL CSE Antilles ASC Voyage 2023 \nCSE Antilles Guyane                ",1035.5,null,51252.749999999993,"*"]
["2023-03-10",null,null,null,null,"VIREMENT EMIS           \nWEB Yohan LASSALLE CSE Antilles ASC Voyage 2023 \nCSE Antilles Guyane                ",2000,null,49252.749999999993,"*"]
["2023-03-13",null,null,null,null," Virement Web Edwin Sandot Cse Antilles Gu\nCse Antilles GuyaneAsc Voyages 2023",902.35,null,48350.399999999994,"*"]
["2023-03-13",null,null,null,null,"Virement Web Edwin Sandot Cse Antilles Gu\nCse Antilles GuyaneAsc Voyages 2023",40,null,48310.399999999994,"*"]
["2023-03-21",null,null,null,null," Virement Web Edwin Sandot Cse Antilles Gu\nCse Antilles GuyaneAsc Voyages 2023",540,null,47770.399999999994,"*"]
["2023-03-24",null,null,null,null,"Virement Web Ma-ivah Benoit Cse Antilles\nCse Antilles GuyaneAsc Voyages 2023",1510.75,null,46259.649999999994,"*"]
["2023-03-27",null,null,null,null,"Virement Web Oriane Mayoute Cse Antilles\nCse Antilles GuyaneAsc Voyages 2023",472.34,null,45787.31,"*"]
["2023-04-28",null,null,null,null," Virement Web Pinos Geraldine Cse Antilles\nCse Antilles Guyane\nAsc Voyages 2023",748.76,null,45038.549999999996,"*"]
["2023-04-28",null,null,null,null,"Virement Web Pinos Geraldine Cse Antilles\nCse Antilles GuyaneAsc 2022 Voyage",1237.24,null,43801.31,"*"]
["2023-05-02",null,null,null,null,"VIREMENT EMIS           \nWEB GUILLAUME SOULAS CSE Antille ASC 2023 Voyage \nCSE Antilles Guyane",939.34,null,42861.97,"*"]
["2023-05-12",null,null,null,null,"VIREMENT EMIS           \nWEB Oriane MAYOUTE ASC 2023 Voya ASC 2023 Voyage                    CSE Antilles Guyane ",129,null,42732.97,"*"]
["2023-05-12",null,null,null,null,"VIREMENT EMIS           \nWEB Oriane MAYOUTE CSE Antilles ASC 2023 Voyage \nCSE Antilles Guyane                ",15.44,null,42717.53,"*"]
["2023-05-15",null,null,null,null,"VIREMENT EMIS           \nWEB JULIEN LALAIT CSE Antilles G ASC 2023 Voyage \nCSE Antilles Guyane                ",1000,null,41717.53,"*"]
["2023-06-02",null,null,null,null,"Virement transfert 10% AEP -> ASC Report Budget Fonct en ASC",null,1551,43268.53,"*"]
["2023-06-05",null,null,null,null,"VIREMENT EMIS\nWEB MIREILLE ROCHE CSE ANTILLES\nASC 2023 Voyage\nCSE Antilles Guyane          ",918,null,42350.53,"*"]
["2023-06-09",null,null,null,null,"VIREMENT EMIS           \nWEB Christelle CHOUAN CSE Antill ASC 2023 Garde Enfant \nCSE Antilles Guyane                ",525,null,41825.53,"*"]
["2023-06-12",null,null,null,null,"VIREMENT EMIS           \nWEB ANNEQUIN MAXIME CSE Antilles ASC Sport et Loisirs 2023 \nCSE Antilles Guyane                ",129.38,null,41696.15,"*"]
["2023-06-12",null,null,null,null,"VIREMENT EMIS           \nWEB CHATRON ERIC CSE Antilles Gu ASC 2023 Sport et Loisirs \nCSE Antilles Guyane                ",370,null,41326.15,"*"]
["2023-07-04",null,null,null,null,"VIREMENT EMIS           \nWEB Carla MARMOLEJO CSE Antilles ASC 2023 Voyage \nCSE Antilles Guyane                ",380.2,null,40945.950000000004,"*"]
["2023-07-04",null,null,null,null,"VIREMENT EMIS           \nWEB Mylene MARTIN CSE Antilles G ASC 2023 Voyage \nCSE Antilles Guyane                ",2000,null,38945.950000000004,"*"]
["2023-07-04",null,null,null,null,"VIREMENT EMIS           \nWEB Carla MARMOLEJO CSE NESTLE A ASC 2023 voyage \nCSE NESTLE ANTILLES GUYANE         ",619.79999999999995,null,38326.15,"*"]
["2023-07-13",null,null,null,null,"Virement Web Stephanie Lubin Cse Antilles\nCse Antilles GuyaneAsc Voyages 2023",1470,null,36856.15,"*"]
["2023-08-08",null,null,null,null,"VIREMENT EMIS           \nWEB Eddy LORBEL CSE Antilles Guy ASC Voyages 2023 \nCSE Antilles Guyane                ",959.17,null,35896.980000000003,"*"]
["2023-08-16",null,null,null,null,"VIREMENT EMIS           \nWEB JULIEN LALAIT CSE Antilles G ASC 2023 Voyage \nCSE Antilles Guyane                ",500,null,35396.980000000003,"*"]
["2023-08-16",null,null,null,null,"VIREMENT EMIS           \nWEB SAINTON AMINA CSE Antilles G ASC 2023 Voyage \nCSE Antilles Guyane                ",2000,null,33396.980000000003,"*"]
["2023-08-16",null,null,null,null,"VIREMENT EMIS           \nWEB GUY RAMALINGON CSE Antilles ASC 2023 Voyage \nCSE Antilles Guyane                ",1500,null,31896.980000000003,"*"]
["2023-08-16",null,null,null,null,"VIREMENT EMIS           \nWEB CHATRON ERIC CSE Antilles Gu ASC 2023 Voyage \nCSE Antilles Guyane                ",568.75,null,31328.230000000003,"*"]
["2023-08-24",null,null,null,null,"VIREMENT EMIS\nWEB CHRISTELLE CHOUAN CSE ANTILL\n-628,00 €\nASC 2023 Voyage\nCSE Antilles Guyane",628,null,30700.230000000003,"*"]
["2023-08-24",null,null,null,null,"\nVIREMENT EMIS\nWEB MIREILLE ROCHE CSE ANTILLES\n-306,00 €\nASC 2023 Voyage\nCSE Antilles Guyane",306,null,30394.230000000003,"*"]
["2023-08-30",null,null,null,null,"VIREMENT EMIS\nWEB CHATRON ERIC CSE ANTILLES GU\n-665,00 €\nASC 2023 SPORT\nCSE Antilles Guyane",665,null,29729.230000000003,"*"]
["2023-09-08",null,null,null,null,"VIREMENT EMIS\nWEB RAISSA LUSINE CSE ANTILLES G\n-553,14 €\nASC 2023 Voyage\nCSE Antilles Guyane",553.14,null,29176.090000000004,"*"]
["2023-09-29",null,null,null,null,"VIREMENT EMIS\nWEB MAILINE FIDOL CSE ANTILLES G\nASC 2023 CULTURE",233.72,null,28942.370000000003,"*"]
["2023-09-29",null,null,null,null,"\nVIREMENT EMIs\nWEB STEPHANIE LUBIN CSE ANTILLES\nASC 2023 GARDE ENFANT\n",530,null,28412.370000000003,"*"]
["2023-10-03",null,null,null,null,"VIREMENT EMIS\nWEB ANAIS LERUS CSE NESTLE ANTIL\n-1 977,62 €\nASC 2023 voyage\nCSE NESTLE ANTILLES GUYANE",1977.62,null,26434.750000000004,"*"]
["2023-10-03",null,null,null,null,"VIREMENT EMIS           \nWEB Anais LERUS CSE ANTILLES GUY ASC CULTURE 2023 \nCSE ANTILLES GUYANE                ",22.38,null,26412.370000000003]
["2023-10-13",null,null,null,null,"VIREMENT EMIS           \nWEB MAILINE FIDOL CSE Antilles G ASC CULTURE 2023 \nCSE Antilles Guyane                ",76.88,null,26335.49,"*"]
["2023-10-13",null,null,null,null,"VIREMENT EMIS           \nWEB MAILINE FIDOL CSE Antilles G ASC 2023 CULTURE \nCSE Antilles Guyane                ",131.97,null,26203.52,"*"]
["2023-10-23",null,null,null,null,"VIREMENT EMIS           \nWEB MA-IVAH BENOIT CSE Antilles ASC 2023 Voyage \nCSE Antilles Guyane                ",489.25,null,25714.27,"*"]
["2023-11-06",null,null,null,null,"WEB EDWIN SANDOT CSE ANTILLES GU ASC 2023 Voyage\nCSE Antilles Guyane",517.65,null,25196.62,"*"]
["2023-11-06",null,null,null,null,"WEB LYDIA THALMENSI CSE ANTILLES ASC 2023 Voyage\nCSE Antilles Guyane",2000,null,23196.62,"*"]
["2023-11-06",null,null,null,null,"WEB MAILINE FIDOL CSE ANTILLES ASC 2023 Voyage\nCSE Antilles Guyane",342.82,null,22853.8,"*"]
["2023-11-20",null,null,null,null,"WEB OLIVIA LAPORAL CSE ANTILLES\nCULTURE 2023\nCSE Antilles Guyane",35.950000000000003,null,22817.85,"*"]
["2023-11-20",null,null,null,null,"WEB OLIVIA LAPORAL CSE ANTILLES\nASC 2023 Voyage CSE Antilles Guyane",629.6,null,22188.25,"*"]
["2023-11-23",null,null,null,null,"VIREMENT EMIS\nWEB JOHANNE LONGRAIS CSE ANTILLE\n-2 000,00 €\nASC 2023 Voyage\nCSE Antilles Guyane",2000,null,20188.25,"*"]
["2023-11-27",null,null,null,null,"VIREMENT EMIS\nWEB RAISSA LUSINE CSE ANTILLES G\n-88,00 €\nASC 2023 CULTURE\nCSE Antilles Guyane",88,null,20100.25,"*"]
["2023-12-01",null,null,null,null,"VIREMENT EMIS\nWEB XAVIER CORBIN CSE ANTILLES G\n-2 000,00 €\nASC 2023 Voyage\nCSE Antilles Guyane",2000,null,18100.25,"*"]
["2023-12-19",null,null,null,null,"VIREMENT RAISSA LUSINE ASC 2023 CULTURE",87.1,null,18013.150000000001,"*"]
["2023-12-07",null,null,null,null,"Contribution ASC reçue de l’employeur",null,18453,36466.15,"*"]
["2023-12-15",null,null,null,null,"VIREMENT MAILINE FIDOL ASC 2023 CULTURE",214.61,null,36251.54,"*"]
["2023-12-15",null,null,null,null,"VIREMENT GRENELLE TRIVEILLOT NOEL SALARIE",170,null,36081.54,"*"]
["2023-12-15",null,null,null,null,"VIREMENT GRENELLE TRIVEILLOT ASC 2023 Voyage",259.17,null,35822.370000000003,"*"]
["2023-12-15",null,null,null,null,"VIREMENT GRENELLE TRIVEILLOT ASC 2023 Sport et Loisirs",429,null,35393.370000000003,"*"]
["2023-12-19",null,null,null,null,"VIREMENT GRENELLE TRIVEILLOT ASC 2023 Voyage",203.13,null,35190.240000000005,"*"]
["2023-12-19",null,null,null,null,"VIREMENT RAISSA LUSINE ASC 2023 Voyage",946.8,null,34243.440000000002,"*"]
["2023-12-26",null,null,null,null,"VIREMENT MAX NOSIBOR ASC 2023 Voyage",2000,null,32243.440000000002,"*"]
["2023-12-26",null,null,null,null,"VIREMENT RESON LYDIE ASC 2023 Voyage",2000,null,30243.440000000002,"*"]
["2023-12-26",null,null,null,null,"\nVIREMENT EMIS LORBEL ASC 2023 Voyage",1040.83,null,29202.61,"*"]
["2023-12-26",null,null,null,null,"VIREMENT CHRISTELLE CHOUAN ASC 2023 Noel Emma Chouan",170,null,{"$f":"I66-G67+H67","v":29032.61},"*"]
["2023-12-26",null,null,null,null,"VIREMENT EMIS CHRISTELLE CHOUAN ASC 2023 Noel Yaelle Chouan",164.97,null,28867.64,"*"]
["2023-12-26",null,null,null,null,"VIREMENT EMIS CHRISTELLE CHOUAN ASC 2023 Noel SALARIE",170,null,28697.64,"*"]
["2023-12-26",null,null,null,null,"VIREMENT EMIS CHRISTELLE CHOUAN ASC 2023 VOYAGE",342.03,null,28355.61,"*"]
["2023-12-27",null,null,null,null,"VIREMENT EMIS GUILLAUME EMILIE ASC 2023 Voyage",500,null,27855.61,"*"]
["2023-12-28",null,null,null,null,"WEB GRENELLE TRIVEILLOT ASC 2023 Voyage",934.95,null,26920.66,"*"]
["2023-12-28",null,null,null,null,"WEB RAISSA LUSINE ASC 2023 Noel SALARIE",170,null,26750.66,"*"]
["2023-12-28",null,null,null,null,"WEB RAISSA LUSINE ASC 2023 Voyage",148,null,26602.66,"*"]
["2023-12-29",null,null,null,null,"\nVIREMENT EMIS MIREILLE ROCHE ASC 2023 Voyage",776,null,25826.66,"*"]
[null,null,null,null,null,null,null,null,25826.66]
[null,null,null,null,null,null,null,null,25826.66]
[null,null,null,null,null,null,null,null,25826.66]
[null,null,null,null,null,null,null,null,25826.66]
[null,null,null,null,null,null,null,null,25826.66]
[null,null,null,null,null,null,null,null,25826.66]
[null,null,null,null,null,null,null,null,25826.66]
[null,null,null,null,null,null,null,null,25826.66]
[null,null,null,null,null,null,null,null,25826.66]
[null,null,null,null,null,null,null,null,25826.66]
[null,null,null,null,null,null,null,null,25826.66]
[null,null,null,null,null,null,null,null,25826.66]
[null,null,null,null,null,null,null,null,25826.66]
[null,null,null,null,null,null,null,null,25826.66]
[null,null,null,null,null,null,null,null,25826.66]
[null,null,null,null,null,null,null,null,25826.66]
[null,null,null,null,null,null,null,null,25826.66]
[null,null,null,null,null,null,null,null,25826.66]
[null,null,null,null,null,null,null,null,25826.66]
[null,null,null,null,null,null,null,null,25826.66]
[null,null,null,null,null,null,null,null,25826.66]
[null,null,null,null,null,null,null,null,25826.66]
[null,null,null,null,null,null,null,null,25826.66]
[null,null,null,null,null,null,null,null,25826.66]
[null,null,null,null,null,null,null,null,25826.66]
[null,null,null,null,null,null,null,null,25826.66]
[null,null,null,null,null,null,null,null,25826.66]
[null,null,null,null,null,null,null,null,25826.66]
[null,null,null,null,null,null,null,null,25826.66]
[null,null,null,null,null,null,null,null,25826.66]
[null,null,null,null,null,null,null,null,25826.66]
[null,null,null,null,null,null,null,null,25826.66]
[null,null,null,null,null,null,null,null,25826.66]
[null,null,null,null,null,null,null,null,25826.66]
[null,null,null,null,null,null,null,null,25826.66]
[null,null,null,null,null,null,null,null,25826.66]
[null,null,null,null,null,null,null,null,25826.66]
[null,null,null,null,null,null,null,null,25826.66]
[null,null,null,null,null,null,null,null,25826.66]
[null,null,null,null,null,null,null,null,25826.66]
[null,null,null,null,null,null,null,null,25826.66]
[null,null,null,null,null,null,null,null,25826.66]
[null,null,null,null,null,null,null,null,25826.66]
[null,null,null,null,null,null,null,null,25826.66]
[null,null,null,null,null,null,null,null,25826.66]
[null,null,null,null,null,null,null,null,25826.66]
[null,null,null,null,null,null,null,null,25826.66]
[null,null,null,null,null,null,null,null,25826.66]
[null,null,null,null,null,null,null,null,25826.66]
[null,null,null,null,null,null,null,null,25826.66]
[null,null,null,null,null,null,null,null,25826.66]

{"sheet":"Grand Livre","index":6,"n_rows":753,"n_cols":11,"rows_kept":753,"cut":false,"hidden":false,"merged":[]}
["Date opérat.","F","C","Compte","Rèf","Libéllé","Débit","Crédit","Solde","Noms"]
["2023-01-01",null,5,512101,null,"Subvention de fonctionnement reçue l’employeur",15507.66,null,null,{"$f":"VLOOKUP(D2,NOMS!$A:$B,2,FALSE)","v":{"$error":"#N/A"}}]
["2023-01-01",null,7,756010,null,"Subvention de fonctionnement reçue l’employeur",null,15507.66,null,{"$f":"VLOOKUP(D3,NOMS!$A:$B,2,FALSE)","v":{"$error":"#N/A"}}]
["2023-01-01",null,5,512100,null,"Contribution ASC reçue de l’employeur",59276.7,null,null,{"$f":"VLOOKUP(D4,NOMS!$A:$B,2,FALSE)","v":{"$error":"#N/A"}}]
["2023-01-01",null,7,756020,null,"Contribution ASC reçue de l’employeur",null,59276.7,null,{"$f":"VLOOKUP(D5,NOMS!$A:$B,2,FALSE)","v":{"$error":"#N/A"}}]
["2023-01-01",null,6,681500,null,"Provision Budget ASC 2022",56667,null,null,{"$f":"VLOOKUP(D6,NOMS!$A:$B,2,FALSE)","v":{"$error":"#N/A"}}]
["2023-01-01",null,1,155001,"Budget ASC 2022","Provision Budget ASC 2022",null,2000,null,{"$f":"VLOOKUP(D7,NOMS!$A:$B,2,FALSE)","v":"Yohan LASSALLE"}]
["2023-01-01",null,1,155002,"Budget ASC 2022","Provision Budget ASC 2022",null,2000,null,{"$f":"VLOOKUP(D8,NOMS!$A:$B,2,FALSE)","v":"Eric CHARTON"}]
["2023-01-01",null,1,155003,"Budget ASC 2022","Provision Budget ASC 2022",null,2000,null,{"$f":"VLOOKUP(D9,NOMS!$A:$B,2,FALSE)","v":"Lydie RESON"}]
["2023-01-01",null,1,155004,"Budget ASC 2022","Provision Budget ASC 2022",null,2000,null,{"$f":"VLOOKUP(D10,NOMS!$A:$B,2,FALSE)","v":"Muriel DE GENTIL"}]
["2023-01-01",null,1,155005,"Budget ASC 2022","Provision Budget ASC 2022",null,2000,null,{"$f":"VLOOKUP(D11,NOMS!$A:$B,2,FALSE)","v":"Oriane Mayoute"}]
["2023-01-01",null,1,155006,"Budget ASC 2022","Provision Budget ASC 2022",null,2000,null,{"$f":"VLOOKUP(D12,NOMS!$A:$B,2,FALSE)","v":"Amina ISCAYE"}]
["2023-01-01",null,1,155007,"Budget ASC 2022","Provision Budget ASC 2022",null,2000,null,{"$f":"VLOOKUP(D13,NOMS!$A:$B,2,FALSE)","v":"Geraldine PINOS"}]
["2023-01-01",null,1,155008,"Budget ASC 2022","Provision Budget ASC 2022",null,2000,null,{"$f":"VLOOKUP(D14,NOMS!$A:$B,2,FALSE)","v":"Stephanie LUBIN"}]
["2023-01-01",null,1,155009,"Budget ASC 2022","Provision Budget ASC 2022",null,2000,null,{"$f":"VLOOKUP(D15,NOMS!$A:$B,2,FALSE)","v":"Eddy LORBEL"}]
["2023-01-01",null,1,155010,"Budget ASC 2022","Provision Budget ASC 2022",null,2000,null,{"$f":"VLOOKUP(D16,NOMS!$A:$B,2,FALSE)","v":"Olivia LAPORAL"}]
["2023-01-01",null,1,155011,"Budget ASC 2022","Provision Budget ASC 2022",null,2000,null,{"$f":"VLOOKUP(D17,NOMS!$A:$B,2,FALSE)","v":"Ma-Ivah BENOIT"}]
["2023-01-01",null,1,155012,"Budget ASC 2022","Provision Budget ASC 2022",null,2000,null,{"$f":"VLOOKUP(D18,NOMS!$A:$B,2,FALSE)","v":"Lydia THALMENSI"}]
["2023-01-01",null,1,155013,"Budget ASC 2022","Provision Budget ASC 2022",null,2000,null,{"$f":"VLOOKUP(D19,NOMS!$A:$B,2,FALSE)","v":"Christelle CHOUAN"}]
["2023-01-01",null,1,155015,"Budget ASC 2022","Provision Budget ASC 2022",null,2000,null,{"$f":"VLOOKUP(D20,NOMS!$A:$B,2,FALSE)","v":"Mireille ROCHE"}]
["2023-01-01",null,1,155016,"Budget ASC 2022","Provision Budget ASC 2022",null,1500,null,{"$f":"VLOOKUP(D21,NOMS!$A:$B,2,FALSE)","v":"Guy RAMALINGON"}]
["2023-01-01",null,1,155017,"Budget ASC 2022","Provision Budget ASC 2022",null,2000,null,{"$f":"VLOOKUP(D22,NOMS!$A:$B,2,FALSE)","v":"RAISSA LUSINE"}]
["2023-01-01",null,1,155018,"Budget ASC 2022","Provision Budget ASC 2022",null,2000,null,{"$f":"VLOOKUP(D23,NOMS!$A:$B,2,FALSE)","v":"Xavier CORBIN"}]
["2023-01-01",null,1,155019,"Budget ASC 2022","Provision Budget ASC 2022",null,2000,null,{"$f":"VLOOKUP(D24,NOMS!$A:$B,2,FALSE)","v":"Mylene MARTIN"}]
["2023-01-01",null,1,155020,"Budget ASC 2022","Provision Budget ASC 2022",null,2000,null,{"$f":"VLOOKUP(D25,NOMS!$A:$B,2,FALSE)","v":"Johanne LONGRAIS"}]
["2023-01-01",null,1,155021,"Budget ASC 2022","Provision Budget ASC 2022",null,2000,null,{"$f":"VLOOKUP(D26,NOMS!$A:$B,2,FALSE)","v":"Max NOSIBOR"}]
["2023-01-01",null,1,155022,"Budget ASC 2022","Provision Budget ASC 2022",null,2000,null,{"$f":"VLOOKUP(D27,NOMS!$A:$B,2,FALSE)","v":"Maxime ANNEQUIN"}]
["2023-01-01",null,1,155023,"Budget ASC 2022","Provision Budget ASC 2022",null,2000,null,{"$f":"VLOOKUP(D28,NOMS!$A:$B,2,FALSE)","v":"ANAIS LERUS"}]
["2023-01-01",null,1,155024,"Budget ASC 2022","Provision Budget ASC 2022",null,1000,null,{"$f":"VLOOKUP(D29,NOMS!$A:$B,2,FALSE)","v":"Carla MARMOLEJO"}]
["2023-01-01",null,1,155025,"Budget ASC 2022","Provision Budget ASC 2022",null,2000,null,{"$f":"VLOOKUP(D30,NOMS!$A:$B,2,FALSE)","v":"EDWIN SANDOT"}]
[null,null,null,null,null,null,null,null,null,{"$f":"VLOOKUP(D31,NOMS!$A:$B,2,FALSE)","v":{"$error":"#N/A"}}]
["2023-01-01",null,1,155027,"Budget ASC 2022","Provision Budget ASC 2022",null,2000,null,{"$f":"VLOOKUP(D32,NOMS!$A:$B,2,FALSE)","v":"Guillaume SOULAS"}]
["2023-01-01",null,1,155028,"Budget ASC 2022","Provision Budget ASC 2022 4 mois",null,1500,null,{"$f":"VLOOKUP(D33,NOMS!$A:$B,2,FALSE)","v":"Julien LALAIT"}]
["2023-01-01",null,1,155029,"Budget ASC 2022","Provision Budget ASC 2022",null,2000,null,{"$f":"VLOOKUP(D34,NOMS!$A:$B,2,FALSE)","v":"Grenelle Triveillot"}]
["2023-02-08",null,1,155002,"Sport et loisirs","Retour Provision Eric CHARTON",375,null,null,{"$f":"VLOOKUP(D35,NOMS!$A:$B,2,FALSE)","v":"Eric CHARTON"}]
[{"$f":"A35","v":"2023-02-08"},null,7,787500,null,"Retour Provision Eric CHARTON",null,{"$f":"G35","v":375},null,{"$f":"VLOOKUP(D36,NOMS!$A:$B,2,FALSE)","v":{"$error":"#N/A"}}]
[{"$f":"A35","v":"2023-02-08"},null,4,421002,"Sport et loisirs","ASC Eric CHARTON",{"$f":"G35","v":375},null,null,{"$f":"VLOOKUP(D37,NOMS!$A:$B,2,FALSE)","v":{"$error":"#N/A"}}]
[{"$f":"A35","v":"2023-02-08"},null,5,512100,null,"ASC Eric CHARTON",null,{"$f":"G35","v":375},null,{"$f":"VLOOKUP(D38,NOMS!$A:$B,2,FALSE)","v":{"$error":"#N/A"}}]
[{"$f":"A35","v":"2023-02-08"},null,6,647000,null,"ASC Eric CHARTON",{"$f":"G35","v":375},null,null,{"$f":"VLOOKUP(D39,NOMS!$A:$B,2,FALSE)","v":{"$error":"#N/A"}}]
[{"$f":"A35","v":"2023-02-08"},null,4,{"$f":"D37","v":421002},"Sport et loisirs","ASC Eric CHARTON",null,{"$f":"G35","v":375},null,{"$f":"VLOOKUP(D40,NOMS!$A:$B,2,FALSE)","v":{"$error":"#N/A"}}]
["2023-01-28",null,1,155022,"Voyage","Retour Provision ANNEQUIN MAXIME",1870.62,null,null,{"$f":"VLOOKUP(D41,NOMS!$A:$B,2,FALSE)","v":"Maxime ANNEQUIN"}]
["2023-01-28",null,7,787500,null,"Retour Provision ANNEQUIN MAXIME",null,1870.62,null,{"$f":"VLOOKUP(D42,NOMS!$A:$B,2,FALSE)","v":{"$error":"#N/A"}}]
["2023-01-28",null,4,421022,"Voyage","ASC ANNEQUIN MAXIME",1870.62,null,null,{"$f":"VLOOKUP(D43,NOMS!$A:$B,2,FALSE)","v":{"$error":"#N/A"}}]
["2023-01-28",null,5,512100,null,"ASC ANNEQUIN MAXIME",null,1870.62,null,{"$f":"VLOOKUP(D44,NOMS!$A:$B,2,FALSE)","v":{"$error":"#N/A"}}]
["2023-01-28",null,6,647000,null,"ASC ANNEQUIN MAXIME",1870.62,null,null,{"$f":"VLOOKUP(D45,NOMS!$A:$B,2,FALSE)","v":{"$error":"#N/A"}}]
["2023-01-28",null,4,421022,"Voyage","ASC ANNEQUIN MAXIME",null,1870.62,null,{"$f":"VLOOKUP(D46,NOMS!$A:$B,2,FALSE)","v":{"$error":"#N/A"}}]
["2023-03-03",null,1,155005,"Voyage","Retour Provision Oriane MAYOUTE",993.82,null,null,{"$f":"VLOOKUP(D47,NOMS!$A:$B,2,FALSE)","v":"Oriane Mayoute"}]
["2023-03-03",null,7,787500,null,"Retour Provision Oriane MAYOUTE",null,993.82,null,{"$f":"VLOOKUP(D48,NOMS!$A:$B,2,FALSE)","v":{"$error":"#N/A"}}]
["2023-03-03",null,4,421005,"Voyage","ASC Oriane MAYOUTE",993.82,null,null,{"$f":"VLOOKUP(D49,NOMS!$A:$B,2,FALSE)","v":{"$error":"#N/A"}}]
["2023-03-03",null,5,512100,null,"ASC Oriane MAYOUTE",null,993.82,null,{"$f":"VLOOKUP(D50,NOMS!$A:$B,2,FALSE)","v":{"$error":"#N/A"}}]
["2023-03-03",null,6,647000,null,"ASC Oriane MAYOUTE",993.82,null,null,{"$f":"VLOOKUP(D51,NOMS!$A:$B,2,FALSE)","v":{"$error":"#N/A"}}]
["2023-03-03",null,4,421005,"Voyage","ASC Oriane MAYOUTE",null,993.82,null,{"$f":"VLOOKUP(D52,NOMS!$A:$B,2,FALSE)","v":{"$error":"#N/A"}}]
["2023-03-29",null,1,155027,"Voyage","Retour Provision GUILLAUME SOULAS",1060.6600000000001,null,null,{"$f":"VLOOKUP(D53,NOMS!$A:$B,2,FALSE)","v":"Guillaume SOULAS"}]
["2023-03-29",null,7,787500,null,"Retour Provision GUILLAUME SOULAS",null,1060.6600000000001,null,{"$f":"VLOOKUP(D54,NOMS!$A:$B,2,FALSE)","v":{"$error":"#N/A"}}]
["2023-03-29",null,4,421027,"Voyage","ASC GUILLAUME SOULAS",1060.6600000000001,null,null,{"$f":"VLOOKUP(D55,NOMS!$A:$B,2,FALSE)","v":{"$error":"#N/A"}}]
["2023-03-29",null,5,512100,null,"ASC GUILLAUME SOULAS",null,1060.6600000000001,null,{"$f":"VLOOKUP(D56,NOMS!$A:$B,2,FALSE)","v":{"$error":"#N/A"}}]
["2023-03-29",null,6,647000,null,"ASC GUILLAUME SOULAS",1060.6600000000001,null,null,{"$f":"VLOOKUP(D57,NOMS!$A:$B,2,FALSE)","v":{"$error":"#N/A"}}]
["2023-03-29",null,4,421027,"Voyage","ASC GUILLAUME SOULAS",null,1060.6600000000001,null,{"$f":"VLOOKUP(D58,NOMS!$A:$B,2,FALSE)","v":{"$error":"#N/A"}}]
["2023-02-14",null,1,155010,"Sport et loisirs","Retour Provision Olivia LAPORAL",298.95,null,null,{"$f":"VLOOKUP(D59,NOMS!$A:$B,2,FALSE)","v":"Olivia LAPORAL"}]
["2023-02-14",null,7,787500,null,"Retour Provision Olivia LAPORAL",null,298.95,null,{"$f":"VLOOKUP(D60,NOMS!$A:$B,2,FALSE)","v":{"$error":"#N/A"}}]
["2023-02-14",null,4,421010,"Sport et loisirs","ASC Olivia LAPORAL",298.95,null,null,{"$f":"VLOOKUP(D61,NOMS!$A:$B,2,FALSE)","v":{"$error":"#N/A"}}]
["2023-02-14",null,5,512100,null,"ASC Olivia LAPORAL",null,298.95,null,{"$f":"VLOOKUP(D62,NOMS!$A:$B,2,FALSE)","v":{"$error":"#N/A"}}]
["2023-02-14",null,6,647000,null,"ASC Olivia LAPORAL",298.95,null,null,{"$f":"VLOOKUP(D63,NOMS!$A:$B,2,FALSE)","v":{"$error":"#N/A"}}]
["2023-02-14",null,4,421010,"Sport et loisirs","ASC Olivia LAPORAL",null,298.95,null,{"$f":"VLOOKUP(D64,NOMS!$A:$B,2,FALSE)","v":{"$error":"#N/A"}}]
["2023-02-13",null,1,155005,"Sport et loisirs","Retour Provision Oriane MAYOUTE",389.4,null,null,{"$f":"VLOOKUP(D65,NOMS!$A:$B,2,FALSE)","v":"Oriane Mayoute"}]
["2023-02-13",null,7,787500,null,"Retour Provision Oriane MAYOUTE",null,389.4,null,{"$f":"VLOOKUP(D66,NOMS!$A:$B,2,FALSE)","v":{"$error":"#N/A"}}]
["2023-02-13",null,4,421005,"Sport et loisirs","ASC Oriane MAYOUTE",389.4,null,null,{"$f":"VLOOKUP(D67,NOMS!$A:$B,2,FALSE)","v":{"$error":"#N/A"}}]
["2023-02-13",null,5,512100,null,"ASC Oriane MAYOUTE",null,389.4,null,{"$f":"VLOOKUP(D68,NOMS!$A:$B,2,FALSE)","v":{"$error":"#N/A"}}]
["2023-02-13",null,6,647000,null,"ASC Oriane MAYOUTE",389.4,null,null,{"$f":"VLOOKUP(D69,NOMS!$A:$B,2,FALSE)","v":{"$error":"#N/A"}}]
["2023-02-13",null,4,421005,"Sport et loisirs","ASC Oriane MAYOUTE",null,389.4,null,{"$f":"VLOOKUP(D70,NOMS!$A:$B,2,FALSE)","v":{"$error":"#N/A"}}]
["2023-03-02",null,1,155004,"Voyage","Retour Provision Muriel DE GENTIL",2000,null,null,{"$f":"VLOOKUP(D71,NOMS!$A:$B,2,FALSE)","v":"Muriel DE GENTIL"}]
["2023-03-02",null,7,787500,null,"Retour Provision Muriel DE GENTIL",null,2000,null,{"$f":"VLOOKUP(D72,NOMS!$A:$B,2,FALSE)","v":{"$error":"#N/A"}}]
["2023-03-02",null,4,421004,"Voyage","ASC Muriel DE GENTIL",2000,null,null,{"$f":"VLOOKUP(D73,NOMS!$A:$B,2,FALSE)","v":{"$error":"#N/A"}}]
["2023-03-02",null,5,512100,null,"ASC Muriel DE GENTIL",null,2000,null,{"$f":"VLOOKUP(D74,NOMS!$A:$B,2,FALSE)","v":{"$error":"#N/A"}}]
["2023-03-02",null,6,647000,null,"ASC Muriel DE GENTIL",2000,null,null,{"$f":"VLOOKUP(D75,NOMS!$A:$B,2,FALSE)","v":{"$error":"#N/A"}}]
["2023-03-02",null,4,421004,"Voyage","ASC Muriel DE GENTIL",null,2000,null,{"$f":"VLOOKUP(D76,NOMS!$A:$B,2,FALSE)","v":{"$error":"#N/A"}}]
["2023-03-08",null,1,155010,"Voyage","Retour Provision Olivia LAPORAL",1035.5,null,null,{"$f":"VLOOKUP(D77,NOMS!$A:$B,2,FALSE)","v":"Olivia LAPORAL"}]
["2023-03-08",null,7,787500,null,"Retour Provision Olivia LAPORAL",null,1035.5,null,{"$f":"VLOOKUP(D78,NOMS!$A:$B,2,FALSE)","v":{"$error":"#N/A"}}]
["2023-03-08",null,4,421010,"Voyage","ASC Olivia LAPORAL",1035.5,null,null,{"$f":"VLOOKUP(D79,NOMS!$A:$B,2,FALSE)","v":{"$error":"#N/A"}}]
["2023-03-08",null,5,512100,null,"ASC Olivia LAPORAL",null,1035.5,null,{"$f":"VLOOKUP(D80,NOMS!$A:$B,2,FALSE)","v":{"$error":"#N/A"}}]
["2023-03-08",null,6,647000,null,"ASC Olivia LAPORAL",1035.5,null,null,{"$f":"VLOOKUP(D81,NOMS!$A:$B,2,FALSE)","v":{"$error":"#N/A"}}]
["2023-03-08",null,4,421010,"Voyage","ASC Olivia LAPORAL",null,1035.5,null,{"$f":"VLOOKUP(D82,NOMS!$A:$B,2,FALSE)","v":{"$error":"#N/A"}}]
["2023-01-13",null,1,155001,"Voyage","Retour Provision Yohan LASSALLE",2000,null,null,{"$f":"VLOOKUP(D83,NOMS!$A:$B,2,FALSE)","v":"Yohan LASSALLE"}]
["2023-01-13",null,7,787500,null,"Retour Provision Yohan LASSALLE",null,2000,null,{"$f":"VLOOKUP(D84,NOMS!$A:$B,2,FALSE)","v":{"$error":"#N/A"}}]
["2023-01-13",null,4,421001,"Voyage","ASC Yohan LASSALLE",2000,null,null,{"$f":"VLOOKUP(D85,NOMS!$A:$B,2,FALSE)","v":{"$error":"#N/A"}}]
["2023-01-13",null,5,512100,null,"ASC Yohan LASSALLE",null,2000,null,{"$f":"VLOOKUP(D86,NOMS!$A:$B,2,FALSE)","v":{"$error":"#N/A"}}]
["2023-01-13",null,6,647000,null,"ASC Yohan LASSALLE",2000,null,null,{"$f":"VLOOKUP(D87,NOMS!$A:$B,2,FALSE)","v":{"$error":"#N/A"}}]
["2023-01-13",null,4,421001,"Voyage","ASC Yohan LASSALLE",null,2000,null,{"$f":"VLOOKUP(D88,NOMS!$A:$B,2,FALSE)","v":{"$error":"#N/A"}}]
["2023-03-13",null,1,155025,"Voyage","Retour Provision Edwin Sandot",902.35,null,null,{"$f":"VLOOKUP(D89,NOMS!$A:$B,2,FALSE)","v":"EDWIN SANDOT"}]
["2023-03-13",null,7,787500,null,"Retour Provision Edwin Sandot",null,902.35,null,{"$f":"VLOOKUP(D90,NOMS!$A:$B,2,FALSE)","v":{"$error":"#N/A"}}]
["2023-03-13",null,4,421025,"Voyage","ASC Edwin Sandot",902.35,null,null,{"$f":"VLOOKUP(D91,NOMS!$A:$B,2,FALSE)","v":{"$error":"#N/A"}}]
["2023-03-13",null,5,512100,null,"ASC Edwin Sandot",null,902.35,null,{"$f":"VLOOKUP(D92,NOMS!$A:$B,2,FALSE)","v":{"$error":"#N/A"}}]
["2023-03-13",null,6,647000,null,"ASC Edwin Sandot",902.35,null,null,{"$f":"VLOOKUP(D93,NOMS!$A:$B,2,FALSE)","v":{"$error":"#N/A"}}]
["2023-03-13",null,4,421025,"Voyage","ASC Edwin Sandot",null,902.35,null,{"$f":"VLOOKUP(D94,NOMS!$A:$B,2,FALSE)","v":{"$error":"#N/A"}}]
["2023-03-13",null,1,155025,"Voyage","Retour Provision Edwin Sandot",40,null,null,{"$f":"VLOOKUP(D95,NOMS!$A:$B,2,FALSE)","v":"EDWIN SANDOT"}]
["2023-03-13",null,7,787500,null,"Retour Provision Edwin Sandot",null,40,null,{"$f":"VLOOKUP(D96,NOMS!$A:$B,2,FALSE)","v":{"$error":"#N/A"}}]
["2023-03-13",null,4,421025,"Voyage","ASC Edwin Sandot",40,null,null,{"$f":"VLOOKUP(D97,NOMS!$A:$B,2,FALSE)","v":{"$error":"#N/A"}}]
["2023-03-13",null,5,512100,null,"ASC Edwin Sandot",null,40,null,{"$f":"VLOOKUP(D98,NOMS!$A:$B,2,FALSE)","v":{"$error":"#N/A"}}]
["2023-03-13",null,6,647000,null,"ASC Edwin Sandot",40,null,null,{"$f":"VLOOKUP(D99,NOMS!$A:$B,2,FALSE)","v":{"$error":"#N/A"}}]
["2023-03-13",null,4,421025,"Voyage","ASC Edwin Sandot",null,40,null,{"$f":"VLOOKUP(D100,NOMS!$A:$B,2,FALSE)","v":{"$error":"#N/A"}}]
["2023-03-21",null,1,155025,"Voyage","Retour Provision Edwin Sandot",540,null,null,{"$f":"VLOOKUP(D101,NOMS!$A:$B,2,FALSE)","v":"EDWIN SANDOT"}]
["2023-03-21",null,7,787500,null,"Retour Provision Edwin Sandot",null,540,null,{"$f":"VLOOKUP(D102,NOMS!$A:$B,2,FALSE)","v":{"$error":"#N/A"}}]
["2023-03-21",null,4,421025,"Voyage","ASC Edwin Sandot",540,null,null,{"$f":"VLOOKUP(D103,NOMS!$A:$B,2,FALSE)","v":{"$error":"#N/A"}}]
["2023-03-21",null,5,512100,null,"ASC Edwin Sandot",null,540,null,{"$f":"VLOOKUP(D104,NOMS!$A:$B,2,FALSE)","v":{"$error":"#N/A"}}]
["2023-03-21",null,6,647000,null,"ASC Edwin Sandot",540,null,null,{"$f":"VLOOKUP(D105,NOMS!$A:$B,2,FALSE)","v":{"$error":"#N/A"}}]
["2023-03-21",null,4,421025,"Voyage","ASC Edwin Sandot",null,540,null,{"$f":"VLOOKUP(D106,NOMS!$A:$B,2,FALSE)","v":{"$error":"#N/A"}}]
["2023-03-24",null,1,155011,"Voyage","Retour Provision Ma-Ivah BENOIT",1510.75,null,null,{"$f":"VLOOKUP(D107,NOMS!$A:$B,2,FALSE)","v":"Ma-Ivah BENOIT"}]
["2023-03-24",null,7,787500,null,"Retour Provision Ma-Ivah BENOIT",null,1510.75,null,{"$f":"VLOOKUP(D108,NOMS!$A:$B,2,FALSE)","v":{"$error":"#N/A"}}]
["2023-03-24",null,4,421011,"Voyage","ASC Ma-Ivah BENOIT",1510.75,null,null,{"$f":"VLOOKUP(D109,NOMS!$A:$B,2,FALSE)","v":{"$error":"#N/A"}}]
["2023-03-24",null,5,512100,null,"ASC Ma-Ivah BENOIT",null,1510.75,null,{"$f":"VLOOKUP(D110,NOMS!$A:$B,2,FALSE)","v":{"$error":"#N/A"}}]
["2023-03-24",null,6,647000,null,"ASC Ma-Ivah BENOIT",1510.75,null,null,{"$f":"VLOOKUP(D111,NOMS!$A:$B,2,FALSE)","v":{"$error":"#N/A"}}]
["2023-03-24",null,4,421011,"Voyage","ASC Ma-Ivah BENOIT",null,1510.75,null,{"$f":"VLOOKUP(D112,NOMS!$A:$B,2,FALSE)","v":{"$error":"#N/A"}}]
["2023-03-27",null,1,155005,"Voyage","Retour Provision Oriane MAYOUTE",472.34,null,null,{"$f":"VLOOKUP(D113,NOMS!$A:$B,2,FALSE)","v":"Oriane Mayoute"}]
["2023-03-27",null,7,787500,null,"Retour Provision Oriane MAYOUTE",null,472.34,null,{"$f":"VLOOKUP(D114,NOMS!$A:$B,2,FALSE)","v":{"$error":"#N/A"}}]
["2023-03-27",null,4,421005,"Voyage","ASC Oriane MAYOUTE",472.34,null,null,{"$f":"VLOOKUP(D115,NOMS!$A:$B,2,FALSE)","v":{"$error":"#N/A"}}]
["2023-03-27",null,5,512100,null,"ASC Oriane MAYOUTE",null,472.34,null,{"$f":"VLOOKUP(D116,NOMS!$A:$B,2,FALSE)","v":{"$error":"#N/A"}}]
["2023-03-27",null,6,647000,null,"ASC Oriane MAYOUTE",472.34,null,null,{"$f":"VLOOKUP(D117,NOMS!$A:$B,2,FALSE)","v":{"$error":"#N/A"}}]
["2023-03-27",null,4,421005,"Voyage","ASC Oriane MAYOUTE",null,472.34,null,{"$f":"VLOOKUP(D118,NOMS!$A:$B,2,FALSE)","v":{"$error":"#N/A"}}]
["2023-04-28",null,1,155007,"Voyage","Retour Provision Geraldine PINOS",748.76,null,null,{"$f":"VLOOKUP(D119,NOMS!$A:$B,2,FALSE)","v":"Geraldine PINOS"}]
["2023-04-28",null,7,787500,null,"Retour Provision Geraldine PINOS",null,748.76,null,{"$f":"VLOOKUP(D120,NOMS!$A:$B,2,FALSE)","v":{"$error":"#N/A"}}]
["2023-04-28",null,4,421007,"Voyage","ASC Geraldine PINOS",748.76,null,null,{"$f":"VLOOKUP(D121,NOMS!$A:$B,2,FALSE)","v":{"$error":"#N/A"}}]
["2023-04-28",null,5,512100,null,"ASC Geraldine PINOS",null,748.76,null,{"$f":"VLOOKUP(D122,NOMS!$A:$B,2,FALSE)","v":{"$error":"#N/A"}}]
["2023-04-28",null,6,647000,null,"ASC Geraldine PINOS",748.76,null,null,{"$f":"VLOOKUP(D123,NOMS!$A:$B,2,FALSE)","v":{"$error":"#N/A"}}]
["2023-04-28",null,4,421007,"Voyage","ASC Geraldine PINOS",null,748.76,null,{"$f":"VLOOKUP(D124,NOMS!$A:$B,2,FALSE)","v":{"$error":"#N/A"}}]
["2023-04-28",null,1,155007,"Voyage","Retour Provision Geraldine PINOS",1237.24,null,null,{"$f":"VLOOKUP(D125,NOMS!$A:$B,2,FALSE)","v":"Geraldine PINOS"}]
["2023-04-28",null,7,787500,null,"Retour Provision Geraldine PINOS",null,1237.24,null,{"$f":"VLOOKUP(D126,NOMS!$A:$B,2,FALSE)","v":{"$error":"#N/A"}}]
["2023-04-28",null,4,421007,"Voyage","ASC Geraldine PINOS",1237.24,null,null,{"$f":"VLOOKUP(D127,NOMS!$A:$B,2,FALSE)","v":{"$error":"#N/A"}}]
["2023-04-28",null,5,512100,null,"ASC Geraldine PINOS",null,1237.24,null,{"$f":"VLOOKUP(D128,NOMS!$A:$B,2,FALSE)","v":{"$error":"#N/A"}}]
["2023-04-28",null,6,647000,null,"ASC Geraldine PINOS",1237.24,null,null,{"$f":"VLOOKUP(D129,NOMS!$A:$B,2,FALSE)","v":{"$error":"#N/A"}}]
["2023-04-28",null,4,421007,"Voyage","ASC Geraldine PINOS",null,1237.24,null,{"$f":"VLOOKUP(D130,NOMS!$A:$B,2,FALSE)","v":{"$error":"#N/A"}}]
["2023-05-02",null,1,155027,"Voyage","Retour Provision Guillaume SOULAS",939.34,null,null,{"$f":"VLOOKUP(D131,NOMS!$A:$B,2,FALSE)","v":"Guillaume SOULAS"}]
["2023-05-02",null,7,787500,null,"Retour Provision Guillaume SOULAS",null,939.34,null,{"$f":"VLOOKUP(D132,NOMS!$A:$B,2,FALSE)","v":{"$error":"#N/A"}}]
["2023-05-02",null,4,421027,"Voyage","ASC Guillaume SOULAS",939.34,null,null,{"$f":"VLOOKUP(D133,NOMS!$A:$B,2,FALSE)","v":{"$error":"#N/A"}}]
["2023-05-02",null,5,512100,null,"ASC Guillaume SOULAS",null,939.34,null,{"$f":"VLOOKUP(D134,NOMS!$A:$B,2,FALSE)","v":{"$error":"#N/A"}}]
["2023-05-02",null,6,647000,null,"ASC Guillaume SOULAS",939.34,null,null,{"$f":"VLOOKUP(D135,NOMS!$A:$B,2,FALSE)","v":{"$error":"#N/A"}}]
["2023-05-02",null,4,421027,"Voyage","ASC Guillaume SOULAS",null,939.34,null,{"$f":"VLOOKUP(D136,NOMS!$A:$B,2,FALSE)","v":{"$error":"#N/A"}}]
["2023-05-12",null,1,155005,"Voyage","Retour Provision Oriane MAYOUTE",129,null,null,{"$f":"VLOOKUP(D137,NOMS!$A:$B,2,FALSE)","v":"Oriane Mayoute"}]
["2023-05-12",null,7,787500,null,"Retour Provision Oriane MAYOUTE",null,129,null,{"$f":"VLOOKUP(D138,NOMS!$A:$B,2,FALSE)","v":{"$error":"#N/A"}}]
["2023-05-12",null,4,421005,"Voyage","ASC Oriane MAYOUTE",129,null,null,{"$f":"VLOOKUP(D139,NOMS!$A:$B,2,FALSE)","v":{"$error":"#N/A"}}]
["2023-05-12",null,5,512100,null,"ASC Oriane MAYOUTE",null,129,null,{"$f":"VLOOKUP(D140,NOMS!$A:$B,2,FALSE)","v":{"$error":"#N/A"}}]
["2023-05-12",null,6,647000,null,"ASC Oriane MAYOUTE",129,null,null,{"$f":"VLOOKUP(D141,NOMS!$A:$B,2,FALSE)","v":{"$error":"#N/A"}}]
["2023-05-12",null,4,421005,"Voyage","ASC Oriane MAYOUTE",null,129,null,{"$f":"VLOOKUP(D142,NOMS!$A:$B,2,FALSE)","v":{"$error":"#N/A"}}]
["2023-05-12",null,1,155005,"Voyage","Retour Provision Oriane MAYOUTE",15.44,null,null,{"$f":"VLOOKUP(D143,NOMS!$A:$B,2,FALSE)","v":"Oriane Mayoute"}]
["2023-05-12",null,7,787500,null,"Retour Provision Oriane MAYOUTE",null,15.44,null,{"$f":"VLOOKUP(D144,NOMS!$A:$B,2,FALSE)","v":{"$error":"#N/A"}}]
["2023-05-12",null,4,421005,"Voyage","ASC Oriane MAYOUTE",15.44,null,null,{"$f":"VLOOKUP(D145,NOMS!$A:$B,2,FALSE)","v":{"$error":"#N/A"}}]
["2023-05-12",null,5,512100,null,"ASC Oriane MAYOUTE",null,15.44,null,{"$f":"VLOOKUP(D146,NOMS!$A:$B,2,FALSE)","v":{"$error":"#N/A"}}]
["2023-05-12",null,6,647000,null,"ASC Oriane MAYOUTE",15.44,null,null,{"$f":"VLOOKUP(D147,NOMS!$A:$B,2,FALSE)","v":{"$error":"#N/A"}}]
["2023-05-12",null,4,421005,"Voyage","ASC Oriane MAYOUTE",null,15.44,null,{"$f":"VLOOKUP(D148,NOMS!$A:$B,2,FALSE)","v":{"$error":"#N/A"}}]
["2023-05-15",null,1,155028,"Voyage","Retour Provision Julien LALAIT",1000,null,null,{"$f":"VLOOKUP(D149,NOMS!$A:$B,2,FALSE)","v":"Julien LALAIT"}]
["2023-05-15",null,7,787500,null,"Retour Provision Julien LALAIT",null,1000,null,{"$f":"VLOOKUP(D150,NOMS!$A:$B,2,FALSE)","v":{"$error":"#N/A"}}]
["2023-05-15",null,4,421028,"Voyage","ASC Julien LALAIT",1000,null,null,{"$f":"VLOOKUP(D151,NOMS!$A:$B,2,FALSE)","v":{"$error":"#N/A"}}]
["2023-05-15",null,5,512100,null,"ASC Julien LALAIT",null,1000,null,{"$f":"VLOOKUP(D152,NOMS!$A:$B,2,FALSE)","v":{"$error":"#N/A"}}]
["2023-05-15",null,6,647000,null,"ASC Julien LALAIT",1000,null,null,{"$f":"VLOOKUP(D153,NOMS!$A:$B,2,FALSE)","v":{"$error":"#N/A"}}]
["2023-05-15",null,4,421028,"Voyage","ASC Julien LALAIT",null,1000,null,{"$f":"VLOOKUP(D154,NOMS!$A:$B,2,FALSE)","v":{"$error":"#N/A"}}]
["2023-06-02",null,5,512101,null,"Virement transfert 10% AEP -> ASC",null,1551,null,{"$f":"VLOOKUP(D155,NOMS!$A:$B,2,FALSE)","v":{"$error":"#N/A"}}]
["2023-06-02",null,5,512100,null,"Virement transfert 10% AEP -> ASC",1551,null,null,{"$f":"VLOOKUP(D156,NOMS!$A:$B,2,FALSE)","v":{"$error":"#N/A"}}]
["2023-06-05",null,1,155015,"Voyage","Retour Provision Mireille ROCHE",918,null,null,{"$f":"VLOOKUP(D157,NOMS!$A:$B,2,FALSE)","v":"Mireille ROCHE"}]
["2023-06-05",null,7,787500,null,"Retour Provision Mireille ROCHE",null,918,null,{"$f":"VLOOKUP(D158,NOMS!$A:$B,2,FALSE)","v":{"$error":"#N/A"}}]
["2023-06-05",null,4,421015,"Voyage","ASC Mireille ROCHE",918,null,null,{"$f":"VLOOKUP(D159,NOMS!$A:$B,2,FALSE)","v":{"$error":"#N/A"}}]
["2023-06-05",null,5,512100,null,"ASC Mireille ROCHE",null,918,null,{"$f":"VLOOKUP(D160,NOMS!$A:$B,2,FALSE)","v":{"$error":"#N/A"}}]
["2023-06-05",null,6,647000,null,"ASC Mireille ROCHE",918,null,null,{"$f":"VLOOKUP(D161,NOMS!$A:$B,2,FALSE)","v":{"$error":"#N/A"}}]
["2023-06-05",null,4,421015,"Voyage","ASC Mireille ROCHE",null,918,null,{"$f":"VLOOKUP(D162,NOMS!$A:$B,2,FALSE)","v":{"$error":"#N/A"}}]
["2023-06-09",null,1,155013,"Garde enfants","Retour Provision Christelle CHOUAN",525,null,null,{"$f":"VLOOKUP(D163,NOMS!$A:$B,2,FALSE)","v":"Christelle CHOUAN"}]
["2023-06-09",null,7,787500,null,"Retour Provision Christelle CHOUAN",null,525,null,{"$f":"VLOOKUP(D164,NOMS!$A:$B,2,FALSE)","v":{"$error":"#N/A"}}]
["2023-06-09",null,4,421013,"Garde enfants","ASC Christelle CHOUAN",525,null,null,{"$f":"VLOOKUP(D165,NOMS!$A:$B,2,FALSE)","v":{"$error":"#N/A"}}]
["2023-06-09",null,5,512100,null,"ASC Christelle CHOUAN",null,525,null,{"$f":"VLOOKUP(D166,NOMS!$A:$B,2,FALSE)","v":{"$error":"#N/A"}}]
["2023-06-09",null,6,647000,null,"ASC Christelle CHOUAN",525,null,null,{"$f":"VLOOKUP(D167,NOMS!$A:$B,2,FALSE)","v":{"$error":"#N/A"}}]
["2023-06-09",null,4,421013,"Garde enfants","ASC Christelle CHOUAN",null,525,null,{"$f":"VLOOKUP(D168,NOMS!$A:$B,2,FALSE)","v":{"$error":"#N/A"}}]
["2023-06-12",null,1,155022,"Sport et loisirs","Retour Provision MAXIME ANNEQUIN",129.38,null,null,{"$f":"VLOOKUP(D169,NOMS!$A:$B,2,FALSE)","v":"Maxime ANNEQUIN"}]
["2023-06-12",null,7,787500,null,"Retour Provision MAXIME ANNEQUIN",null,129.38,null,{"$f":"VLOOKUP(D170,NOMS!$A:$B,2,FALSE)","v":{"$error":"#N/A"}}]
["2023-06-12",null,4,421022,"Sport et loisirs","ASC MAXIME ANNEQUIN",129.38,null,null,{"$f":"VLOOKUP(D171,NOMS!$A:$B,2,FALSE)","v":{"$error":"#N/A"}}]
["2023-06-12",null,5,512100,null,"ASC MAXIME ANNEQUIN",null,129.38,null,{"$f":"VLOOKUP(D172,NOMS!$A:$B,2,FALSE)","v":{"$error":"#N/A"}}]
["2023-06-12",null,6,647000,null,"ASC MAXIME ANNEQUIN",129.38,null,null,{"$f":"VLOOKUP(D173,NOMS!$A:$B,2,FALSE)","v":{"$error":"#N/A"}}]
["2023-06-12",null,4,421022,"Sport et loisirs","ASC MAXIME ANNEQUIN",null,129.38,null,{"$f":"VLOOKUP(D174,NOMS!$A:$B,2,FALSE)","v":{"$error":"#N/A"}}]
["2023-06-12",null,1,{"$f":"155000+K175","v":155002},"Sport et loisirs","Retour Provision Eric CHARTON",370,null,null,{"$f":"VLOOKUP(D175,NOMS!$A:$B,2,FALSE)","v":"Eric CHARTON"},2]
[{"$f":"A175","v":"2023-06-12"},null,7,787500,null,"Retour Provision Eric CHARTON",null,{"$f":"G175","v":370},null,{"$f":"VLOOKUP(D176,NOMS!$A:$B,2,FALSE)","v":{"$error":"#N/A"}}]
[{"$f":"A175","v":"2023-06-12"},null,4,{"$f":"421000+K175","v":421002},{"$f":"E175","v":"Sport et loisirs"},"ASC Eric CHARTON",{"$f":"G175","v":370},null,null,{"$f":"VLOOKUP(D177,NOMS!$A:$B,2,FALSE)","v":{"$error":"#N/A"}}]
[{"$f":"A175","v":"2023-06-12"},null,5,512100,null,"ASC Eric CHARTON",null,{"$f":"G175","v":370},null,{"$f":"VLOOKUP(D178,NOMS!$A:$B,2,FALSE)","v":{"$error":"#N/A"}}]
[{"$f":"A175","v":"2023-06-12"},null,6,647000,null,"ASC Eric CHARTON",{"$f":"G175","v":370},null,null,{"$f":"VLOOKUP(D179,NOMS!$A:$B,2,FALSE)","v":{"$error":"#N/A"}}]
[{"$f":"A175","v":"2023-06-12"},null,4,{"$f":"D177","v":421002},{"$f":"E175","v":"Sport et loisirs"},"ASC Eric CHARTON",null,{"$f":"G175","v":370},null,{"$f":"VLOOKUP(D180,NOMS!$A:$B,2,FALSE)","v":{"$error":"#N/A"}}]
["2023-07-04",null,1,155024,"Voyage","Retour Provision Carla MARMOLEJO",380.2,null,null,{"$f":"VLOOKUP(D181,NOMS!$A:$B,2,FALSE)","v":"Carla MARMOLEJO"}]
["2023-07-04",null,7,787500,null,"Retour Provision Carla MARMOLEJO",null,380.2,null,{"$f":"VLOOKUP(D182,NOMS!$A:$B,2,FALSE)","v":{"$error":"#N/A"}}]
["2023-07-04",null,4,421024,"Voyage","ASC Carla MARMOLEJO",380.2,null,null,{"$f":"VLOOKUP(D183,NOMS!$A:$B,2,FALSE)","v":{"$error":"#N/A"}}]
["2023-07-04",null,5,512100,null,"ASC Carla MARMOLEJO",null,380.2,null,{"$f":"VLOOKUP(D184,NOMS!$A:$B,2,FALSE)","v":{"$error":"#N/A"}}]
["2023-07-04",null,6,647000,null,"ASC Carla MARMOLEJO",380.2,null,null,{"$f":"VLOOKUP(D185,NOMS!$A:$B,2,FALSE)","v":{"$error":"#N/A"}}]
["2023-07-04",null,4,421024,"Voyage","ASC Carla MARMOLEJO",null,380.2,null,{"$f":"VLOOKUP(D186,NOMS!$A:$B,2,FALSE)","v":{"$error":"#N/A"}}]
["2023-07-04",null,1,155019,"Voyage","Retour Provision Mylene MARTIN",2000,null,null,{"$f":"VLOOKUP(D187,NOMS!$A:$B,2,FALSE)","v":"Mylene MARTIN"}]
["2023-07-04",null,7,787500,null,"Retour Provision Mylene MARTIN",null,2000,null,{"$f":"VLOOKUP(D188,NOMS!$A:$B,2,FALSE)","v":{"$error":"#N/A"}}]
["2023-07-04",null,4,421019,"Voyage","ASC Mylene MARTIN",2000,null,null,{"$f":"VLOOKUP(D189,NOMS!$A:$B,2,FALSE)","v":{"$error":"#N/A"}}]
["2023-07-04",null,5,512100,null,"ASC Mylene MARTIN",null,2000,null,{"$f":"VLOOKUP(D190,NOMS!$A:$B,2,FALSE)","v":{"$error":"#N/A"}}]
["2023-07-04",null,6,647000,null,"ASC Mylene MARTIN",2000,null,null,{"$f":"VLOOKUP(D191,NOMS!$A:$B,2,FALSE)","v":{"$error":"#N/A"}}]
["2023-07-04",null,4,421019,"Voyage","ASC Mylene MARTIN",null,2000,null,{"$f":"VLOOKUP(D192,NOMS!$A:$B,2,FALSE)","v":{"$error":"#N/A"}}]
["2023-07-04",null,1,155024,"Voyage","Retour Provision Carla MARMOLEJO",619.79999999999995,null,null,{"$f":"VLOOKUP(D193,NOMS!$A:$B,2,FALSE)","v":"Carla MARMOLEJO"}]
["2023-07-04",null,7,787500,null,"Retour Provision Carla MARMOLEJO",null,619.79999999999995,null,{"$f":"VLOOKUP(D194,NOMS!$A:$B,2,FALSE)","v":{"$error":"#N/A"}}]
["2023-07-04",null,4,421024,"Voyage","ASC Carla MARMOLEJO",619.79999999999995,null,null,{"$f":"VLOOKUP(D195,NOMS!$A:$B,2,FALSE)","v":{"$error":"#N/A"}}]
["2023-07-04",null,5,512100,null,"ASC Carla MARMOLEJO",null,619.79999999999995,null,{"$f":"VLOOKUP(D196,NOMS!$A:$B,2,FALSE)","v":{"$error":"#N/A"}}]
["2023-07-04",null,6,647000,null,"ASC Carla MARMOLEJO",619.79999999999995,null,null,{"$f":"VLOOKUP(D197,NOMS!$A:$B,2,FALSE)","v":{"$error":"#N/A"}}]
["2023-07-04",null,4,421024,"Voyage","ASC Carla MARMOLEJO",null,619.79999999999995,null,{"$f":"VLOOKUP(D198,NOMS!$A:$B,2,FALSE)","v":{"$error":"#N/A"}}]
["2023-07-13",null,1,155008,"Voyage","Retour Provision Stephanie Lubin",1470,null,null,{"$f":"VLOOKUP(D199,NOMS!$A:$B,2,FALSE)","v":"Stephanie LUBIN"},8]
["2023-07-13",null,7,787500,null,"Retour Provision Stephanie Lubin",null,1470,null,{"$f":"VLOOKUP(D200,NOMS!$A:$B,2,FALSE)","v":{"$error":"#N/A"}}]
["2023-07-13",null,4,421008,"Voyage","ASC Stephanie Lubin",1470,null,null,{"$f":"VLOOKUP(D201,NOMS!$A:$B,2,FALSE)","v":{"$error":"#N/A"}}]
["2023-07-13",null,5,512100,null,"ASC Stephanie Lubin",null,1470,null,{"$f":"VLOOKUP(D202,NOMS!$A:$B,2,FALSE)","v":{"$error":"#N/A"}}]
["2023-07-13",null,6,647000,null,"ASC Stephanie Lubin",1470,null,null,{"$f":"VLOOKUP(D203,NOMS!$A:$B,2,FALSE)","v":{"$error":"#N/A"}}]
["2023-07-13",null,4,421008,"Voyage","ASC Stephanie Lubin",null,1470,null,{"$f":"VLOOKUP(D204,NOMS!$A:$B,2,FALSE)","v":{"$error":"#N/A"}}]
["2023-08-08",null,1,155009,"Voyage","Retour Provision Eddy LORBEL",959.17,null,null,{"$f":"VLOOKUP(D205,NOMS!$A:$B,2,FALSE)","v":"Eddy LORBEL"},9]
["2023-08-08",null,7,787500,null,"Retour Provision Eddy LORBEL",null,959.17,null,{"$f":"VLOOKUP(D206,NOMS!$A:$B,2,FALSE)","v":{"$error":"#N/A"}}]
["2023-08-08",null,4,421009,"Voyage","ASC Eddy LORBEL",959.17,null,null,{"$f":"VLOOKUP(D207,NOMS!$A:$B,2,FALSE)","v":{"$error":"#N/A"}}]
["2023-08-08",null,5,512100,null,"ASC Eddy LORBEL",null,959.17,null,{"$f":"VLOOKUP(D208,NOMS!$A:$B,2,FALSE)","v":{"$error":"#N/A"}}]
["2023-08-08",null,6,647000,null,"ASC Eddy LORBEL",959.17,null,null,{"$f":"VLOOKUP(D209,NOMS!$A:$B,2,FALSE)","v":{"$error":"#N/A"}}]
["2023-08-08",null,4,421009,"Voyage","ASC Eddy LORBEL",null,959.17,null,{"$f":"VLOOKUP(D210,NOMS!$A:$B,2,FALSE)","v":{"$error":"#N/A"}}]
["2023-08-16",null,1,155028,"Voyage","Retour Provision Julien LALAIT",500,null,null,{"$f":"VLOOKUP(D211,NOMS!$A:$B,2,FALSE)","v":"Julien LALAIT"}]
["2023-08-16",null,7,787500,null,"Retour Provision Julien LALAIT",null,500,null,{"$f":"VLOOKUP(D212,NOMS!$A:$B,2,FALSE)","v":{"$error":"#N/A"}}]
["2023-08-16",null,4,421028,"Voyage","ASC Julien LALAIT",500,null,null,{"$f":"VLOOKUP(D213,NOMS!$A:$B,2,FALSE)","v":{"$error":"#N/A"}}]
["2023-08-16",null,5,512100,null,"ASC Julien LALAIT",null,500,null,{"$f":"VLOOKUP(D214,NOMS!$A:$B,2,FALSE)","v":{"$error":"#N/A"}}]
["2023-08-16",null,6,647000,null,"ASC Julien LALAIT",500,null,null,{"$f":"VLOOKUP(D215,NOMS!$A:$B,2,FALSE)","v":{"$error":"#N/A"}}]
["2023-08-16",null,4,421028,"Voyage","ASC Julien LALAIT",null,500,null,{"$f":"VLOOKUP(D216,NOMS!$A:$B,2,FALSE)","v":{"$error":"#N/A"}}]
["2023-08-16",null,1,155006,"Voyage","Retour Provision Amina ISCAYE",2000,null,null,{"$f":"VLOOKUP(D217,NOMS!$A:$B,2,FALSE)","v":"Amina ISCAYE"},6]
["2023-08-16",null,7,787500,null,"Retour Provision Amina ISCAYE",null,2000,null,{"$f":"VLOOKUP(D218,NOMS!$A:$B,2,FALSE)","v":{"$error":"#N/A"}}]
["2023-08-16",null,4,421006,"Voyage","ASC Amina ISCAYE",2000,null,null,{"$f":"VLOOKUP(D219,NOMS!$A:$B,2,FALSE)","v":{"$error":"#N/A"}}]
["2023-08-16",null,5,512100,null,"ASC Amina ISCAYE",null,2000,null,{"$f":"VLOOKUP(D220,NOMS!$A:$B,2,FALSE)","v":{"$error":"#N/A"}}]
["2023-08-16",null,6,647000,null,"ASC Amina ISCAYE",2000,null,null,{"$f":"VLOOKUP(D221,NOMS!$A:$B,2,FALSE)","v":{"$error":"#N/A"}}]
["2023-08-16",null,4,421006,"Voyage","ASC Amina ISCAYE",null,2000,null,{"$f":"VLOOKUP(D222,NOMS!$A:$B,2,FALSE)","v":{"$error":"#N/A"}}]
["2023-08-16",null,1,155016,"Voyage","Retour Provision Guy RAMALINGON",1500,null,null,{"$f":"VLOOKUP(D223,NOMS!$A:$B,2,FALSE)","v":"Guy RAMALINGON"},16]
["2023-08-16",null,7,787500,null,"Retour Provision Guy RAMALINGON",null,1500,null,{"$f":"VLOOKUP(D224,NOMS!$A:$B,2,FALSE)","v":{"$error":"#N/A"}}]
["2023-08-16",null,4,421016,"Voyage","ASC Guy RAMALINGON",1500,null,null,{"$f":"VLOOKUP(D225,NOMS!$A:$B,2,FALSE)","v":{"$error":"#N/A"}}]
["2023-08-16",null,5,512100,null,"ASC Guy RAMALINGON",null,1500,null,{"$f":"VLOOKUP(D226,NOMS!$A:$B,2,FALSE)","v":{"$error":"#N/A"}}]
["2023-08-16",null,6,647000,null,"ASC Guy RAMALINGON",1500,null,null,{"$f":"VLOOKUP(D227,NOMS!$A:$B,2,FALSE)","v":{"$error":"#N/A"}}]
["2023-08-16",null,4,421016,"Voyage","ASC Guy RAMALINGON",null,1500,null,{"$f":"VLOOKUP(D228,NOMS!$A:$B,2,FALSE)","v":{"$error":"#N/A"}}]
["2023-08-16",null,1,155002,"Voyage","Retour Provision Eric CHARTON",568.75,null,null,{"$f":"VLOOKUP(D229,NOMS!$A:$B,2,FALSE)","v":"Eric CHARTON"},2]
["2023-08-16",null,7,787500,null,"Retour Provision Eric CHARTON",null,568.75,null,{"$f":"VLOOKUP(D230,NOMS!$A:$B,2,FALSE)","v":{"$error":"#N/A"}}]
["2023-08-16",null,4,421002,"Voyage","ASC Eric CHARTON",568.75,null,null,{"$f":"VLOOKUP(D231,NOMS!$A:$B,2,FALSE)","v":{"$error":"#N/A"}}]
["2023-08-16",null,5,512100,null,"ASC Eric CHARTON",null,568.75,null,{"$f":"VLOOKUP(D232,NOMS!$A:$B,2,FALSE)","v":{"$error":"#N/A"}}]
["2023-08-16",null,6,647000,null,"ASC Eric CHARTON",568.75,null,null,{"$f":"VLOOKUP(D233,NOMS!$A:$B,2,FALSE)","v":{"$error":"#N/A"}}]
["2023-08-16",null,4,421002,"Voyage","ASC Eric CHARTON",null,568.75,null,{"$f":"VLOOKUP(D234,NOMS!$A:$B,2,FALSE)","v":{"$error":"#N/A"}}]
["2023-08-24",null,1,155013,"Voyage","Retour Provision CHRISTELLE CHOUAN",628,null,null,{"$f":"VLOOKUP(D235,NOMS!$A:$B,2,FALSE)","v":"Christelle CHOUAN"},13]
["2023-08-24",null,7,787500,null,"Retour Provision CHRISTELLE CHOUAN",null,628,null,{"$f":"VLOOKUP(D236,NOMS!$A:$B,2,FALSE)","v":{"$error":"#N/A"}}]
["2023-08-24",null,4,421013,"Voyage","ASC CHRISTELLE CHOUAN",628,null,null,{"$f":"VLOOKUP(D237,NOMS!$A:$B,2,FALSE)","v":{"$error":"#N/A"}}]
["2023-08-24",null,5,512100,null,"ASC CHRISTELLE CHOUAN",null,628,null,{"$f":"VLOOKUP(D238,NOMS!$A:$B,2,FALSE)","v":{"$error":"#N/A"}}]
["2023-08-24",null,6,647000,null,"ASC CHRISTELLE CHOUAN",628,null,null,{"$f":"VLOOKUP(D239,NOMS!$A:$B,2,FALSE)","v":{"$error":"#N/A"}}]
["2023-08-24",null,4,421013,"Voyage","ASC CHRISTELLE CHOUAN",null,628,null,{"$f":"VLOOKUP(D240,NOMS!$A:$B,2,FALSE)","v":{"$error":"#N/A"}}]
["2023-08-24",null,1,155015,"Voyage","Retour Provision MIREILLE ROCHE",306,null,null,{"$f":"VLOOKUP(D241,NOMS!$A:$B,2,FALSE)","v":"Mireille ROCHE"},15]
["2023-08-24",null,7,787500,null,"Retour Provision MIREILLE ROCHE",null,306,null,{"$f":"VLOOKUP(D242,NOMS!$A:$B,2,FALSE)","v":{"$error":"#N/A"}}]
["2023-08-24",null,4,421015,"Voyage","ASC MIREILLE ROCHE",306,null,null,{"$f":"VLOOKUP(D243,NOMS!$A:$B,2,FALSE)","v":{"$error":"#N/A"}}]
["2023-08-24",null,5,512100,null,"ASC MIREILLE ROCHE",null,306,null,{"$f":"VLOOKUP(D244,NOMS!$A:$B,2,FALSE)","v":{"$error":"#N/A"}}]
["2023-08-24",null,6,647000,null,"ASC MIREILLE ROCHE",306,null,null,{"$f":"VLOOKUP(D245,NOMS!$A:$B,2,FALSE)","v":{"$error":"#N/A"}}]
["2023-08-24",null,4,421015,"Voyage","ASC MIREILLE ROCHE",null,306,null,{"$f":"VLOOKUP(D246,NOMS!$A:$B,2,FALSE)","v":{"$error":"#N/A"}}]
["2023-08-30",null,1,155002,"Sport et loisirs","Retour Provision Eric CHARTON",665,null,null,{"$f":"VLOOKUP(D247,NOMS!$A:$B,2,FALSE)","v":"Eric CHARTON"},2]
["2023-08-30",null,7,787500,null,"Retour Provision Eric CHARTON",null,665,null,{"$f":"VLOOKUP(D248,NOMS!$A:$B,2,FALSE)","v":{"$error":"#N/A"}}]
["2023-08-30",null,4,421002,"Sport et loisirs","ASC Eric CHARTON",665,null,null,{"$f":"VLOOKUP(D249,NOMS!$A:$B,2,FALSE)","v":{"$error":"#N/A"}}]
["2023-08-30",null,5,512100,null,"ASC Eric CHARTON",null,665,null,{"$f":"VLOOKUP(D250,NOMS!$A:$B,2,FALSE)","v":{"$error":"#N/A"}}]
["2023-08-30",null,6,647000,null,"ASC Eric CHARTON",665,null,null,{"$f":"VLOOKUP(D251,NOMS!$A:$B,2,FALSE)","v":{"$error":"#N/A"}}]
["2023-08-30",null,4,421002,"Sport et loisirs","ASC Eric CHARTON",null,665,null,{"$f":"VLOOKUP(D252,NOMS!$A:$B,2,FALSE)","v":{"$error":"#N/A"}}]
["2023-09-08",null,1,155017,"Voyage","Retour Provision RAISSA LUSINE",553.14,null,null,{"$f":"VLOOKUP(D253,NOMS!$A:$B,2,FALSE)","v":"RAISSA LUSINE"},17]
["2023-09-08",null,7,787500,null,"Retour Provision RAISSA LUSINE",null,553.14,null,{"$f":"VLOOKUP(D254,NOMS!$A:$B,2,FALSE)","v":{"$error":"#N/A"}}]
["2023-09-08",null,4,421017,"Voyage","ASC RAISSA LUSINE",553.14,null,null,{"$f":"VLOOKUP(D255,NOMS!$A:$B,2,FALSE)","v":{"$error":"#N/A"}}]
["2023-09-08",null,5,512100,null,"ASC RAISSA LUSINE",null,553.14,null,{"$f":"VLOOKUP(D256,NOMS!$A:$B,2,FALSE)","v":{"$error":"#N/A"}}]
["2023-09-08",null,6,647000,null,"ASC RAISSA LUSINE",553.14,null,null,{"$f":"VLOOKUP(D257,NOMS!$A:$B,2,FALSE)","v":{"$error":"#N/A"}}]
["2023-09-08",null,4,421017,"Voyage","ASC RAISSA LUSINE",null,553.14,null,{"$f":"VLOOKUP(D258,NOMS!$A:$B,2,FALSE)","v":{"$error":"#N/A"}}]
["2023-09-29",null,1,155030,"Budget ASC 2022","Provision Budget ASC 2022",null,1000,null,{"$f":"VLOOKUP(D259,NOMS!$A:$B,2,FALSE)","v":"MAILINE FIDOL"}]
["2023-09-29",null,1,155030,"Culture","Retour Provision MAILINE FIDOL",233.72,null,null,{"$f":"VLOOKUP(D260,NOMS!$A:$B,2,FALSE)","v":"MAILINE FIDOL"},30]
["2023-09-29",null,7,787500,null,"Retour Provision MAILINE FIDOL",null,233.72,null,{"$f":"VLOOKUP(D261,NOMS!$A:$B,2,FALSE)","v":{"$error":"#N/A"}}]
["2023-09-29",null,4,421030,"Culture","ASC MAILINE FIDOL",233.72,null,null,{"$f":"VLOOKUP(D262,NOMS!$A:$B,2,FALSE)","v":{"$error":"#N/A"}}]
["2023-09-29",null,5,512100,null,"ASC MAILINE FIDOL",null,233.72,null,{"$f":"VLOOKUP(D263,NOMS!$A:$B,2,FALSE)","v":{"$error":"#N/A"}}]
["2023-09-29",null,6,647000,null,"ASC MAILINE FIDOL",233.72,null,null,{"$f":"VLOOKUP(D264,NOMS!$A:$B,2,FALSE)","v":{"$error":"#N/A"}}]
["2023-09-29",null,4,421030,"Culture","ASC MAILINE FIDOL",null,233.72,null,{"$f":"VLOOKUP(D265,NOMS!$A:$B,2,FALSE)","v":{"$error":"#N/A"}}]
["2023-09-29",null,1,155008,"Garde enfants","Retour Provision Stephanie LUBIN",530,null,null,{"$f":"VLOOKUP(D266,NOMS!$A:$B,2,FALSE)","v":"Stephanie LUBIN"},8]
["2023-09-29",null,7,787500,null,"Retour Provision Stephanie LUBIN",null,530,null,{"$f":"VLOOKUP(D267,NOMS!$A:$B,2,FALSE)","v":{"$error":"#N/A"}}]
["2023-09-29",null,4,421008,"Garde enfants","ASC Stephanie LUBIN",530,null,null,{"$f":"VLOOKUP(D268,NOMS!$A:$B,2,FALSE)","v":{"$error":"#N/A"}}]
["2023-09-29",null,5,512100,null,"ASC Stephanie LUBIN",null,530,null,{"$f":"VLOOKUP(D269,NOMS!$A:$B,2,FALSE)","v":{"$error":"#N/A"}}]
["2023-09-29",null,6,647000,null,"ASC Stephanie LUBIN",530,null,null,{"$f":"VLOOKUP(D270,NOMS!$A:$B,2,FALSE)","v":{"$error":"#N/A"}}]
["2023-09-29",null,4,421008,"Garde enfants","ASC Stephanie LUBIN",null,530,null,{"$f":"VLOOKUP(D271,NOMS!$A:$B,2,FALSE)","v":{"$error":"#N/A"}}]
["2023-10-03",null,1,155023,"Voyage","Retour Provision ANAIS LERUS",1977.62,null,null,{"$f":"VLOOKUP(D272,NOMS!$A:$B,2,FALSE)","v":"ANAIS LERUS"},23]
["2023-10-03",null,7,787500,null,"Retour Provision ANAIS LERUS",null,1977.62,null,{"$f":"VLOOKUP(D273,NOMS!$A:$B,2,FALSE)","v":{"$error":"#N/A"}}]
["2023-10-03",null,4,421023,"Voyage","ASC ANAIS LERUS",1977.62,null,null,{"$f":"VLOOKUP(D274,NOMS!$A:$B,2,FALSE)","v":{"$error":"#N/A"}}]
["2023-10-03",null,5,512100,null,"ASC ANAIS LERUS",null,1977.62,null,{"$f":"VLOOKUP(D275,NOMS!$A:$B,2,FALSE)","v":{"$error":"#N/A"}}]
["2023-10-03",null,6,647000,null,"ASC ANAIS LERUS",1977.62,null,null,{"$f":"VLOOKUP(D276,NOMS!$A:$B,2,FALSE)","v":{"$error":"#N/A"}}]
["2023-10-03",null,4,421023,"Voyage","ASC ANAIS LERUS",null,1977.62,null,{"$f":"VLOOKUP(D277,NOMS!$A:$B,2,FALSE)","v":{"$error":"#N/A"}}]
["2023-10-03",null,1,155023,"Culture","Retour Provision ANAIS LERUS",22.38,null,null,{"$f":"VLOOKUP(D278,NOMS!$A:$B,2,FALSE)","v":"ANAIS LERUS"},23]
["2023-10-03",null,7,787500,null,"Retour Provision ANAIS LERUS",null,22.38,null,{"$f":"VLOOKUP(D279,NOMS!$A:$B,2,FALSE)","v":{"$error":"#N/A"}}]
["2023-10-03",null,4,421023,"Culture","ASC ANAIS LERUS",22.38,null,null,{"$f":"VLOOKUP(D280,NOMS!$A:$B,2,FALSE)","v":{"$error":"#N/A"}}]
["2023-10-03",null,5,512100,null,"ASC ANAIS LERUS",null,22.38,null,{"$f":"VLOOKUP(D281,NOMS!$A:$B,2,FALSE)","v":{"$error":"#N/A"}}]
["2023-10-03",null,6,647000,null,"ASC ANAIS LERUS",22.38,null,null,{"$f":"VLOOKUP(D282,NOMS!$A:$B,2,FALSE)","v":{"$error":"#N/A"}}]
["2023-10-03",null,4,421023,"Culture","ASC ANAIS LERUS",null,22.38,null,{"$f":"VLOOKUP(D283,NOMS!$A:$B,2,FALSE)","v":{"$error":"#N/A"}}]
["2023-10-13",null,1,155030,"Culture","Retour Provision MAILINE FIDOL",76.88,null,null,{"$f":"VLOOKUP(D284,NOMS!$A:$B,2,FALSE)","v":"MAILINE FIDOL"},30]
["2023-10-13",null,7,787500,null,"Retour Provision MAILINE FIDOL",null,76.88,null,{"$f":"VLOOKUP(D285,NOMS!$A:$B,2,FALSE)","v":{"$error":"#N/A"}}]
["2023-10-13",null,4,421030,"Culture","ASC MAILINE FIDOL",76.88,null,null,{"$f":"VLOOKUP(D286,NOMS!$A:$B,2,FALSE)","v":{"$error":"#N/A"}}]
["2023-10-13",null,5,512100,null,"ASC MAILINE FIDOL",null,76.88,null,{"$f":"VLOOKUP(D287,NOMS!$A:$B,2,FALSE)","v":{"$error":"#N/A"}}]
["2023-10-13",null,6,647000,null,"ASC MAILINE FIDOL",76.88,null,null,{"$f":"VLOOKUP(D288,NOMS!$A:$B,2,FALSE)","v":{"$error":"#N/A"}}]
["2023-10-13",null,4,421030,"Culture","ASC MAILINE FIDOL",null,76.88,null,{"$f":"VLOOKUP(D289,NOMS!$A:$B,2,FALSE)","v":{"$error":"#N/A"}}]
["2023-10-13",null,1,155030,"Culture","Retour Provision MAILINE FIDOL",131.97,null,null,{"$f":"VLOOKUP(D290,NOMS!$A:$B,2,FALSE)","v":"MAILINE FIDOL"},30]
["2023-10-13",null,7,787500,null,"Retour Provision MAILINE FIDOL",null,131.97,null,{"$f":"VLOOKUP(D291,NOMS!$A:$B,2,FALSE)","v":{"$error":"#N/A"}}]
["2023-10-13",null,4,421030,"Culture","ASC MAILINE FIDOL",131.97,null,null,{"$f":"VLOOKUP(D292,NOMS!$A:$B,2,FALSE)","v":{"$error":"#N/A"}}]
["2023-10-13",null,5,512100,null,"ASC MAILINE FIDOL",null,131.97,null,{"$f":"VLOOKUP(D293,NOMS!$A:$B,2,FALSE)","v":{"$error":"#N/A"}}]
["2023-10-13",null,6,647000,null,"ASC MAILINE FIDOL",131.97,null,null,{"$f":"VLOOKUP(D294,NOMS!$A:$B,2,FALSE)","v":{"$error":"#N/A"}}]
["2023-10-13",null,4,421030,"Culture","ASC MAILINE FIDOL",null,131.97,null,{"$f":"VLOOKUP(D295,NOMS!$A:$B,2,FALSE)","v":{"$error":"#N/A"}}]
["2023-10-23",null,1,155011,"Voyage","Retour Provision MA-IVAH BENOIT",489.25,null,null,{"$f":"VLOOKUP(D296,NOMS!$A:$B,2,FALSE)","v":"Ma-Ivah BENOIT"},11]
["2023-10-23",null,7,787500,null,"Retour Provision MA-IVAH BENOIT",null,489.25,null,{"$f":"VLOOKUP(D297,NOMS!$A:$B,2,FALSE)","v":{"$error":"#N/A"}}]
["2023-10-23",null,4,421011,"Voyage","ASC MA-IVAH BENOIT",489.25,null,null,{"$f":"VLOOKUP(D298,NOMS!$A:$B,2,FALSE)","v":{"$error":"#N/A"}}]
["2023-10-23",null,5,512100,null,"ASC MA-IVAH BENOIT",null,489.25,null,{"$f":"VLOOKUP(D299,NOMS!$A:$B,2,FALSE)","v":{"$error":"#N/A"}}]
["2023-10-23",null,6,647000,null,"ASC MA-IVAH BENOIT",489.25,null,null,{"$f":"VLOOKUP(D300,NOMS!$A:$B,2,FALSE)","v":{"$error":"#N/A"}}]
["2023-10-23",null,4,421011,"Voyage","ASC MA-IVAH BENOIT",null,489.25,null,{"$f":"VLOOKUP(D301,NOMS!$A:$B,2,FALSE)","v":{"$error":"#N/A"}}]
["2023-11-06",null,1,155025,"Voyage","Retour Provision EDWIN SANDOT",517.65,null,null,{"$f":"VLOOKUP(D302,NOMS!$A:$B,2,FALSE)","v":"EDWIN SANDOT"},25]
["2023-11-06",null,7,787500,null,"Retour Provision EDWIN SANDOT",null,517.65,null,{"$f":"VLOOKUP(D303,NOMS!$A:$B,2,FALSE)","v":{"$error":"#N/A"}}]
["2023-11-06",null,4,421025,"Voyage","ASC EDWIN SANDOT",517.65,null,null,{"$f":"VLOOKUP(D304,NOMS!$A:$B,2,FALSE)","v":{"$error":"#N/A"}}]
["2023-11-06",null,5,512100,null,"ASC EDWIN SANDOT",null,517.65,null,{"$f":"VLOOKUP(D305,NOMS!$A:$B,2,FALSE)","v":{"$error":"#N/A"}}]
["2023-11-06",null,6,647000,null,"ASC EDWIN SANDOT",517.65,null,null,{"$f":"VLOOKUP(D306,NOMS!$A:$B,2,FALSE)","v":{"$error":"#N/A"}}]
["2023-11-06",null,4,421025,"Voyage","ASC EDWIN SANDOT",null,517.65,null,{"$f":"VLOOKUP(D307,NOMS!$A:$B,2,FALSE)","v":{"$error":"#N/A"}}]
["2023-11-06",null,1,155012,"Voyage","Retour Provision Lydia THALMENSI",2000,null,null,{"$f":"VLOOKUP(D308,NOMS!$A:$B,2,FALSE)","v":"Lydia THALMENSI"},12]
["2023-11-06",null,7,787500,null,"Retour Provision Lydia THALMENSI",null,2000,null,{"$f":"VLOOKUP(D309,NOMS!$A:$B,2,FALSE)","v":{"$error":"#N/A"}}]
["2023-11-06",null,4,421012,"Voyage","ASC Lydia THALMENSI",2000,null,null,{"$f":"VLOOKUP(D310,NOMS!$A:$B,2,FALSE)","v":{"$error":"#N/A"}}]
["2023-11-06",null,5,512100,null,"ASC Lydia THALMENSI",null,2000,null,{"$f":"VLOOKUP(D311,NOMS!$A:$B,2,FALSE)","v":{"$error":"#N/A"}}]
["2023-11-06",null,6,647000,null,"ASC Lydia THALMENSI",2000,null,null,{"$f":"VLOOKUP(D312,NOMS!$A:$B,2,FALSE)","v":{"$error":"#N/A"}}]
["2023-11-06",null,4,421012,"Voyage","ASC Lydia THALMENSI",null,2000,null,{"$f":"VLOOKUP(D313,NOMS!$A:$B,2,FALSE)","v":{"$error":"#N/A"}}]
["2023-11-06",null,1,155030,"Voyage","Retour Provision MAILINE FIDOL",342.82,null,null,{"$f":"VLOOKUP(D314,NOMS!$A:$B,2,FALSE)","v":"MAILINE FIDOL"},30]
["2023-11-06",null,7,787500,null,"Retour Provision MAILINE FIDOL",null,342.82,null,{"$f":"VLOOKUP(D315,NOMS!$A:$B,2,FALSE)","v":{"$error":"#N/A"}}]
["2023-11-06",null,4,421030,"Voyage","ASC MAILINE FIDOL",342.82,null,null,{"$f":"VLOOKUP(D316,NOMS!$A:$B,2,FALSE)","v":{"$error":"#N/A"}}]
["2023-11-06",null,5,512100,null,"ASC MAILINE FIDOL",null,342.82,null,{"$f":"VLOOKUP(D317,NOMS!$A:$B,2,FALSE)","v":{"$error":"#N/A"}}]
["2023-11-06",null,6,647000,null,"ASC MAILINE FIDOL",342.82,null,null,{"$f":"VLOOKUP(D318,NOMS!$A:$B,2,FALSE)","v":{"$error":"#N/A"}}]
["2023-11-06",null,4,421030,"Voyage","ASC MAILINE FIDOL",null,342.82,null,{"$f":"VLOOKUP(D319,NOMS!$A:$B,2,FALSE)","v":{"$error":"#N/A"}}]
["2023-11-17",null,1,155031,"Budget ASC 2022","Provision Budget ASC 2022",null,500,null,{"$f":"VLOOKUP(D320,NOMS!$A:$B,2,FALSE)","v":"Emilie GUILLAUME"}]
["2023-11-20",null,1,155010,"Culture","Retour Provision Olivia LAPORAL",35.950000000000003,null,null,{"$f":"VLOOKUP(D321,NOMS!$A:$B,2,FALSE)","v":"Olivia LAPORAL"},10]
["2023-11-20",null,7,787500,null,"Retour Provision Olivia LAPORAL",null,35.950000000000003,null,{"$f":"VLOOKUP(D322,NOMS!$A:$B,2,FALSE)","v":{"$error":"#N/A"}}]
["2023-11-20",null,4,421010,"Culture","ASC Olivia LAPORAL",35.950000000000003,null,null,{"$f":"VLOOKUP(D323,NOMS!$A:$B,2,FALSE)","v":{"$error":"#N/A"}}]
["2023-11-20",null,5,512100,null,"ASC Olivia LAPORAL",null,35.950000000000003,null,{"$f":"VLOOKUP(D324,NOMS!$A:$B,2,FALSE)","v":{"$error":"#N/A"}}]
["2023-11-20",null,6,647000,null,"ASC Olivia LAPORAL",35.950000000000003,null,null,{"$f":"VLOOKUP(D325,NOMS!$A:$B,2,FALSE)","v":{"$error":"#N/A"}}]
["2023-11-20",null,4,421010,"Culture","ASC Olivia LAPORAL",null,35.950000000000003,null,{"$f":"VLOOKUP(D326,NOMS!$A:$B,2,FALSE)","v":{"$error":"#N/A"}}]
["2023-11-20",null,1,155010,"Voyage","Retour Provision Olivia LAPORAL",629.6,null,null,{"$f":"VLOOKUP(D327,NOMS!$A:$B,2,FALSE)","v":"Olivia LAPORAL"},10]
["2023-11-20",null,7,787500,null,"Retour Provision Olivia LAPORAL",null,629.6,null,{"$f":"VLOOKUP(D328,NOMS!$A:$B,2,FALSE)","v":{"$error":"#N/A"}}]
["2023-11-20",null,4,421010,"Voyage","ASC Olivia LAPORAL",629.6,null,null,{"$f":"VLOOKUP(D329,NOMS!$A:$B,2,FALSE)","v":{"$error":"#N/A"}}]
["2023-11-20",null,5,512100,null,"ASC Olivia LAPORAL",null,629.6,null,{"$f":"VLOOKUP(D330,NOMS!$A:$B,2,FALSE)","v":{"$error":"#N/A"}}]
["2023-11-20",null,6,647000,null,"ASC Olivia LAPORAL",629.6,null,null,{"$f":"VLOOKUP(D331,NOMS!$A:$B,2,FALSE)","v":{"$error":"#N/A"}}]
["2023-11-20",null,4,421010,"Voyage","ASC Olivia LAPORAL",null,629.6,null,{"$f":"VLOOKUP(D332,NOMS!$A:$B,2,FALSE)","v":{"$error":"#N/A"}}]
["2023-11-23",null,1,155020,"Voyage","Retour Provision Johanne LONGRAIS",2000,null,null,{"$f":"VLOOKUP(D333,NOMS!$A:$B,2,FALSE)","v":"Johanne LONGRAIS"},20]
["2023-11-23",null,7,787500,null,"Retour Provision Johanne LONGRAIS",null,2000,null,{"$f":"VLOOKUP(D334,NOMS!$A:$B,2,FALSE)","v":{"$error":"#N/A"}}]
["2023-11-23",null,4,421020,"Voyage","ASC Johanne LONGRAIS",2000,null,null,{"$f":"VLOOKUP(D335,NOMS!$A:$B,2,FALSE)","v":{"$error":"#N/A"}}]
["2023-11-23",null,5,512100,null,"ASC Johanne LONGRAIS",null,2000,null,{"$f":"VLOOKUP(D336,NOMS!$A:$B,2,FALSE)","v":{"$error":"#N/A"}}]
["2023-11-23",null,6,647000,null,"ASC Johanne LONGRAIS",2000,null,null,{"$f":"VLOOKUP(D337,NOMS!$A:$B,2,FALSE)","v":{"$error":"#N/A"}}]
["2023-11-23",null,4,421020,"Voyage","ASC Johanne LONGRAIS",null,2000,null,{"$f":"VLOOKUP(D338,NOMS!$A:$B,2,FALSE)","v":{"$error":"#N/A"}}]
["2023-11-27",null,1,155017,"Culture","Retour Provision RAISSA LUSINE",88,null,null,{"$f":"VLOOKUP(D339,NOMS!$A:$B,2,FALSE)","v":"RAISSA LUSINE"},17]
["2023-11-27",null,7,787500,null,"Retour Provision RAISSA LUSINE",null,88,null,{"$f":"VLOOKUP(D340,NOMS!$A:$B,2,FALSE)","v":{"$error":"#N/A"}}]
["2023-11-27",null,4,421017,"Culture","ASC RAISSA LUSINE",88,null,null,{"$f":"VLOOKUP(D341,NOMS!$A:$B,2,FALSE)","v":{"$error":"#N/A"}}]
["2023-11-27",null,5,512100,null,"ASC RAISSA LUSINE",null,88,null,{"$f":"VLOOKUP(D342,NOMS!$A:$B,2,FALSE)","v":{"$error":"#N/A"}}]
["2023-11-27",null,6,647000,null,"ASC RAISSA LUSINE",88,null,null,{"$f":"VLOOKUP(D343,NOMS!$A:$B,2,FALSE)","v":{"$error":"#N/A"}}]
["2023-11-27",null,4,421017,"Culture","ASC RAISSA LUSINE",null,88,null,{"$f":"VLOOKUP(D344,NOMS!$A:$B,2,FALSE)","v":{"$error":"#N/A"}}]
["2023-12-01",null,1,155018,"Voyage","Retour Provision Xavier CORBIN",2000,null,null,{"$f":"VLOOKUP(D345,NOMS!$A:$B,2,FALSE)","v":"Xavier CORBIN"},18]
["2023-12-01",null,7,787500,null,"Retour Provision Xavier CORBIN",null,2000,null,{"$f":"VLOOKUP(D346,NOMS!$A:$B,2,FALSE)","v":{"$error":"#N/A"}}]
["2023-12-01",null,4,421018,"Voyage","ASC Xavier CORBIN",2000,null,null,{"$f":"VLOOKUP(D347,NOMS!$A:$B,2,FALSE)","v":{"$error":"#N/A"}}]
["2023-12-01",null,5,512100,null,"ASC Xavier CORBIN",null,2000,null,{"$f":"VLOOKUP(D348,NOMS!$A:$B,2,FALSE)","v":{"$error":"#N/A"}}]
["2023-12-01",null,6,647000,null,"ASC Xavier CORBIN",2000,null,null,{"$f":"VLOOKUP(D349,NOMS!$A:$B,2,FALSE)","v":{"$error":"#N/A"}}]
["2023-12-01",null,4,421018,"Voyage","ASC Xavier CORBIN",null,2000,null,{"$f":"VLOOKUP(D350,NOMS!$A:$B,2,FALSE)","v":{"$error":"#N/A"}}]
["2023-12-19",null,1,155017,"Culture","Retour Provision RAISSA LUSINE",87.1,null,null,{"$f":"VLOOKUP(D351,NOMS!$A:$B,2,FALSE)","v":"RAISSA LUSINE"},"17"]
["2023-12-19",null,7,787500,null,"Retour Provision RAISSA LUSINE",null,87.1,null,{"$f":"VLOOKUP(D352,NOMS!$A:$B,2,FALSE)","v":{"$error":"#N/A"}}]
["2023-12-19",null,4,421017,"Culture","ASC RAISSA LUSINE",87.1,null,null,{"$f":"VLOOKUP(D353,NOMS!$A:$B,2,FALSE)","v":{"$error":"#N/A"}}]
["2023-12-19",null,5,512100,null,"ASC RAISSA LUSINE",null,87.1,null,{"$f":"VLOOKUP(D354,NOMS!$A:$B,2,FALSE)","v":{"$error":"#N/A"}}]
["2023-12-19",null,6,647000,null,"ASC RAISSA LUSINE",87.1,null,null,{"$f":"VLOOKUP(D355,NOMS!$A:$B,2,FALSE)","v":{"$error":"#N/A"}}]
["2023-12-19",null,4,421017,"Culture","ASC RAISSA LUSINE",null,87.1,null,{"$f":"VLOOKUP(D356,NOMS!$A:$B,2,FALSE)","v":{"$error":"#N/A"}}]
["2023-12-07",null,5,512100,null,"Contribution ASC reçue de l’employeur",18453,null,null,{"$f":"VLOOKUP(D357,NOMS!$A:$B,2,FALSE)","v":{"$error":"#N/A"}}]
["2023-12-07",null,7,756020,null,"Contribution ASC reçue de l’employeur",null,18453,null,{"$f":"VLOOKUP(D358,NOMS!$A:$B,2,FALSE)","v":{"$error":"#N/A"}}]
["2023-12-15",null,1,155030,"Culture","Retour Provision MAILINE FIDOL",214.61,null,null,{"$f":"VLOOKUP(D359,NOMS!$A:$B,2,FALSE)","v":"MAILINE FIDOL"},30]
["2023-12-15",null,7,787500,null,"Retour Provision MAILINE FIDOL",null,214.61,null,{"$f":"VLOOKUP(D360,NOMS!$A:$B,2,FALSE)","v":{"$error":"#N/A"}}]
["2023-12-15",null,4,421030,"Culture","ASC MAILINE FIDOL",214.61,null,null,{"$f":"VLOOKUP(D361,NOMS!$A:$B,2,FALSE)","v":{"$error":"#N/A"}}]
["2023-12-15",null,5,512100,null,"ASC MAILINE FIDOL",null,214.61,null,{"$f":"VLOOKUP(D362,NOMS!$A:$B,2,FALSE)","v":{"$error":"#N/A"}}]
["2023-12-15",null,6,647000,null,"ASC MAILINE FIDOL",214.61,null,null,{"$f":"VLOOKUP(D363,NOMS!$A:$B,2,FALSE)","v":{"$error":"#N/A"}}]
["2023-12-15",null,4,421030,"Culture","ASC MAILINE FIDOL",null,214.61,null,{"$f":"VLOOKUP(D364,NOMS!$A:$B,2,FALSE)","v":{"$error":"#N/A"}}]
["2023-12-15",null,1,155029,"NOEL SALARIE","Retour Provision Grenelle Triveillot",170,null,null,{"$f":"VLOOKUP(D365,NOMS!$A:$B,2,FALSE)","v":"Grenelle Triveillot"},29]
["2023-12-15",null,7,787500,null,"Retour Provision Grenelle Triveillot",null,170,null,{"$f":"VLOOKUP(D366,NOMS!$A:$B,2,FALSE)","v":{"$error":"#N/A"}}]
["2023-12-15",null,4,421029,"NOEL SALARIE","ASC Grenelle Triveillot",170,null,null,{"$f":"VLOOKUP(D367,NOMS!$A:$B,2,FALSE)","v":{"$error":"#N/A"}}]
["2023-12-15",null,5,512100,null,"ASC Grenelle Triveillot",null,170,null,{"$f":"VLOOKUP(D368,NOMS!$A:$B,2,FALSE)","v":{"$error":"#N/A"}}]
["2023-12-15",null,6,647000,null,"ASC Grenelle Triveillot",170,null,null,{"$f":"VLOOKUP(D369,NOMS!$A:$B,2,FALSE)","v":{"$error":"#N/A"}}]
["2023-12-15",null,4,421029,"NOEL SALARIE","ASC Grenelle Triveillot",null,170,null,{"$f":"VLOOKUP(D370,NOMS!$A:$B,2,FALSE)","v":{"$error":"#N/A"}}]
["2023-12-15",null,1,155029,"Voyage","Retour Provision Grenelle Triveillot",259.17,null,null,{"$f":"VLOOKUP(D371,NOMS!$A:$B,2,FALSE)","v":"Grenelle Triveillot"},29]
["2023-12-15",null,7,787500,null,"Retour Provision Grenelle Triveillot",null,259.17,null,{"$f":"VLOOKUP(D372,NOMS!$A:$B,2,FALSE)","v":{"$error":"#N/A"}}]
["2023-12-15",null,4,421029,"Voyage","ASC Grenelle Triveillot",259.17,null,null,{"$f":"VLOOKUP(D373,NOMS!$A:$B,2,FALSE)","v":{"$error":"#N/A"}}]
["2023-12-15",null,5,512100,null,"ASC Grenelle Triveillot",null,259.17,null,{"$f":"VLOOKUP(D374,NOMS!$A:$B,2,FALSE)","v":{"$error":"#N/A"}}]
["2023-12-15",null,6,647000,null,"ASC Grenelle Triveillot",259.17,null,null,{"$f":"VLOOKUP(D375,NOMS!$A:$B,2,FALSE)","v":{"$error":"#N/A"}}]
["2023-12-15",null,4,421029,"Voyage","ASC Grenelle Triveillot",null,259.17,null,{"$f":"VLOOKUP(D376,NOMS!$A:$B,2,FALSE)","v":{"$error":"#N/A"}}]
["2023-12-15",null,1,155029,"Sport et loisirs","Retour Provision Grenelle Triveillot",429,null,null,{"$f":"VLOOKUP(D377,NOMS!$A:$B,2,FALSE)","v":"Grenelle Triveillot"},29]
["2023-12-15",null,7,787500,null,"Retour Provision Grenelle Triveillot",null,429,null,{"$f":"VLOOKUP(D378,NOMS!$A:$B,2,FALSE)","v":{"$error":"#N/A"}}]
["2023-12-15",null,4,421029,"Sport et loisirs","ASC Grenelle Triveillot",429,null,null,{"$f":"VLOOKUP(D379,NOMS!$A:$B,2,FALSE)","v":{"$error":"#N/A"}}]
["2023-12-15",null,5,512100,null,"ASC Grenelle Triveillot",null,429,null,{"$f":"VLOOKUP(D380,NOMS!$A:$B,2,FALSE)","v":{"$error":"#N/A"}}]
["2023-12-15",null,6,647000,null,"ASC Grenelle Triveillot",429,null,null,{"$f":"VLOOKUP(D381,NOMS!$A:$B,2,FALSE)","v":{"$error":"#N/A"}}]
["2023-12-15",null,4,421029,"Sport et loisirs","ASC Grenelle Triveillot",null,429,null,{"$f":"VLOOKUP(D382,NOMS!$A:$B,2,FALSE)","v":{"$error":"#N/A"}}]
["2023-12-19",null,1,155029,"Voyage","Retour Provision Grenelle Triveillot",203.13,null,null,{"$f":"VLOOKUP(D383,NOMS!$A:$B,2,FALSE)","v":"Grenelle Triveillot"},29]
["2023-12-19",null,7,787500,null,"Retour Provision Grenelle Triveillot",null,203.13,null,{"$f":"VLOOKUP(D384,NOMS!$A:$B,2,FALSE)","v":{"$error":"#N/A"}}]
["2023-12-19",null,4,421029,"Voyage","ASC Grenelle Triveillot",203.13,null,null,{"$f":"VLOOKUP(D385,NOMS!$A:$B,2,FALSE)","v":{"$error":"#N/A"}}]
["2023-12-19",null,5,512100,null,"ASC Grenelle Triveillot",null,203.13,null,{"$f":"VLOOKUP(D386,NOMS!$A:$B,2,FALSE)","v":{"$error":"#N/A"}}]
["2023-12-19",null,6,647000,null,"ASC Grenelle Triveillot",203.13,null,null,{"$f":"VLOOKUP(D387,NOMS!$A:$B,2,FALSE)","v":{"$error":"#N/A"}}]
["2023-12-19",null,4,421029,"Voyage","ASC Grenelle Triveillot",null,203.13,null,{"$f":"VLOOKUP(D388,NOMS!$A:$B,2,FALSE)","v":{"$error":"#N/A"}}]
["2023-12-19",null,1,155017,"Voyage","Retour Provision RAISSA LUSINE",946.8,null,null,{"$f":"VLOOKUP(D389,NOMS!$A:$B,2,FALSE)","v":"RAISSA LUSINE"},"17"]
["2023-12-19",null,7,787500,null,"Retour Provision RAISSA LUSINE",null,946.8,null,{"$f":"VLOOKUP(D390,NOMS!$A:$B,2,FALSE)","v":{"$error":"#N/A"}}]
["2023-12-19",null,4,421017,"Voyage","ASC RAISSA LUSINE",946.8,null,null,{"$f":"VLOOKUP(D391,NOMS!$A:$B,2,FALSE)","v":{"$error":"#N/A"}}]
["2023-12-19",null,5,512100,null,"ASC RAISSA LUSINE",null,946.8,null,{"$f":"VLOOKUP(D392,NOMS!$A:$B,2,FALSE)","v":{"$error":"#N/A"}}]
["2023-12-19",null,6,647000,null,"ASC RAISSA LUSINE",946.8,null,null,{"$f":"VLOOKUP(D393,NOMS!$A:$B,2,FALSE)","v":{"$error":"#N/A"}}]
["2023-12-19",null,4,421017,"Voyage","ASC RAISSA LUSINE",null,946.8,null,{"$f":"VLOOKUP(D394,NOMS!$A:$B,2,FALSE)","v":{"$error":"#N/A"}}]
["2023-12-05",null,5,512101,null,"Subvention de fonctionnement reçue l’employeur",5336,null,null,{"$f":"VLOOKUP(D395,NOMS!$A:$B,2,FALSE)","v":{"$error":"#N/A"}}]
["2023-12-05",null,7,756010,null,"Subvention de fonctionnement reçue l’employeur",null,5336,null,{"$f":"VLOOKUP(D396,NOMS!$A:$B,2,FALSE)","v":{"$error":"#N/A"}}]
["2023-12-26",null,1,155021,"Voyage","Retour Provision Max NOSIBOR",2000,null,null,{"$f":"VLOOKUP(D397,NOMS!$A:$B,2,FALSE)","v":"Max NOSIBOR"},"21"]
["2023-12-26",null,7,787500,null,"Retour Provision Max NOSIBOR",null,2000,null,{"$f":"VLOOKUP(D398,NOMS!$A:$B,2,FALSE)","v":{"$error":"#N/A"}}]
["2023-12-26",null,4,421021,"Voyage","ASC Max NOSIBOR",2000,null,null,{"$f":"VLOOKUP(D399,NOMS!$A:$B,2,FALSE)","v":{"$error":"#N/A"}}]
["2023-12-26",null,5,512100,null,"ASC Max NOSIBOR",null,2000,null,{"$f":"VLOOKUP(D400,NOMS!$A:$B,2,FALSE)","v":{"$error":"#N/A"}}]
["2023-12-26",null,6,647000,null,"ASC Max NOSIBOR",2000,null,null,{"$f":"VLOOKUP(D401,NOMS!$A:$B,2,FALSE)","v":{"$error":"#N/A"}}]
["2023-12-26",null,4,421021,"Voyage","ASC Max NOSIBOR",null,2000,null,{"$f":"VLOOKUP(D402,NOMS!$A:$B,2,FALSE)","v":{"$error":"#N/A"}}]
["2023-12-26",null,1,155003,"Voyage","Retour Provision Lydie RESON",2000,null,null,{"$f":"VLOOKUP(D403,NOMS!$A:$B,2,FALSE)","v":"Lydie RESON"},"03"]
["2023-12-26",null,7,787500,null,"Retour Provision Lydie RESON",null,2000,null,{"$f":"VLOOKUP(D404,NOMS!$A:$B,2,FALSE)","v":{"$error":"#N/A"}}]
["2023-12-26",null,4,421003,"Voyage","ASC Lydie RESON",2000,null,null,{"$f":"VLOOKUP(D405,NOMS!$A:$B,2,FALSE)","v":{"$error":"#N/A"}}]
["2023-12-26",null,5,512100,null,"ASC Lydie RESON",null,2000,null,{"$f":"VLOOKUP(D406,NOMS!$A:$B,2,FALSE)","v":{"$error":"#N/A"}}]
["2023-12-26",null,6,647000,null,"ASC Lydie RESON",2000,null,null,{"$f":"VLOOKUP(D407,NOMS!$A:$B,2,FALSE)","v":{"$error":"#N/A"}}]
["2023-12-26",null,4,421003,"Voyage","ASC Lydie RESON",null,2000,null,{"$f":"VLOOKUP(D408,NOMS!$A:$B,2,FALSE)","v":{"$error":"#N/A"}}]
["2023-12-26",null,1,155009,"Voyage","Retour Provision Eddy LORBEL",1040.83,null,null,{"$f":"VLOOKUP(D409,NOMS!$A:$B,2,FALSE)","v":"Eddy LORBEL"},"09"]
["2023-12-26",null,7,787500,null,"Retour Provision Eddy LORBEL",null,1040.83,null,{"$f":"VLOOKUP(D410,NOMS!$A:$B,2,FALSE)","v":{"$error":"#N/A"}}]
["2023-12-26",null,4,421009,"Voyage","ASC Eddy LORBEL",1040.83,null,null,{"$f":"VLOOKUP(D411,NOMS!$A:$B,2,FALSE)","v":{"$error":"#N/A"}}]
["2023-12-26",null,5,512100,null,"ASC Eddy LORBEL",null,1040.83,null,{"$f":"VLOOKUP(D412,NOMS!$A:$B,2,FALSE)","v":{"$error":"#N/A"}}]
["2023-12-26",null,6,647000,null,"ASC Eddy LORBEL",1040.83,null,null,{"$f":"VLOOKUP(D413,NOMS!$A:$B,2,FALSE)","v":{"$error":"#N/A"}}]
["2023-12-26",null,4,421009,"Voyage","ASC Eddy LORBEL",null,1040.83,null,{"$f":"VLOOKUP(D414,NOMS!$A:$B,2,FALSE)","v":{"$error":"#N/A"}}]
["2023-12-26",null,1,155013,"NOEL enfant1","Retour Provision Christelle CHOUAN",170,null,null,{"$f":"VLOOKUP(D415,NOMS!$A:$B,2,FALSE)","v":"Christelle CHOUAN"},"13"]
["2023-12-26",null,7,787500,null,"Retour Provision Christelle CHOUAN",null,170,null,{"$f":"VLOOKUP(D416,NOMS!$A:$B,2,FALSE)","v":{"$error":"#N/A"}}]
["2023-12-26",null,4,421013,"NOEL enfant1","ASC Christelle CHOUAN",170,null,null,{"$f":"VLOOKUP(D417,NOMS!$A:$B,2,FALSE)","v":{"$error":"#N/A"}}]
["2023-12-26",null,5,512100,null,"ASC Christelle CHOUAN",null,170,null,{"$f":"VLOOKUP(D418,NOMS!$A:$B,2,FALSE)","v":{"$error":"#N/A"}}]
["2023-12-26",null,6,647000,null,"ASC Christelle CHOUAN",170,null,null,{"$f":"VLOOKUP(D419,NOMS!$A:$B,2,FALSE)","v":{"$error":"#N/A"}}]
["2023-12-26",null,4,421013,"NOEL enfant1","ASC Christelle CHOUAN",null,170,null,{"$f":"VLOOKUP(D420,NOMS!$A:$B,2,FALSE)","v":{"$error":"#N/A"}}]
["2023-12-26",null,1,155013,"NOEL enfant2","Retour Provision Christelle CHOUAN",164.97,null,null,{"$f":"VLOOKUP(D421,NOMS!$A:$B,2,FALSE)","v":"Christelle CHOUAN"},"13"]
["2023-12-26",null,7,787500,null,"Retour Provision Christelle CHOUAN",null,164.97,null,{"$f":"VLOOKUP(D422,NOMS!$A:$B,2,FALSE)","v":{"$error":"#N/A"}}]
["2023-12-26",null,4,421013,"NOEL enfant2","ASC Christelle CHOUAN",164.97,null,null,{"$f":"VLOOKUP(D423,NOMS!$A:$B,2,FALSE)","v":{"$error":"#N/A"}}]
["2023-12-26",null,5,512100,null,"ASC Christelle CHOUAN",null,164.97,null,{"$f":"VLOOKUP(D424,NOMS!$A:$B,2,FALSE)","v":{"$error":"#N/A"}}]
["2023-12-26",null,6,647000,null,"ASC Christelle CHOUAN",164.97,null,null,{"$f":"VLOOKUP(D425,NOMS!$A:$B,2,FALSE)","v":{"$error":"#N/A"}}]
["2023-12-26",null,4,421013,"NOEL enfant2","ASC Christelle CHOUAN",null,164.97,null,{"$f":"VLOOKUP(D426,NOMS!$A:$B,2,FALSE)","v":{"$error":"#N/A"}}]
["2023-12-26",null,1,155013,"NOEL SALARIE","Retour Provision Christelle CHOUAN",170,null,null,{"$f":"VLOOKUP(D427,NOMS!$A:$B,2,FALSE)","v":"Christelle CHOUAN"},"13"]
["2023-12-26",null,7,787500,null,"Retour Provision Christelle CHOUAN",null,170,null,{"$f":"VLOOKUP(D428,NOMS!$A:$B,2,FALSE)","v":{"$error":"#N/A"}}]
["2023-12-26",null,4,421013,"NOEL SALARIE","ASC Christelle CHOUAN",170,null,null,{"$f":"VLOOKUP(D429,NOMS!$A:$B,2,FALSE)","v":{"$error":"#N/A"}}]
["2023-12-26",null,5,512100,null,"ASC Christelle CHOUAN",null,170,null,{"$f":"VLOOKUP(D430,NOMS!$A:$B,2,FALSE)","v":{"$error":"#N/A"}}]
["2023-12-26",null,6,647000,null,"ASC Christelle CHOUAN",170,null,null,{"$f":"VLOOKUP(D431,NOMS!$A:$B,2,FALSE)","v":{"$error":"#N/A"}}]
["2023-12-26",null,4,421013,"NOEL SALARIE","ASC Christelle CHOUAN",null,170,null,{"$f":"VLOOKUP(D432,NOMS!$A:$B,2,FALSE)","v":{"$error":"#N/A"}}]
["2023-12-26",null,1,155013,"Voyage","Retour Provision Christelle CHOUAN",342.03,null,null,{"$f":"VLOOKUP(D433,NOMS!$A:$B,2,FALSE)","v":"Christelle CHOUAN"},"13"]
["2023-12-26",null,7,787500,null,"Retour Provision Christelle CHOUAN",null,342.03,null,{"$f":"VLOOKUP(D434,NOMS!$A:$B,2,FALSE)","v":{"$error":"#N/A"}}]
["2023-12-26",null,4,421013,"Voyage","ASC Christelle CHOUAN",342.03,null,null,{"$f":"VLOOKUP(D435,NOMS!$A:$B,2,FALSE)","v":{"$error":"#N/A"}}]
["2023-12-26",null,5,512100,null,"ASC Christelle CHOUAN",null,342.03,null,{"$f":"VLOOKUP(D436,NOMS!$A:$B,2,FALSE)","v":{"$error":"#N/A"}}]
["2023-12-26",null,6,647000,null,"ASC Christelle CHOUAN",342.03,null,null,{"$f":"VLOOKUP(D437,NOMS!$A:$B,2,FALSE)","v":{"$error":"#N/A"}}]
["2023-12-26",null,4,421013,"Voyage","ASC Christelle CHOUAN",null,342.03,null,{"$f":"VLOOKUP(D438,NOMS!$A:$B,2,FALSE)","v":{"$error":"#N/A"}}]
["2023-12-27",null,1,155031,"Voyage","Retour Provision Emilie GUILLAUME",500,null,null,{"$f":"VLOOKUP(D439,NOMS!$A:$B,2,FALSE)","v":"Emilie GUILLAUME"},31]
["2023-12-27",null,7,787500,null,"Retour Provision Emilie GUILLAUME",null,500,null,{"$f":"VLOOKUP(D440,NOMS!$A:$B,2,FALSE)","v":{"$error":"#N/A"}}]
["2023-12-27",null,4,421031,"Voyage","ASC Emilie GUILLAUME",500,null,null,{"$f":"VLOOKUP(D441,NOMS!$A:$B,2,FALSE)","v":{"$error":"#N/A"}}]
["2023-12-27",null,5,512100,null,"ASC Emilie GUILLAUME",null,500,null,{"$f":"VLOOKUP(D442,NOMS!$A:$B,2,FALSE)","v":{"$error":"#N/A"}}]
["2023-12-27",null,6,647000,null,"ASC Emilie GUILLAUME",500,null,null,{"$f":"VLOOKUP(D443,NOMS!$A:$B,2,FALSE)","v":{"$error":"#N/A"}}]
["2023-12-27",null,4,421031,"Voyage","ASC Emilie GUILLAUME",null,500,null,{"$f":"VLOOKUP(D444,NOMS!$A:$B,2,FALSE)","v":{"$error":"#N/A"}}]
["2023-12-28",null,1,155029,"Voyage","Retour Provision Grenelle Triveillot",934.95,null,null,{"$f":"VLOOKUP(D445,NOMS!$A:$B,2,FALSE)","v":"Grenelle Triveillot"},29]
["2023-12-28",null,7,787500,null,"Retour Provision Grenelle Triveillot",null,934.95,null,{"$f":"VLOOKUP(D446,NOMS!$A:$B,2,FALSE)","v":{"$error":"#N/A"}}]
["2023-12-28",null,4,421029,"Voyage","ASC Grenelle Triveillot",934.95,null,null,{"$f":"VLOOKUP(D447,NOMS!$A:$B,2,FALSE)","v":{"$error":"#N/A"}}]
["2023-12-28",null,5,512100,null,"ASC Grenelle Triveillot",null,934.95,null,{"$f":"VLOOKUP(D448,NOMS!$A:$B,2,FALSE)","v":{"$error":"#N/A"}}]
["2023-12-28",null,6,647000,null,"ASC Grenelle Triveillot",934.95,null,null,{"$f":"VLOOKUP(D449,NOMS!$A:$B,2,FALSE)","v":{"$error":"#N/A"}}]
["2023-12-28",null,4,421029,"Voyage","ASC Grenelle Triveillot",null,934.95,null,{"$f":"VLOOKUP(D450,NOMS!$A:$B,2,FALSE)","v":{"$error":"#N/A"}}]
["2023-12-28",null,1,155017,"NOEL SALARIE","Retour Provision RAISSA LUSINE",170,null,null,{"$f":"VLOOKUP(D451,NOMS!$A:$B,2,FALSE)","v":"RAISSA LUSINE"},"17"]
["2023-12-28",null,7,787500,null,"Retour Provision RAISSA LUSINE",null,170,null,{"$f":"VLOOKUP(D452,NOMS!$A:$B,2,FALSE)","v":{"$error":"#N/A"}}]
["2023-12-28",null,4,421017,"NOEL SALARIE","ASC RAISSA LUSINE",170,null,null,{"$f":"VLOOKUP(D453,NOMS!$A:$B,2,FALSE)","v":{"$error":"#N/A"}}]
["2023-12-28",null,5,512100,null,"ASC RAISSA LUSINE",null,170,null,{"$f":"VLOOKUP(D454,NOMS!$A:$B,2,FALSE)","v":{"$error":"#N/A"}}]
["2023-12-28",null,6,647000,null,"ASC RAISSA LUSINE",170,null,null,{"$f":"VLOOKUP(D455,NOMS!$A:$B,2,FALSE)","v":{"$error":"#N/A"}}]
["2023-12-28",null,4,421017,"NOEL SALARIE","ASC RAISSA LUSINE",null,170,null,{"$f":"VLOOKUP(D456,NOMS!$A:$B,2,FALSE)","v":{"$error":"#N/A"}}]
["2023-12-28",null,1,155017,"Voyage","Retour Provision RAISSA LUSINE",148,null,null,{"$f":"VLOOKUP(D457,NOMS!$A:$B,2,FALSE)","v":"RAISSA LUSINE"},"17"]
["2023-12-28",null,7,787500,null,"Retour Provision RAISSA LUSINE",null,148,null,{"$f":"VLOOKUP(D458,NOMS!$A:$B,2,FALSE)","v":{"$error":"#N/A"}}]
["2023-12-28",null,4,421017,"Voyage","ASC RAISSA LUSINE",148,null,null,{"$f":"VLOOKUP(D459,NOMS!$A:$B,2,FALSE)","v":{"$error":"#N/A"}}]
["2023-12-28",null,5,512100,null,"ASC RAISSA LUSINE",null,148,null,{"$f":"VLOOKUP(D460,NOMS!$A:$B,2,FALSE)","v":{"$error":"#N/A"}}]
["2023-12-28",null,6,647000,null,"ASC RAISSA LUSINE",148,null,null,{"$f":"VLOOKUP(D461,NOMS!$A:$B,2,FALSE)","v":{"$error":"#N/A"}}]
["2023-12-28",null,4,421017,"Voyage","ASC RAISSA LUSINE",null,148,null,{"$f":"VLOOKUP(D462,NOMS!$A:$B,2,FALSE)","v":{"$error":"#N/A"}}]
["2023-12-29",null,1,155015,"Voyage","Retour Provision Mireille ROCHE",776,null,null,{"$f":"VLOOKUP(D463,NOMS!$A:$B,2,FALSE)","v":"Mireille ROCHE"},"15"]
["2023-12-29",null,7,787500,null,"Retour Provision Mireille ROCHE",null,776,null,{"$f":"VLOOKUP(D464,NOMS!$A:$B,2,FALSE)","v":{"$error":"#N/A"}}]
["2023-12-29",null,4,421015,"Voyage","ASC Mireille ROCHE",776,null,null,{"$f":"VLOOKUP(D465,NOMS!$A:$B,2,FALSE)","v":{"$error":"#N/A"}}]
["2023-12-29",null,5,512100,null,"ASC Mireille ROCHE",null,776,null,{"$f":"VLOOKUP(D466,NOMS!$A:$B,2,FALSE)","v":{"$error":"#N/A"}}]
["2023-12-29",null,6,647000,null,"ASC Mireille ROCHE",776,null,null,{"$f":"VLOOKUP(D467,NOMS!$A:$B,2,FALSE)","v":{"$error":"#N/A"}}]
["2023-12-29",null,4,421015,"Voyage","ASC Mireille ROCHE",null,776,null,{"$f":"VLOOKUP(D468,NOMS!$A:$B,2,FALSE)","v":{"$error":"#N/A"}}]
[null,null,null,null,null,null,null,null,null,{"$f":"VLOOKUP(D469,NOMS!$A:$B,2,FALSE)","v":{"$error":"#N/A"}}]
[null,null,null,null,null,null,null,null,null,{"$f":"VLOOKUP(D470,NOMS!$A:$B,2,FALSE)","v":{"$error":"#N/A"}}]
[null,null,null,null,null,null,null,null,null,{"$f":"VLOOKUP(D471,NOMS!$A:$B,2,FALSE)","v":{"$error":"#N/A"}}]
[null,null,null,null,null,null,null,null,null,{"$f":"VLOOKUP(D472,NOMS!$A:$B,2,FALSE)","v":{"$error":"#N/A"}}]
[null,null,null,null,null,null,null,null,null,{"$f":"VLOOKUP(D473,NOMS!$A:$B,2,FALSE)","v":{"$error":"#N/A"}}]
[null,null,null,null,null,null,null,null,null,{"$f":"VLOOKUP(D474,NOMS!$A:$B,2,FALSE)","v":{"$error":"#N/A"}}]
[null,null,null,null,null,null,null,null,null,{"$f":"VLOOKUP(D475,NOMS!$A:$B,2,FALSE)","v":{"$error":"#N/A"}}]
[null,null,null,null,null,null,null,null,null,{"$f":"VLOOKUP(D476,NOMS!$A:$B,2,FALSE)","v":{"$error":"#N/A"}}]
[null,null,null,null,null,null,null,null,null,{"$f":"VLOOKUP(D477,NOMS!$A:$B,2,FALSE)","v":{"$error":"#N/A"}}]
[null,null,null,null,null,null,null,null,null,{"$f":"VLOOKUP(D478,NOMS!$A:$B,2,FALSE)","v":{"$error":"#N/A"}}]
[null,null,null,null,null,null,null,null,null,{"$f":"VLOOKUP(D479,NOMS!$A:$B,2,FALSE)","v":{"$error":"#N/A"}}]
[null,null,null,null,null,null,null,null,null,{"$f":"VLOOKUP(D480,NOMS!$A:$B,2,FALSE)","v":{"$error":"#N/A"}}]
[null,null,null,null,null,null,null,null,null,{"$f":"VLOOKUP(D481,NOMS!$A:$B,2,FALSE)","v":{"$error":"#N/A"}}]
[null,null,null,null,null,null,null,null,null,{"$f":"VLOOKUP(D482,NOMS!$A:$B,2,FALSE)","v":{"$error":"#N/A"}}]
[null,null,null,null,null,null,null,null,null,{"$f":"VLOOKUP(D483,NOMS!$A:$B,2,FALSE)","v":{"$error":"#N/A"}}]
[null,null,null,null,null,null,null,null,null,{"$f":"VLOOKUP(D484,NOMS!$A:$B,2,FALSE)","v":{"$error":"#N/A"}}]
[null,null,null,null,null,null,null,null,null,{"$f":"VLOOKUP(D485,NOMS!$A:$B,2,FALSE)","v":{"$error":"#N/A"}}]
[null,null,null,null,null,null,null,null,null,{"$f":"VLOOKUP(D486,NOMS!$A:$B,2,FALSE)","v":{"$error":"#N/A"}}]
[null,null,null,null,null,null,null,null,null,{"$f":"VLOOKUP(D487,NOMS!$A:$B,2,FALSE)","v":{"$error":"#N/A"}}]
[null,null,null,null,null,null,null,null,null,{"$f":"VLOOKUP(D488,NOMS!$A:$B,2,FALSE)","v":{"$error":"#N/A"}}]
[null,null,null,null,null,null,null,null,null,{"$f":"VLOOKUP(D489,NOMS!$A:$B,2,FALSE)","v":{"$error":"#N/A"}}]
[null,null,null,null,null,null,null,null,null,{"$f":"VLOOKUP(D490,NOMS!$A:$B,2,FALSE)","v":{"$error":"#N/A"}}]
[null,null,null,null,null,null,null,null,null,{"$f":"VLOOKUP(D491,NOMS!$A:$B,2,FALSE)","v":{"$error":"#N/A"}}]
[null,null,null,null,null,null,null,null,null,{"$f":"VLOOKUP(D492,NOMS!$A:$B,2,FALSE)","v":{"$error":"#N/A"}}]
[null,null,null,null,null,null,null,null,null,{"$f":"VLOOKUP(D493,NOMS!$A:$B,2,FALSE)","v":{"$error":"#N/A"}}]
[null,null,null,null,null,null,null,null,null,{"$f":"VLOOKUP(D494,NOMS!$A:$B,2,FALSE)","v":{"$error":"#N/A"}}]
[null,null,null,null,null,null,null,null,null,{"$f":"VLOOKUP(D495,NOMS!$A:$B,2,FALSE)","v":{"$error":"#N/A"}}]
[null,null,null,null,null,null,null,null,null,{"$f":"VLOOKUP(D496,NOMS!$A:$B,2,FALSE)","v":{"$error":"#N/A"}}]
[null,null,null,null,null,null,null,null,null,{"$f":"VLOOKUP(D497,NOMS!$A:$B,2,FALSE)","v":{"$error":"#N/A"}}]
[null,null,null,null,null,null,null,null,null,{"$f":"VLOOKUP(D498,NOMS!$A:$B,2,FALSE)","v":{"$error":"#N/A"}}]
[null,null,null,null,null,null,null,null,null,{"$f":"VLOOKUP(D499,NOMS!$A:$B,2,FALSE)","v":{"$error":"#N/A"}}]
[null,null,null,null,null,null,null,null,null,{"$f":"VLOOKUP(D500,NOMS!$A:$B,2,FALSE)","v":{"$error":"#N/A"}}]
[null,null,null,null,null,null,null,null,null,{"$f":"VLOOKUP(D501,NOMS!$A:$B,2,FALSE)","v":{"$error":"#N/A"}}]
[null,null,null,null,null,null,null,null,null,{"$f":"VLOOKUP(D502,NOMS!$A:$B,2,FALSE)","v":{"$error":"#N/A"}}]
[null,null,null,null,null,null,null,null,null,{"$f":"VLOOKUP(D503,NOMS!$A:$B,2,FALSE)","v":{"$error":"#N/A"}}]
[null,null,null,null,null,null,null,null,null,{"$f":"VLOOKUP(D504,NOMS!$A:$B,2,FALSE)","v":{"$error":"#N/A"}}]
[null,null,null,null,null,null,null,null,null,{"$f":"VLOOKUP(D505,NOMS!$A:$B,2,FALSE)","v":{"$error":"#N/A"}}]
[null,null,null,null,null,null,null,null,null,{"$f":"VLOOKUP(D506,NOMS!$A:$B,2,FALSE)","v":{"$error":"#N/A"}}]
[null,null,null,null,null,null,null,null,null,{"$f":"VLOOKUP(D507,NOMS!$A:$B,2,FALSE)","v":{"$error":"#N/A"}}]
[null,null,null,null,null,null,null,null,null,{"$f":"VLOOKUP(D508,NOMS!$A:$B,2,FALSE)","v":{"$error":"#N/A"}}]
[null,null,null,null,null,null,null,null,null,{"$f":"VLOOKUP(D509,NOMS!$A:$B,2,FALSE)","v":{"$error":"#N/A"}}]
[null,null,null,null,null,null,null,null,null,{"$f":"VLOOKUP(D510,NOMS!$A:$B,2,FALSE)","v":{"$error":"#N/A"}}]
[null,null,null,null,null,null,null,null,null,{"$f":"VLOOKUP(D511,NOMS!$A:$B,2,FALSE)","v":{"$error":"#N/A"}}]
[null,null,null,null,null,null,null,null,null,{"$f":"VLOOKUP(D512,NOMS!$A:$B,2,FALSE)","v":{"$error":"#N/A"}}]
[null,null,null,null,null,null,null,null,null,{"$f":"VLOOKUP(D513,NOMS!$A:$B,2,FALSE)","v":{"$error":"#N/A"}}]
[null,null,null,null,null,null,null,null,null,{"$f":"VLOOKUP(D514,NOMS!$A:$B,2,FALSE)","v":{"$error":"#N/A"}}]
[null,null,null,null,null,null,null,null,null,{"$f":"VLOOKUP(D515,NOMS!$A:$B,2,FALSE)","v":{"$error":"#N/A"}}]
[null,null,null,null,null,null,null,null,null,{"$f":"VLOOKUP(D516,NOMS!$A:$B,2,FALSE)","v":{"$error":"#N/A"}}]
[null,null,null,null,null,null,null,null,null,{"$f":"VLOOKUP(D517,NOMS!$A:$B,2,FALSE)","v":{"$error":"#N/A"}}]
[null,null,null,null,null,null,null,null,null,{"$f":"VLOOKUP(D518,NOMS!$A:$B,2,FALSE)","v":{"$error":"#N/A"}}]
[null,null,null,null,null,null,null,null,null,{"$f":"VLOOKUP(D519,NOMS!$A:$B,2,FALSE)","v":{"$error":"#N/A"}}]
[null,null,null,null,null,null,null,null,null,{"$f":"VLOOKUP(D520,NOMS!$A:$B,2,FALSE)","v":{"$error":"#N/A"}}]
[null,null,null,null,null,null,null,null,null,{"$f":"VLOOKUP(D521,NOMS!$A:$B,2,FALSE)","v":{"$error":"#N/A"}}]
[null,null,null,null,null,null,null,null,null,{"$f":"VLOOKUP(D522,NOMS!$A:$B,2,FALSE)","v":{"$error":"#N/A"}}]
[null,null,null,null,null,null,null,null,null,{"$f":"VLOOKUP(D523,NOMS!$A:$B,2,FALSE)","v":{"$error":"#N/A"}}]
[null,null,null,null,null,null,null,null,null,{"$f":"VLOOKUP(D524,NOMS!$A:$B,2,FALSE)","v":{"$error":"#N/A"}}]
[null,null,null,null,null,null,null,null,null,{"$f":"VLOOKUP(D525,NOMS!$A:$B,2,FALSE)","v":{"$error":"#N/A"}}]
[null,null,null,null,null,null,null,null,null,{"$f":"VLOOKUP(D526,NOMS!$A:$B,2,FALSE)","v":{"$error":"#N/A"}}]
[null,null,null,null,null,null,null,null,null,{"$f":"VLOOKUP(D527,NOMS!$A:$B,2,FALSE)","v":{"$error":"#N/A"}}]
[null,null,null,null,null,null,null,null,null,{"$f":"VLOOKUP(D528,NOMS!$A:$B,2,FALSE)","v":{"$error":"#N/A"}}]
[null,null,null,null,null,null,null,null,null,{"$f":"VLOOKUP(D529,NOMS!$A:$B,2,FALSE)","v":{"$error":"#N/A"}}]
[null,null,null,null,null,null,null,null,null,{"$f":"VLOOKUP(D530,NOMS!$A:$B,2,FALSE)","v":{"$error":"#N/A"}}]
[null,null,null,null,null,null,null,null,null,{"$f":"VLOOKUP(D531,NOMS!$A:$B,2,FALSE)","v":{"$error":"#N/A"}}]
[null,null,null,null,null,null,null,null,null,{"$f":"VLOOKUP(D532,NOMS!$A:$B,2,FALSE)","v":{"$error":"#N/A"}}]
[null,null,null,null,null,null,null,null,null,{"$f":"VLOOKUP(D533,NOMS!$A:$B,2,FALSE)","v":{"$error":"#N/A"}}]
[null,null,null,null,null,null,null,null,null,{"$f":"VLOOKUP(D534,NOMS!$A:$B,2,FALSE)","v":{"$error":"#N/A"}}]
[null,null,null,null,null,null,null,null,null,{"$f":"VLOOKUP(D535,NOMS!$A:$B,2,FALSE)","v":{"$error":"#N/A"}}]
[null,null,null,null,null,null,null,null,null,{"$f":"VLOOKUP(D536,NOMS!$A:$B,2,FALSE)","v":{"$error":"#N/A"}}]
[null,null,null,null,null,null,null,null,null,{"$f":"VLOOKUP(D537,NOMS!$A:$B,2,FALSE)","v":{"$error":"#N/A"}}]
[null,null,null,null,null,null,null,null,null,{"$f":"VLOOKUP(D538,NOMS!$A:$B,2,FALSE)","v":{"$error":"#N/A"}}]
[null,null,null,null,null,null,null,null,null,{"$f":"VLOOKUP(D539,NOMS!$A:$B,2,FALSE)","v":{"$error":"#N/A"}}]
[null,null,null,null,null,null,null,null,null,{"$f":"VLOOKUP(D540,NOMS!$A:$B,2,FALSE)","v":{"$error":"#N/A"}}]
[null,null,null,null,null,null,null,null,null,{"$f":"VLOOKUP(D541,NOMS!$A:$B,2,FALSE)","v":{"$error":"#N/A"}}]
[null,null,null,null,null,null,null,null,null,{"$f":"VLOOKUP(D542,NOMS!$A:$B,2,FALSE)","v":{"$error":"#N/A"}}]
[null,null,null,null,null,null,null,null,null,{"$f":"VLOOKUP(D543,NOMS!$A:$B,2,FALSE)","v":{"$error":"#N/A"}}]
[null,null,null,null,null,null,null,null,null,{"$f":"VLOOKUP(D544,NOMS!$A:$B,2,FALSE)","v":{"$error":"#N/A"}}]
[null,null,null,null,null,null,null,null,null,{"$f":"VLOOKUP(D545,NOMS!$A:$B,2,FALSE)","v":{"$error":"#N/A"}}]
[null,null,null,null,null,null,null,null,null,{"$f":"VLOOKUP(D546,NOMS!$A:$B,2,FALSE)","v":{"$error":"#N/A"}}]
[null,null,null,null,null,null,null,null,null,{"$f":"VLOOKUP(D547,NOMS!$A:$B,2,FALSE)","v":{"$error":"#N/A"}}]
[null,null,null,null,null,null,null,null,null,{"$f":"VLOOKUP(D548,NOMS!$A:$B,2,FALSE)","v":{"$error":"#N/A"}}]
[null,null,null,null,null,null,null,null,null,{"$f":"VLOOKUP(D549,NOMS!$A:$B,2,FALSE)","v":{"$error":"#N/A"}}]
[null,null,null,null,null,null,null,null,null,{"$f":"VLOOKUP(D550,NOMS!$A:$B,2,FALSE)","v":{"$error":"#N/A"}}]
[null,null,null,null,null,null,null,null,null,{"$f":"VLOOKUP(D551,NOMS!$A:$B,2,FALSE)","v":{"$error":"#N/A"}}]
[null,null,null,null,null,null,null,null,null,{"$f":"VLOOKUP(D552,NOMS!$A:$B,2,FALSE)","v":{"$error":"#N/A"}}]
[null,null,null,null,null,null,null,null,null,{"$f":"VLOOKUP(D553,NOMS!$A:$B,2,FALSE)","v":{"$error":"#N/A"}}]
[null,null,null,null,null,null,null,null,null,{"$f":"VLOOKUP(D554,NOMS!$A:$B,2,FALSE)","v":{"$error":"#N/A"}}]
[null,null,null,null,null,null,null,null,null,{"$f":"VLOOKUP(D555,NOMS!$A:$B,2,FALSE)","v":{"$error":"#N/A"}}]
[null,null,null,null,null,null,null,null,null,{"$f":"VLOOKUP(D556,NOMS!$A:$B,2,FALSE)","v":{"$error":"#N/A"}}]
[null,null,null,null,null,null,null,null,null,{"$f":"VLOOKUP(D557,NOMS!$A:$B,2,FALSE)","v":{"$error":"#N/A"}}]
[null,null,null,null,null,null,null,null,null,{"$f":"VLOOKUP(D558,NOMS!$A:$B,2,FALSE)","v":{"$error":"#N/A"}}]
[null,null,null,null,null,null,null,null,null,{"$f":"VLOOKUP(D559,NOMS!$A:$B,2,FALSE)","v":{"$error":"#N/A"}}]
[null,null,null,null,null,null,null,null,null,{"$f":"VLOOKUP(D560,NOMS!$A:$B,2,FALSE)","v":{"$error":"#N/A"}}]
[null,null,null,null,null,null,null,null,null,{"$f":"VLOOKUP(D561,NOMS!$A:$B,2,FALSE)","v":{"$error":"#N/A"}}]
[null,null,null,null,null,null,null,null,null,{"$f":"VLOOKUP(D562,NOMS!$A:$B,2,FALSE)","v":{"$error":"#N/A"}}]
[null,null,null,null,null,null,null,null,null,{"$f":"VLOOKUP(D563,NOMS!$A:$B,2,FALSE)","v":{"$error":"#N/A"}}]
[null,null,null,null,null,null,null,null,null,{"$f":"VLOOKUP(D564,NOMS!$A:$B,2,FALSE)","v":{"$error":"#N/A"}}]
[null,null,null,null,null,null,null,null,null,{"$f":"VLOOKUP(D565,NOMS!$A:$B,2,FALSE)","v":{"$error":"#N/A"}}]
[null,null,null,null,null,null,null,null,null,{"$f":"VLOOKUP(D566,NOMS!$A:$B,2,FALSE)","v":{"$error":"#N/A"}}]
[null,null,null,null,null,null,null,null,null,{"$f":"VLOOKUP(D567,NOMS!$A:$B,2,FALSE)","v":{"$error":"#N/A"}}]
[null,null,null,null,null,null,null,null,null,{"$f":"VLOOKUP(D568,NOMS!$A:$B,2,FALSE)","v":{"$error":"#N/A"}}]
[null,null,null,null,null,null,null,null,null,{"$f":"VLOOKUP(D569,NOMS!$A:$B,2,FALSE)","v":{"$error":"#N/A"}}]
[null,null,null,null,null,null,null,null,null,{"$f":"VLOOKUP(D570,NOMS!$A:$B,2,FALSE)","v":{"$error":"#N/A"}}]
[null,null,null,null,null,null,null,null,null,{"$f":"VLOOKUP(D571,NOMS!$A:$B,2,FALSE)","v":{"$error":"#N/A"}}]
[null,null,null,null,null,null,null,null,null,{"$f":"VLOOKUP(D572,NOMS!$A:$B,2,FALSE)","v":{"$error":"#N/A"}}]
[null,null,null,null,null,null,null,null,null,{"$f":"VLOOKUP(D573,NOMS!$A:$B,2,FALSE)","v":{"$error":"#N/A"}}]
[null,null,null,null,null,null,null,null,null,{"$f":"VLOOKUP(D574,NOMS!$A:$B,2,FALSE)","v":{"$error":"#N/A"}}]
[null,null,null,null,null,null,null,null,null,{"$f":"VLOOKUP(D575,NOMS!$A:$B,2,FALSE)","v":{"$error":"#N/A"}}]
[null,null,null,null,null,null,null,null,null,{"$f":"VLOOKUP(D576,NOMS!$A:$B,2,FALSE)","v":{"$error":"#N/A"}}]
[null,null,null,null,null,null,null,null,null,{"$f":"VLOOKUP(D577,NOMS!$A:$B,2,FALSE)","v":{"$error":"#N/A"}}]
[null,null,null,null,null,null,null,null,null,{"$f":"VLOOKUP(D578,NOMS!$A:$B,2,FALSE)","v":{"$error":"#N/A"}}]
[null,null,null,null,null,null,null,null,null,{"$f":"VLOOKUP(D579,NOMS!$A:$B,2,FALSE)","v":{"$error":"#N/A"}}]
[null,null,null,null,null,null,null,null,null,{"$f":"VLOOKUP(D580,NOMS!$A:$B,2,FALSE)","v":{"$error":"#N/A"}}]
[null,null,null,null,null,null,null,null,null,{"$f":"VLOOKUP(D581,NOMS!$A:$B,2,FALSE)","v":{"$error":"#N/A"}}]
[null,null,null,null,null,null,null,null,null,{"$f":"VLOOKUP(D582,NOMS!$A:$B,2,FALSE)","v":{"$error":"#N/A"}}]
[null,null,null,null,null,null,null,null,null,{"$f":"VLOOKUP(D583,NOMS!$A:$B,2,FALSE)","v":{"$error":"#N/A"}}]
[null,null,null,null,null,null,null,null,null,{"$f":"VLOOKUP(D584,NOMS!$A:$B,2,FALSE)","v":{"$error":"#N/A"}}]
[null,null,null,null,null,null,null,null,null,{"$f":"VLOOKUP(D585,NOMS!$A:$B,2,FALSE)","v":{"$error":"#N/A"}}]
[null,null,null,null,null,null,null,null,null,{"$f":"VLOOKUP(D586,NOMS!$A:$B,2,FALSE)","v":{"$error":"#N/A"}}]
[null,null,null,null,null,null,null,null,null,{"$f":"VLOOKUP(D587,NOMS!$A:$B,2,FALSE)","v":{"$error":"#N/A"}}]
[null,null,null,null,null,null,null,null,null,{"$f":"VLOOKUP(D588,NOMS!$A:$B,2,FALSE)","v":{"$error":"#N/A"}}]
[null,null,null,null,null,null,null,null,null,{"$f":"VLOOKUP(D589,NOMS!$A:$B,2,FALSE)","v":{"$error":"#N/A"}}]
[null,null,null,null,null,null,null,null,null,{"$f":"VLOOKUP(D590,NOMS!$A:$B,2,FALSE)","v":{"$error":"#N/A"}}]
[null,null,null,null,null,null,null,null,null,{"$f":"VLOOKUP(D591,NOMS!$A:$B,2,FALSE)","v":{"$error":"#N/A"}}]
[null,null,null,null,null,null,null,null,null,{"$f":"VLOOKUP(D592,NOMS!$A:$B,2,FALSE)","v":{"$error":"#N/A"}}]
[null,null,null,null,null,null,null,null,null,{"$f":"VLOOKUP(D593,NOMS!$A:$B,2,FALSE)","v":{"$error":"#N/A"}}]
[null,null,null,null,null,null,null,null,null,{"$f":"VLOOKUP(D594,NOMS!$A:$B,2,FALSE)","v":{"$error":"#N/A"}}]
[null,null,null,null,null,null,null,null,null,{"$f":"VLOOKUP(D595,NOMS!$A:$B,2,FALSE)","v":{"$error":"#N/A"}}]
[null,null,null,null,null,null,null,null,null,{"$f":"VLOOKUP(D596,NOMS!$A:$B,2,FALSE)","v":{"$error":"#N/A"}}]
[null,null,null,null,null,null,null,null,null,{"$f":"VLOOKUP(D597,NOMS!$A:$B,2,FALSE)","v":{"$error":"#N/A"}}]
[null,null,null,null,null,null,null,null,null,{"$f":"VLOOKUP(D598,NOMS!$A:$B,2,FALSE)","v":{"$error":"#N/A"}}]
[null,null,null,null,null,null,null,null,null,{"$f":"VLOOKUP(D599,NOMS!$A:$B,2,FALSE)","v":{"$error":"#N/A"}}]
[null,null,null,null,null,null,null,null,null,{"$f":"VLOOKUP(D600,NOMS!$A:$B,2,FALSE)","v":{"$error":"#N/A"}}]
[null,null,null,null,null,null,null,null,null,{"$f":"VLOOKUP(D601,NOMS!$A:$B,2,FALSE)","v":{"$error":"#N/A"}}]
[null,null,null,null,null,null,null,null,null,{"$f":"VLOOKUP(D602,NOMS!$A:$B,2,FALSE)","v":{"$error":"#N/A"}}]
[null,null,null,null,null,null,null,null,null,{"$f":"VLOOKUP(D603,NOMS!$A:$B,2,FALSE)","v":{"$error":"#N/A"}}]
[null,null,null,null,null,null,null,null,null,{"$f":"VLOOKUP(D604,NOMS!$A:$B,2,FALSE)","v":{"$error":"#N/A"}}]
[null,null,null,null,null,null,null,null,null,{"$f":"VLOOKUP(D605,NOMS!$A:$B,2,FALSE)","v":{"$error":"#N/A"}}]
[null,null,null,null,null,null,null,null,null,{"$f":"VLOOKUP(D606,NOMS!$A:$B,2,FALSE)","v":{"$error":"#N/A"}}]
[null,null,null,null,null,null,null,null,null,{"$f":"VLOOKUP(D607,NOMS!$A:$B,2,FALSE)","v":{"$error":"#N/A"}}]
[null,null,null,null,null,null,null,null,null,{"$f":"VLOOKUP(D608,NOMS!$A:$B,2,FALSE)","v":{"$error":"#N/A"}}]
[null,null,null,null,null,null,null,null,null,{"$f":"VLOOKUP(D609,NOMS!$A:$B,2,FALSE)","v":{"$error":"#N/A"}}]
[null,null,null,null,null,null,null,null,null,{"$f":"VLOOKUP(D610,NOMS!$A:$B,2,FALSE)","v":{"$error":"#N/A"}}]
[null,null,null,null,null,null,null,null,null,{"$f":"VLOOKUP(D611,NOMS!$A:$B,2,FALSE)","v":{"$error":"#N/A"}}]
[null,null,null,null,null,null,null,null,null,{"$f":"VLOOKUP(D612,NOMS!$A:$B,2,FALSE)","v":{"$error":"#N/A"}}]
[null,null,null,null,null,null,null,null,null,{"$f":"VLOOKUP(D613,NOMS!$A:$B,2,FALSE)","v":{"$error":"#N/A"}}]
[null,null,null,null,null,null,null,null,null,{"$f":"VLOOKUP(D614,NOMS!$A:$B,2,FALSE)","v":{"$error":"#N/A"}}]
[null,null,null,null,null,null,null,null,null,{"$f":"VLOOKUP(D615,NOMS!$A:$B,2,FALSE)","v":{"$error":"#N/A"}}]
[null,null,null,null,null,null,null,null,null,{"$f":"VLOOKUP(D616,NOMS!$A:$B,2,FALSE)","v":{"$error":"#N/A"}}]
[null,null,null,null,null,null,null,null,null,{"$f":"VLOOKUP(D617,NOMS!$A:$B,2,FALSE)","v":{"$error":"#N/A"}}]
[null,null,null,null,null,null,null,null,null,{"$f":"VLOOKUP(D618,NOMS!$A:$B,2,FALSE)","v":{"$error":"#N/A"}}]
[null,null,null,null,null,null,null,null,null,{"$f":"VLOOKUP(D619,NOMS!$A:$B,2,FALSE)","v":{"$error":"#N/A"}}]
[null,null,null,null,null,null,null,null,null,{"$f":"VLOOKUP(D620,NOMS!$A:$B,2,FALSE)","v":{"$error":"#N/A"}}]
[null,null,null,null,null,null,null,null,null,{"$f":"VLOOKUP(D621,NOMS!$A:$B,2,FALSE)","v":{"$error":"#N/A"}}]
[null,null,null,null,null,null,null,null,null,{"$f":"VLOOKUP(D622,NOMS!$A:$B,2,FALSE)","v":{"$error":"#N/A"}}]
[null,null,null,null,null,null,null,null,null,{"$f":"VLOOKUP(D623,NOMS!$A:$B,2,FALSE)","v":{"$error":"#N/A"}}]
[null,null,null,null,null,null,null,null,null,{"$f":"VLOOKUP(D624,NOMS!$A:$B,2,FALSE)","v":{"$error":"#N/A"}}]
[null,null,null,null,null,null,null,null,null,{"$f":"VLOOKUP(D625,NOMS!$A:$B,2,FALSE)","v":{"$error":"#N/A"}}]
[null,null,null,null,null,null,null,null,null,{"$f":"VLOOKUP(D626,NOMS!$A:$B,2,FALSE)","v":{"$error":"#N/A"}}]
[null,null,null,null,null,null,null,null,null,{"$f":"VLOOKUP(D627,NOMS!$A:$B,2,FALSE)","v":{"$error":"#N/A"}}]
[null,null,null,null,null,null,null,null,null,{"$f":"VLOOKUP(D628,NOMS!$A:$B,2,FALSE)","v":{"$error":"#N/A"}}]
[null,null,null,null,null,null,null,null,null,{"$f":"VLOOKUP(D629,NOMS!$A:$B,2,FALSE)","v":{"$error":"#N/A"}}]
[null,null,null,null,null,null,null,null,null,{"$f":"VLOOKUP(D630,NOMS!$A:$B,2,FALSE)","v":{"$error":"#N/A"}}]
[null,null,null,null,null,null,null,null,null,{"$f":"VLOOKUP(D631,NOMS!$A:$B,2,FALSE)","v":{"$error":"#N/A"}}]
[null,null,null,null,null,null,null,null,null,{"$f":"VLOOKUP(D632,NOMS!$A:$B,2,FALSE)","v":{"$error":"#N/A"}}]
[null,null,null,null,null,null,null,null,null,{"$f":"VLOOKUP(D633,NOMS!$A:$B,2,FALSE)","v":{"$error":"#N/A"}}]
[null,null,null,null,null,null,null,null,null,{"$f":"VLOOKUP(D634,NOMS!$A:$B,2,FALSE)","v":{"$error":"#N/A"}}]
[null,null,null,null,null,null,null,null,null,{"$f":"VLOOKUP(D635,NOMS!$A:$B,2,FALSE)","v":{"$error":"#N/A"}}]
[null,null,null,null,null,null,null,null,null,{"$f":"VLOOKUP(D636,NOMS!$A:$B,2,FALSE)","v":{"$error":"#N/A"}}]
[null,null,null,null,null,null,null,null,null,{"$f":"VLOOKUP(D637,NOMS!$A:$B,2,FALSE)","v":{"$error":"#N/A"}}]
[null,null,null,null,null,null,null,null,null,{"$f":"VLOOKUP(D638,NOMS!$A:$B,2,FALSE)","v":{"$error":"#N/A"}}]
[null,null,null,null,null,null,null,null,null,{"$f":"VLOOKUP(D639,NOMS!$A:$B,2,FALSE)","v":{"$error":"#N/A"}}]
[null,null,null,null,null,null,null,null,null,{"$f":"VLOOKUP(D640,NOMS!$A:$B,2,FALSE)","v":{"$error":"#N/A"}}]
[null,null,null,null,null,null,null,null,null,{"$f":"VLOOKUP(D641,NOMS!$A:$B,2,FALSE)","v":{"$error":"#N/A"}}]
[null,null,null,null,null,null,null,null,null,{"$f":"VLOOKUP(D642,NOMS!$A:$B,2,FALSE)","v":{"$error":"#N/A"}}]
[null,null,null,null,null,null,null,null,null,{"$f":"VLOOKUP(D643,NOMS!$A:$B,2,FALSE)","v":{"$error":"#N/A"}}]
[null,null,null,null,null,null,null,null,null,{"$f":"VLOOKUP(D644,NOMS!$A:$B,2,FALSE)","v":{"$error":"#N/A"}}]
[null,null,null,null,null,null,null,null,null,{"$f":"VLOOKUP(D645,NOMS!$A:$B,2,FALSE)","v":{"$error":"#N/A"}}]
[null,null,null,null,null,null,null,null,null,{"$f":"VLOOKUP(D646,NOMS!$A:$B,2,FALSE)","v":{"$error":"#N/A"}}]
[null,null,null,null,null,null,null,null,null,{"$f":"VLOOKUP(D647,NOMS!$A:$B,2,FALSE)","v":{"$error":"#N/A"}}]
[null,null,null,null,null,null,null,null,null,{"$f":"VLOOKUP(D648,NOMS!$A:$B,2,FALSE)","v":{"$error":"#N/A"}}]
[null,null,null,null,null,null,null,null,null,{"$f":"VLOOKUP(D649,NOMS!$A:$B,2,FALSE)","v":{"$error":"#N/A"}}]
[null,null,null,null,null,null,null,null,null,{"$f":"VLOOKUP(D650,NOMS!$A:$B,2,FALSE)","v":{"$error":"#N/A"}}]
[null,null,null,null,null,null,null,null,null,{"$f":"VLOOKUP(D651,NOMS!$A:$B,2,FALSE)","v":{"$error":"#N/A"}}]
[null,null,null,null,null,null,null,null,null,{"$f":"VLOOKUP(D652,NOMS!$A:$B,2,FALSE)","v":{"$error":"#N/A"}}]
[null,null,null,null,null,null,null,null,null,{"$f":"VLOOKUP(D653,NOMS!$A:$B,2,FALSE)","v":{"$error":"#N/A"}}]
[null,null,null,null,null,null,null,null,null,{"$f":"VLOOKUP(D654,NOMS!$A:$B,2,FALSE)","v":{"$error":"#N/A"}}]
[null,null,null,null,null,null,null,null,null,{"$f":"VLOOKUP(D655,NOMS!$A:$B,2,FALSE)","v":{"$error":"#N/A"}}]
[null,null,null,null,null,null,null,null,null,{"$f":"VLOOKUP(D656,NOMS!$A:$B,2,FALSE)","v":{"$error":"#N/A"}}]
[null,null,null,null,null,null,null,null,null,{"$f":"VLOOKUP(D657,NOMS!$A:$B,2,FALSE)","v":{"$error":"#N/A"}}]
[null,null,null,null,null,null,null,null,null,{"$f":"VLOOKUP(D658,NOMS!$A:$B,2,FALSE)","v":{"$error":"#N/A"}}]
[null,null,null,null,null,null,null,null,null,{"$f":"VLOOKUP(D659,NOMS!$A:$B,2,FALSE)","v":{"$error":"#N/A"}}]
[null,null,null,null,null,null,null,null,null,{"$f":"VLOOKUP(D660,NOMS!$A:$B,2,FALSE)","v":{"$error":"#N/A"}}]
[null,null,null,null,null,null,null,null,null,{"$f":"VLOOKUP(D661,NOMS!$A:$B,2,FALSE)","v":{"$error":"#N/A"}}]
[null,null,null,null,null,null,null,null,null,{"$f":"VLOOKUP(D662,NOMS!$A:$B,2,FALSE)","v":{"$error":"#N/A"}}]
[null,null,null,null,null,null,null,null,null,{"$f":"VLOOKUP(D663,NOMS!$A:$B,2,FALSE)","v":{"$error":"#N/A"}}]
[null,null,null,null,null,null,null,null,null,{"$f":"VLOOKUP(D664,NOMS!$A:$B,2,FALSE)","v":{"$error":"#N/A"}}]
[null,null,null,null,null,null,null,null,null,{"$f":"VLOOKUP(D665,NOMS!$A:$B,2,FALSE)","v":{"$error":"#N/A"}}]
[null,null,null,null,null,null,null,null,null,{"$f":"VLOOKUP(D666,NOMS!$A:$B,2,FALSE)","v":{"$error":"#N/A"}}]
[null,null,null,null,null,null,null,null,null,{"$f":"VLOOKUP(D667,NOMS!$A:$B,2,FALSE)","v":{"$error":"#N/A"}}]
[null,null,null,null,null,null,null,null,null,{"$f":"VLOOKUP(D668,NOMS!$A:$B,2,FALSE)","v":{"$error":"#N/A"}}]
[null,null,null,null,null,null,null,null,null,{"$f":"VLOOKUP(D669,NOMS!$A:$B,2,FALSE)","v":{"$error":"#N/A"}}]
[null,null,null,null,null,null,null,null,null,{"$f":"VLOOKUP(D670,NOMS!$A:$B,2,FALSE)","v":{"$error":"#N/A"}}]
[null,null,null,null,null,null,null,null,null,{"$f":"VLOOKUP(D671,NOMS!$A:$B,2,FALSE)","v":{"$error":"#N/A"}}]
[null,null,null,null,null,null,null,null,null,{"$f":"VLOOKUP(D672,NOMS!$A:$B,2,FALSE)","v":{"$error":"#N/A"}}]
[null,null,null,null,null,null,null,null,null,{"$f":"VLOOKUP(D673,NOMS!$A:$B,2,FALSE)","v":{"$error":"#N/A"}}]
[null,null,null,null,null,null,null,null,null,{"$f":"VLOOKUP(D674,NOMS!$A:$B,2,FALSE)","v":{"$error":"#N/A"}}]
[null,null,null,null,null,null,null,null,null,{"$f":"VLOOKUP(D675,NOMS!$A:$B,2,FALSE)","v":{"$error":"#N/A"}}]
[null,null,null,null,null,null,null,null,null,{"$f":"VLOOKUP(D676,NOMS!$A:$B,2,FALSE)","v":{"$error":"#N/A"}}]
[null,null,null,null,null,null,null,null,null,{"$f":"VLOOKUP(D677,NOMS!$A:$B,2,FALSE)","v":{"$error":"#N/A"}}]
[null,null,null,null,null,null,null,null,null,{"$f":"VLOOKUP(D678,NOMS!$A:$B,2,FALSE)","v":{"$error":"#N/A"}}]
[null,null,null,null,null,null,null,null,null,{"$f":"VLOOKUP(D679,NOMS!$A:$B,2,FALSE)","v":{"$error":"#N/A"}}]
[null,null,null,null,null,null,null,null,null,{"$f":"VLOOKUP(D680,NOMS!$A:$B,2,FALSE)","v":{"$error":"#N/A"}}]
[null,null,null,null,null,null,null,null,null,{"$f":"VLOOKUP(D681,NOMS!$A:$B,2,FALSE)","v":{"$error":"#N/A"}}]
[null,null,null,null,null,null,null,null,null,{"$f":"VLOOKUP(D682,NOMS!$A:$B,2,FALSE)","v":{"$error":"#N/A"}}]
[null,null,null,null,null,null,null,null,null,{"$f":"VLOOKUP(D683,NOMS!$A:$B,2,FALSE)","v":{"$error":"#N/A"}}]
[null,null,null,null,null,null,null,null,null,{"$f":"VLOOKUP(D684,NOMS!$A:$B,2,FALSE)","v":{"$error":"#N/A"}}]
[null,null,null,null,null,null,null,null,null,{"$f":"VLOOKUP(D685,NOMS!$A:$B,2,FALSE)","v":{"$error":"#N/A"}}]
[null,null,null,null,null,null,null,null,null,{"$f":"VLOOKUP(D686,NOMS!$A:$B,2,FALSE)","v":{"$error":"#N/A"}}]
[null,null,null,null,null,null,null,null,null,{"$f":"VLOOKUP(D687,NOMS!$A:$B,2,FALSE)","v":{"$error":"#N/A"}}]
[null,null,null,null,null,null,null,null,null,{"$f":"VLOOKUP(D688,NOMS!$A:$B,2,FALSE)","v":{"$error":"#N/A"}}]
[null,null,null,null,null,null,null,null,null,{"$f":"VLOOKUP(D689,NOMS!$A:$B,2,FALSE)","v":{"$error":"#N/A"}}]
[null,null,null,null,null,null,null,null,null,{"$f":"VLOOKUP(D690,NOMS!$A:$B,2,FALSE)","v":{"$error":"#N/A"}}]
[null,null,null,null,null,null,null,null,null,{"$f":"VLOOKUP(D691,NOMS!$A:$B,2,FALSE)","v":{"$error":"#N/A"}}]
[null,null,null,null,null,null,null,null,null,{"$f":"VLOOKUP(D692,NOMS!$A:$B,2,FALSE)","v":{"$error":"#N/A"}}]
[null,null,null,null,null,null,null,null,null,{"$f":"VLOOKUP(D693,NOMS!$A:$B,2,FALSE)","v":{"$error":"#N/A"}}]
[null,null,null,null,null,null,null,null,null,{"$f":"VLOOKUP(D694,NOMS!$A:$B,2,FALSE)","v":{"$error":"#N/A"}}]
[null,null,null,null,null,null,null,null,null,{"$f":"VLOOKUP(D695,NOMS!$A:$B,2,FALSE)","v":{"$error":"#N/A"}}]
[null,null,null,null,null,null,null,null,null,{"$f":"VLOOKUP(D696,NOMS!$A:$B,2,FALSE)","v":{"$error":"#N/A"}}]
[null,null,null,null,null,null,null,null,null,{"$f":"VLOOKUP(D697,NOMS!$A:$B,2,FALSE)","v":{"$error":"#N/A"}}]
[null,null,null,null,null,null,null,null,null,{"$f":"VLOOKUP(D698,NOMS!$A:$B,2,FALSE)","v":{"$error":"#N/A"}}]
[null,null,null,null,null,null,null,null,null,{"$f":"VLOOKUP(D699,NOMS!$A:$B,2,FALSE)","v":{"$error":"#N/A"}}]
[null,null,null,null,null,null,null,null,null,{"$f":"VLOOKUP(D700,NOMS!$A:$B,2,FALSE)","v":{"$error":"#N/A"}}]
[null,null,null,null,null,null,null,null,null,{"$f":"VLOOKUP(D701,NOMS!$A:$B,2,FALSE)","v":{"$error":"#N/A"}}]
[null,null,null,null,null,null,null,null,null,{"$f":"VLOOKUP(D702,NOMS!$A:$B,2,FALSE)","v":{"$error":"#N/A"}}]
[null,null,null,null,null,null,null,null,null,{"$f":"VLOOKUP(D703,NOMS!$A:$B,2,FALSE)","v":{"$error":"#N/A"}}]
[null,null,null,null,null,null,null,null,null,{"$f":"VLOOKUP(D704,NOMS!$A:$B,2,FALSE)","v":{"$error":"#N/A"}}]
[null,null,null,null,null,null,null,null,null,{"$f":"VLOOKUP(D705,NOMS!$A:$B,2,FALSE)","v":{"$error":"#N/A"}}]
[null,null,null,null,null,null,null,null,null,{"$f":"VLOOKUP(D706,NOMS!$A:$B,2,FALSE)","v":{"$error":"#N/A"}}]
[null,null,null,null,null,null,null,null,null,{"$f":"VLOOKUP(D707,NOMS!$A:$B,2,FALSE)","v":{"$error":"#N/A"}}]
[null,null,null,null,null,null,null,null,null,{"$f":"VLOOKUP(D708,NOMS!$A:$B,2,FALSE)","v":{"$error":"#N/A"}}]
[null,null,null,null,null,null,null,null,null,{"$f":"VLOOKUP(D709,NOMS!$A:$B,2,FALSE)","v":{"$error":"#N/A"}}]
[null,null,null,null,null,null,null,null,null,{"$f":"VLOOKUP(D710,NOMS!$A:$B,2,FALSE)","v":{"$error":"#N/A"}}]
[null,null,null,null,null,null,null,null,null,{"$f":"VLOOKUP(D711,NOMS!$A:$B,2,FALSE)","v":{"$error":"#N/A"}}]
[null,null,null,null,null,null,null,null,null,{"$f":"VLOOKUP(D712,NOMS!$A:$B,2,FALSE)","v":{"$error":"#N/A"}}]
[null,null,null,null,null,null,null,null,null,{"$f":"VLOOKUP(D713,NOMS!$A:$B,2,FALSE)","v":{"$error":"#N/A"}}]
[null,null,null,null,null,null,null,null,null,{"$f":"VLOOKUP(D714,NOMS!$A:$B,2,FALSE)","v":{"$error":"#N/A"}}]
[null,null,null,null,null,null,null,null,null,{"$f":"VLOOKUP(D715,NOMS!$A:$B,2,FALSE)","v":{"$error":"#N/A"}}]
[null,null,null,null,null,null,null,null,null,{"$f":"VLOOKUP(D716,NOMS!$A:$B,2,FALSE)","v":{"$error":"#N/A"}}]
[null,null,null,null,null,null,null,null,null,{"$f":"VLOOKUP(D717,NOMS!$A:$B,2,FALSE)","v":{"$error":"#N/A"}}]
[null,null,null,null,null,null,null,null,null,{"$f":"VLOOKUP(D718,NOMS!$A:$B,2,FALSE)","v":{"$error":"#N/A"}}]
[null,null,null,null,null,null,null,null,null,{"$f":"VLOOKUP(D719,NOMS!$A:$B,2,FALSE)","v":{"$error":"#N/A"}}]
[null,null,null,null,null,null,null,null,null,{"$f":"VLOOKUP(D720,NOMS!$A:$B,2,FALSE)","v":{"$error":"#N/A"}}]
[null,null,null,null,null,null,null,null,null,{"$f":"VLOOKUP(D721,NOMS!$A:$B,2,FALSE)","v":{"$error":"#N/A"}}]
[null,null,null,null,null,null,null,null,null,{"$f":"VLOOKUP(D722,NOMS!$A:$B,2,FALSE)","v":{"$error":"#N/A"}}]
[null,null,null,null,null,null,null,null,null,{"$f":"VLOOKUP(D723,NOMS!$A:$B,2,FALSE)","v":{"$error":"#N/A"}}]
[null,null,null,null,null,null,null,null,null,{"$f":"VLOOKUP(D724,NOMS!$A:$B,2,FALSE)","v":{"$error":"#N/A"}}]
[null,null,null,null,null,null,null,null,null,{"$f":"VLOOKUP(D725,NOMS!$A:$B,2,FALSE)","v":{"$error":"#N/A"}}]
[null,null,null,null,null,null,null,null,null,{"$f":"VLOOKUP(D726,NOMS!$A:$B,2,FALSE)","v":{"$error":"#N/A"}}]
[null,null,null,null,null,null,null,null,null,{"$f":"VLOOKUP(D727,NOMS!$A:$B,2,FALSE)","v":{"$error":"#N/A"}}]
[null,null,null,null,null,null,null,null,null,{"$f":"VLOOKUP(D728,NOMS!$A:$B,2,FALSE)","v":{"$error":"#N/A"}}]
[null,null,null,null,null,null,null,null,null,{"$f":"VLOOKUP(D729,NOMS!$A:$B,2,FALSE)","v":{"$error":"#N/A"}}]
[null,null,null,null,null,null,null,null,null,{"$f":"VLOOKUP(D730,NOMS!$A:$B,2,FALSE)","v":{"$error":"#N/A"}}]
[null,null,null,null,null,null,null,null,null,{"$f":"VLOOKUP(D731,NOMS!$A:$B,2,FALSE)","v":{"$error":"#N/A"}}]
[null,null,null,null,null,null,null,null,null,{"$f":"VLOOKUP(D732,NOMS!$A:$B,2,FALSE)","v":{"$error":"#N/A"}}]
[null,null,null,null,null,null,null,null,null,{"$f":"VLOOKUP(D733,NOMS!$A:$B,2,FALSE)","v":{"$error":"#N/A"}}]
[null,null,null,null,null,null,null,null,null,{"$f":"VLOOKUP(D734,NOMS!$A:$B,2,FALSE)","v":{"$error":"#N/A"}}]
[null,null,null,null,null,null,null,null,null,{"$f":"VLOOKUP(D735,NOMS!$A:$B,2,FALSE)","v":{"$error":"#N/A"}}]
[null,null,null,null,null,null,null,null,null,{"$f":"VLOOKUP(D736,NOMS!$A:$B,2,FALSE)","v":{"$error":"#N/A"}}]
[null,null,null,null,null,null,null,null,null,{"$f":"VLOOKUP(D737,NOMS!$A:$B,2,FALSE)","v":{"$error":"#N/A"}}]
[null,null,null,null,null,null,null,null,null,{"$f":"VLOOKUP(D738,NOMS!$A:$B,2,FALSE)","v":{"$error":"#N/A"}}]
[null,null,null,null,null,null,null,null,null,{"$f":"VLOOKUP(D739,NOMS!$A:$B,2,FALSE)","v":{"$error":"#N/A"}}]
[null,null,null,null,null,null,null,null,null,{"$f":"VLOOKUP(D740,NOMS!$A:$B,2,FALSE)","v":{"$error":"#N/A"}}]
[null,null,null,null,null,null,null,null,null,{"$f":"VLOOKUP(D741,NOMS!$A:$B,2,FALSE)","v":{"$error":"#N/A"}}]
[null,null,null,null,null,null,null,null,null,{"$f":"VLOOKUP(D742,NOMS!$A:$B,2,FALSE)","v":{"$error":"#N/A"}}]
[null,null,null,null,null,null,null,null,null,{"$f":"VLOOKUP(D743,NOMS!$A:$B,2,FALSE)","v":{"$error":"#N/A"}}]
[null,null,null,null,null,null,null,null,null,{"$f":"VLOOKUP(D744,NOMS!$A:$B,2,FALSE)","v":{"$error":"#N/A"}}]
[null,null,null,null,null,null,null,null,null,{"$f":"VLOOKUP(D745,NOMS!$A:$B,2,FALSE)","v":{"$error":"#N/A"}}]
[null,null,null,null,null,null,null,null,null,{"$f":"VLOOKUP(D746,NOMS!$A:$B,2,FALSE)","v":{"$error":"#N/A"}}]
[null,null,null,null,null,null,null,null,null,{"$f":"VLOOKUP(D747,NOMS!$A:$B,2,FALSE)","v":{"$error":"#N/A"}}]
[null,null,null,null,null,null,null,null,null,{"$f":"VLOOKUP(D748,NOMS!$A:$B,2,FALSE)","v":{"$error":"#N/A"}}]
[null,null,null,null,null,null,null,null,null,{"$f":"VLOOKUP(D749,NOMS!$A:$B,2,FALSE)","v":{"$error":"#N/A"}}]
[null,null,null,null,null,null,null,null,null,{"$f":"VLOOKUP(D750,NOMS!$A:$B,2,FALSE)","v":{"$error":"#N/A"}}]
[null,null,null,null,null,null,null,null,null,{"$f":"VLOOKUP(D751,NOMS!$A:$B,2,FALSE)","v":{"$error":"#N/A"}}]
[null,null,null,null,null,null,null,null,null,{"$f":"VLOOKUP(D752,NOMS!$A:$B,2,FALSE)","v":{"$error":"#N/A"}}]
[null,null,null,null,null,null,null,null,null,{"$f":"VLOOKUP(D753,NOMS!$A:$B,2,FALSE)","v":{"$error":"#N/A"}}]

{"sheet":"Banques","index":7,"n_rows":209,"n_cols":14,"rows_kept":209,"cut":false,"hidden":true,"merged":[]}
["Date opérat.",null,null,"Compte","Rèf","Credit Agricole ","Débit","Crédit"]
["2022-05-09",null,5,512101,null,"Subvention de fonctionnement reçue l’employeur",16141]
["2022-05-09",null,7,756010,null,"Subvention de fonctionnement reçue l’employeur",null,16141]
["2022-05-20",null,5,512100,null,"Subvention de fonctionnement reçue l’employeur",94278]
["2022-05-20",null,7,756020,null,"Contribution ASC reçue de l’employeur",null,94278]
["2022-07-01",null,4,421001,"Remb Avance","Remboursement YL Achat Dictaphonne DIGITAL",150]
["2022-07-01",null,5,512101,null,"Remboursement YL Achat Dictaphonne DIGITAL",null,150]
["2022-06-13",null,4,421006,"voyage","ASC Amina ISCAYE",1500]
["2022-06-13",null,5,512100,null,"ASC Amina ISCAYE",null,1500]
["2022-06-13",null,4,421015,"voyage","ASC Mireille ROCHE",1500]
["2022-06-13",null,5,512100,null,"ASC Mireille ROCHE",null,1500]
["2022-06-13",null,4,421004,"voyage","ASC Muriel DE GENTIL",1500]
["2022-06-13",null,5,512100,null,"ASC Muriel DE GENTIL",null,1500]
["2022-06-13",null,4,421003,"voyage","ASC Lydie RESON",1500,null,null,"Adelmas NESLIDE"]
["2022-06-13",null,5,512100,null,"ASC Lydie RESON",null,1500]
["2022-06-16",null,4,421008,"voyage","ASC Stéphanie LUBIN",1500]
["2022-06-16",null,5,512100,null,"ASC Stéphanie LUBIN",null,1500]
["2022-06-17",null,4,421001,"voyage","ASC Yohan LASSALLE",1500]
["2022-06-17",null,5,512100,null,"ASC Yohan LASSALLE",null,1500]
["2022-08-04",null,4,421026,"voyage","ASC Adelmas NESLIDE",661.14]
["2022-08-04",null,5,512100,null,"ASC Adelmas NESLIDE",null,661.14]
["2022-08-29",null,4,421010,"voyage","ASC Olivia LAPORAL",880.24]
["2022-08-29",null,5,512100,null,"ASC Olivia LAPORAL",null,880.24]
["2022-08-31",null,4,421010,"voyage","ASC Olivia LAPORAL",316.05]
["2022-08-31",null,5,512100,null,"ASC Olivia LAPORAL",null,316.05]
["2022-08-31",null,4,421010,"Sport et loisirs","ASC Olivia LAPORAL",159.6]
["2022-08-31",null,5,512100,null,"ASC Olivia LAPORAL",null,159.6]
["2022-08-31",null,4,421010,"Noel employé","ASC Olivia LAPORAL",144.11000000000001]
["2022-08-31",null,5,512100,null,"ASC Olivia LAPORAL",null,144.11000000000001]
["2022-08-22",null,4,421002,"Sport et loisirs","ASC Eric CHARTON",707]
["2022-08-22",null,5,512100,null,"ASC Eric CHARTON",null,707]
["2022-08-26",null,4,421019,"voyage","ASC Mylene MARTIN",1500]
["2022-08-26",null,5,512100,null,"ASC Mylene MARTIN",null,1500]
["2022-08-29",null,4,421013,"voyage","ASC Chrsitelle CHOUAN",1500]
["2022-08-29",null,5,512100,null,"ASC Chrsitelle CHOUAN",null,1500]
["2022-08-29",null,4,421014,"Sport et loisirs","ASC Camille GUYOT",1000]
["2022-08-29",null,5,512100,null,"ASC Camille GUYOT",null,1000]
["2022-08-30",null,4,421001,"Remb Avance","Remboursement YL FourniBuro",103.94]
["2022-08-30",null,5,512101,null,"Remboursement YL FourniBuro",null,103.94]
["2022-09-02",null,4,421021,"voyage","ASC Max NOSIBOR",1500]
["2022-09-02",null,5,512100,null,"ASC Max NOSIBOR",null,1500]
["2022-09-05",null,4,421009,"voyage","ASC Eddy LORBEL",1500]
["2022-09-05",null,5,512100,null,"ASC Eddy LORBEL",null,1500]
["2022-09-06",null,4,421012,"voyage","ASC Lydia Thalmsensi",1126.6300000000001]
["2022-09-06",null,5,512100,null,"ASC Lydia Thalmsensi",null,1126.6300000000001]
["2022-09-19",null,4,421023,"Sport et loisirs","ASC ANAIS LERUS",174.55]
["2022-09-19",null,5,512100,null,"ASC ANAIS LERUS",null,174.55]
["2022-09-19",null,4,421023,"voyage","ASC ANAIS LERUS",1325.45]
["2022-09-19",null,5,512100,null,"ASC ANAIS LERUS",null,1325.45]
["2022-11-03",null,4,421016,"voyage","ASC Guy RAMALINGON",1500]
["2022-11-03",null,5,512100,null,"ASC Guy RAMALINGON",null,1500]
["2022-11-04",null,4,421002,"Sport et loisirs","ASC Eric CHARTON",400]
["2022-11-04",null,5,512100,null,"ASC Eric CHARTON",null,400]
["2022-11-10",null,4,421017,"voyage","ASC Raissa LUSINE",1000]
["2022-11-10",null,5,512100,null,"ASC Raissa LUSINE",null,1000]
[]
[]
[]
[]
[]
[]
[]
[]
[]
[]
[]
[]
[]
[]
[]
[]
[]
[]
[]
[]
[]
[]
[]
[]
[]
[]
[]
[]
[]
[]
[]
[]
[]
[]
[]
[]
[]
[]
[]
[]
[]
[]
[]
[]
[]
[]
[]
[]
[null,null,null,null,null,null,null,null,null,null,null,59800,3000,{"$f":"L104+M104","v":62800}]
[]
[]
[]
[]
[]
[]
[]
[]
[]
[]
[]
[]
[]
[]
[]
[]
[]
[]
[]
[]
[]
[]
[]
[]
[]
[]
[]
[]
[]
[]
[]
[]
[]
[]
[]
[]
[]
[]
[]
[]
[]
[]
[]
[]
[]
[]
[]
[]
[]
[]
[]
[]
[]
[]
[]
[]
[]
[]
[]
[]
[]
[]
[]
[]
[]
[]
[]
[]
[]
[]
[]
[]
[]
[]
[]
[]
[]
[]
[]
[]
[]
[]
[]
[]
[]
[]
[]
[null,null,null,null,null,null,{"$f":"SUM(G2:G191)","v":135067.71000000002},{"$f":"SUM(H2:H191)","v":135067.71000000002}]
[]
["Date opérat.",null,null,"Compte","Rèf","B N P   S. C. I.","Débit","Crédit"]
[]
[]
[]
[]
[]
[]
[]
[]
[]
[]
[]
[]
[]
[]
[null,null,null,null,null,null,{"$f":"SUM(G195:G208)","v":0},{"$f":"SUM(H195:H208)","v":0}]

{"sheet":"OD","index":8,"n_rows":308,"n_cols":9,"rows_kept":308,"cut":false,"hidden":true,"merged":[]}
["2022-07-01",null,4,421001,null,"Achat Dictaphonne DIGITAL",null,150]
["2022-07-01",null,4,"401001",null,"Achat Dictaphonne DIGITAL",150]
["2022-06-13",null,6,647000,null,"ASC Amina ISCAYE",1500]
["2022-06-13",null,4,421006,null,"ASC Amina ISCAYE",null,1500," "]
["2022-06-13",null,1,155006,null,"Retour Provision Amina",1500]
["2022-06-13",null,7,787500,null,"Retour Provision Amina",null,1500]
["2022-05-20",null,6,681500,null,"Provision Budget ASC 2022",39000]
["2022-05-20",null,1,155001,null,"Provision Budget ASC 2022",null,1500]
["2022-05-20",null,1,155002,null,"Provision Budget ASC 2022",null,1500]
["2022-05-20",null,1,155003,null,"Provision Budget ASC 2022",null,1500]
["2022-05-20",null,1,155004,null,"Provision Budget ASC 2022",null,1500]
["2022-05-20",null,1,155005,null,"Provision Budget ASC 2022",null,0," "]
["2022-05-20",null,1,155006,null,"Provision Budget ASC 2022",null,1500]
["2022-05-20",null,1,155007,null,"Provision Budget ASC 2022",null,1500]
["2022-05-20",null,1,155008,null,"Provision Budget ASC 2022",null,1500]
["2022-05-20",null,1,155009,null,"Provision Budget ASC 2022",null,1500]
["2022-05-20",null,1,155010,null,"Provision Budget ASC 2022",null,1500]
["2022-05-20",null,1,155011,null,"Provision Budget ASC 2022",null,1500]
["2022-05-20",null,1,155012,null,"Provision Budget ASC 2022",null,1500]
["2022-05-20",null,1,155013,null,"Provision Budget ASC 2022",null,1500]
["2022-05-20",null,1,155014,null,"Provision Budget ASC 2022",null,1500]
["2022-05-20",null,1,155015,null,"Provision Budget ASC 2022",null,1500," "]
["2022-05-20",null,1,155016,null,"Provision Budget ASC 2022",null,1500]
["2022-05-20",null,1,155017,null,"Provision Budget ASC 2022",null,1500]
["2022-05-20",null,1,155018,null,"Provision Budget ASC 2022",null,1500]
["2022-05-20",null,1,155019,null,"Provision Budget ASC 2022",null,1500]
["2022-05-20",null,1,155020,null,"Provision Budget ASC 2022",null,1500]
["2022-05-20",null,1,155021,null,"Provision Budget ASC 2022",null,1500]
["2022-05-20",null,1,155022,null,"Provision Budget ASC 2022",null,1500]
["2022-05-20",null,1,155023,null,"Provision Budget ASC 2022",null,1500]
["2022-05-20",null,1,155024,null,"Provision Budget ASC 2022",null,1500]
["2022-05-20",null,1,155025,null,"Provision Budget ASC 2022",null,1500]
["2022-05-20",null,1,155026,null,"Provision Budget ASC 2022",null,1500]
["2022-06-13",null,6,647000,null,"ASC Mireille ROCHE",1500]
["2022-06-13",null,4,421015,null,"ASC Mireille ROCHE",null,1500]
["2022-06-13",null,1,155015,null,"Retour Provision Mireille ROCHE",1500]
["2022-06-13",null,7,787500,null,"Retour Provision Mireille ROCHE",null,1500]
["2022-06-13",null,6,647000,null,"ASC Muriel DE GENTIL",1500]
["2022-06-13",null,4,421004,null,"ASC Muriel DE GENTIL",null,1500]
["2022-06-13",null,1,155004,null,"Retour Provision Muriel DE GENTIL",1500]
["2022-06-13",null,7,787500,null,"Retour Provision Muriel DE GENTIL",null,1500]
["2022-06-13",null,6,647000,null,"ASC Lydie RESON",1500]
["2022-06-13",null,4,421003,null,"ASC Lydie RESON",null,1500]
["2022-06-13",null,1,155003,null,"Retour Provision Lydie RESON",1500]
["2022-06-13",null,7,787500,null,"Retour Provision Lydie RESON",null,1500]
["2022-06-16",null,6,647000,null,"ASC Stéphanie LUBIN",1500]
["2022-06-16",null,4,421008,null,"ASC Stéphanie LUBIN",null,1500]
["2022-06-16",null,1,155008,null,"Retour Provision Stéphanie LUBIN",1500]
["2022-06-16",null,7,787500,null,"Retour Provision Stéphanie LUBIN",null,1500]
["2022-06-17",null,6,647000,null,"ASC Yohan LASSALLE",1500]
["2022-06-17",null,4,421001,null,"ASC Yohan LASSALLE",null,1500]
["2022-06-17",null,1,155001,null,"Retour Provision Yohan LASSALLE",1500]
["2022-06-17",null,7,787500,null,"Retour Provision Yohan LASSALLE",null,1500]
["2022-08-04",null,6,647000,null,"ASC Adelmas NESLIDE",661.14]
["2022-08-04",null,4,421026,null,"ASC Adelmas NESLIDE",null,661.14]
["2022-08-04",null,1,155026,null,"Retour Provision Adelmas NESLIDE",661.14]
["2022-08-04",null,7,787500,null,"Retour Provision Adelmas NESLIDE",null,661.14]
["2022-08-29",null,1,155010,null,"Retour Provision Olivia LAPORAL",880.24]
["2022-08-29",null,7,787500,null,"Retour Provision Olivia LAPORAL",null,880.24]
["2022-08-31",null,1,155010,"voyage","Retour Provision Olivia LAPORAL",316.05]
["2022-08-31",null,7,787500,null,"Retour Provision Olivia LAPORAL",null,316.05]
["2022-08-31",null,1,155010,"Sport et loisirs","Retour Provision Olivia LAPORAL",159.6]
["2022-08-31",null,7,787500,null,"Retour Provision Olivia LAPORAL",null,159.6]
["2022-08-31",null,1,155010,"Noel employé","Retour Provision Olivia LAPORAL",144.11000000000001]
["2022-08-31",null,7,787500,null,"Retour Provision Olivia LAPORAL",null,144.11000000000001]
["2022-08-22",null,1,155002,"Sport et loisirs","Retour Provision Eric CHARTON",707]
["2022-08-22",null,7,787500,null,"Retour Provision Eric CHARTON",null,707]
["2022-08-26",null,1,155019,"voyage","Retour Provision Mylene MARTIN",1500]
["2022-08-26",null,7,787500,null,"Retour Provision Mylene MARTIN",null,1500]
["2022-08-29",null,1,155013,"voyage","Retour Provision Chrsitelle CHOUAN",1500]
["2022-08-29",null,7,787500,null,"Retour Provision Chrsitelle CHOUAN",null,1500]
["2022-08-29",null,1,155014,"Sport et loisirs","Retour Provision Camille GUYOT",1000]
["2022-08-29",null,7,787500,null,"Retour Provision Camille GUYOT",null,1000]
["2022-08-30",null,4,421001,null,"Achat FourniBuro",null,103.94]
["2022-08-30",null,4,"401001",null,"Achat FourniBuro",103.94]
["2022-08-29",null,6,647000,null,"ASC Olivia LAPORAL",880.24]
["2022-08-29",null,4,421010,"voyage","ASC Olivia LAPORAL",null,880.24]
["2022-08-31",null,6,647000,null,"ASC Olivia LAPORAL",316.05]
["2022-08-31",null,4,421010,"voyage","ASC Olivia LAPORAL",null,316.05]
["2022-08-31",null,6,647000,null,"ASC Olivia LAPORAL",159.6]
["2022-08-31",null,4,421010,"Sport et loisirs","ASC Olivia LAPORAL",null,159.6]
["2022-08-31",null,6,647000,null,"ASC Olivia LAPORAL",144.11000000000001]
["2022-08-31",null,4,421010,"Noel employé","ASC Olivia LAPORAL",null,144.11000000000001]
["2022-08-22",null,6,647000,null,"ASC Eric CHARTON",707]
["2022-08-22",null,4,421002,"Sport et loisirs","ASC Eric CHARTON",null,707]
["2022-08-26",null,6,647000,null,"ASC Mylene MARTIN",1500]
["2022-08-26",null,4,421019,"voyage","ASC Mylene MARTIN",null,1500]
["2022-08-29",null,6,647000,null,"ASC Chrsitelle CHOUAN",1500]
["2022-08-29",null,4,421013,"voyage","ASC Chrsitelle CHOUAN",null,1500]
["2022-08-29",null,6,647000,null,"ASC Camille GUYOT",1000]
["2022-08-29",null,4,421014,"Sport et loisirs","ASC Camille GUYOT",null,1000]
["2022-09-02",null,1,155021,"voyage","Retour Provision Max NOSIBOR",1500]
["2022-09-02",null,7,787500,null,"Retour Provision Max NOSIBOR",null,1500]
["2022-09-02",null,6,647000,null,"ASC Max NOSIBOR",1500]
["2022-09-02",null,4,421021,"voyage","ASC Max NOSIBOR",null,1500]
["2022-09-05",null,1,155009,"voyage","Retour Provision Eddy LORBEL",1500]
["2022-09-05",null,7,787500,null,"Retour Provision Eddy LORBEL",null,1500]
["2022-09-05",null,6,647000,null,"ASC Eddy LORBEL",1500]
["2022-09-05",null,4,421009,"voyage","ASC Eddy LORBEL",null,1500]
["2022-09-06",null,1,155012,"voyage","Retour Provision Lydia Thalmsensi",1126.6300000000001,null," "]
["2022-09-06",null,7,787500,null,"Retour Provision Lydia Thalmsensi",null,1126.6300000000001]
["2022-09-06",null,6,647000,null,"ASC Lydia Thalmsensi",1126.6300000000001]
["2022-09-06",null,4,421012,"voyage","ASC Lydia Thalmsensi",null,1126.6300000000001]
["2022-09-19",null,1,155023,"Sport et loisirs","Retour Provision ANAIS LERUS",174.55]
["2022-09-19",null,7,787500,null,"Retour Provision ANAIS LERUS",null,174.55]
["2022-09-19",null,6,647000,null,"ASC ANAIS LERUS",174.55]
["2022-09-19",null,4,421023,"Sport et loisirs","ASC ANAIS LERUS",null,174.55]
["2022-09-19",null,1,155023,"voyage","Retour Provision ANAIS LERUS",1325.45]
["2022-09-19",null,7,787500,null,"Retour Provision ANAIS LERUS",null,1325.45]
["2022-09-19",null,6,647000,null,"ASC ANAIS LERUS",1325.45]
["2022-09-19",null,4,421023,"voyage","ASC ANAIS LERUS",null,1325.45]
["2022-11-03",null,1,155016,"voyage","Retour Provision Guy RAMALINGON",1500]
["2022-11-03",null,7,787500,null,"Retour Provision Guy RAMALINGON",null,1500," "]
["2022-11-03",null,6,647000,null,"ASC Guy RAMALINGON",1500]
["2022-11-03",null,4,421016,"voyage","ASC Guy RAMALINGON",null,1500]
["2022-11-04",null,1,155002,"Sport et loisirs","Retour Provision Eric CHARTON",400]
["2022-11-04",null,7,787500,null,"Retour Provision Eric CHARTON",null,400]
["2022-11-04",null,6,647000,null,"ASC Eric CHARTON",400]
["2022-11-04",null,4,421002,"Sport et loisirs","ASC Eric CHARTON",null,400]
["2022-11-10",null,1,155017,"voyage","Retour Provision Raissa LUSINE",1000]
["2022-11-10",null,7,787500,null,"Retour Provision Raissa LUSINE",null,1000]
["2022-11-10",null,6,647000,null,"ASC Raissa LUSINE",1000]
["2022-11-10",null,4,421017,"voyage","ASC Raissa LUSINE",null,1000," "]
[]
[]
[]
[]
[]
[]
[]
[null,null,null,null,null,null,null,null," "]
[]
[]
[]
[]
[]
[]
[]
[]
[]
[]
[]
[]
[]
[]
[]
[]
[]
[]
[]
[]
[]
[]
[]
[]
[]
[]
[]
[]
[]
[]
[]
[]
[]
[]
[]
[]
[]
[]
[]
[]
[]
[]
[]
[]
[]
[]
[]
[]
[]
[]
[]
[]
[]
[]
[]
[]
[]
[]
[]
[]
[]
[]
[]
[]
[]
[]
[]
[]
[]
[]
[]
[]
[]
[]
[]
[]
[]
[]
[]
[]
[]
[]
[]
[]
[]
[]
[]
[]
[]
[]
[]
[]
[]
[]
[]
[]
[]
[]
[]
[]
[]
[]
[]
[]
[]
[]
[]
[]
[]
[]
[]
[]
[]
[]
[]
[]
[]
[]
[]
[]
[]
[]
[]
[]
[]
[]
[]
[]
[]
[]
[]
[]
[]
[]
[]
[]
[]
[]
[]
[]
[]
[]
[]
[]
[]
[]
[]
[]
[]
[]
[]
[]
[]
[]
[]
[]
[]
[]
[]
[]
[]
[]
[]
[]
[]
[]
[]
[]
[]
[]
[]
[]
[]
[]
[]
[]
[null,null,null,null,null,null,{"$f":"SUM(G172:G307)","v":0},{"$f":"SUM(H172:H307)","v":0}]

{"sheet":"Ventes","index":9,"n_rows":26,"n_cols":23,"rows_kept":26,"cut":false,"hidden":true,"merged":[]}
[null,null,null,null,null,null,null,null,null,null,null,{"$f":"A1","v":"00:00:00"},null,{"$f":"C1","v":0},{"$f":"D1","v":0},{"$f":"E1","v":0},{"$f":"F1","v":0},null,{"$f":"G1","v":0}]
[null,null,null,null,null,null,null,null,null,null,null,{"$f":"L1","v":"00:00:00"},null,5,512100,{"$f":"P1","v":0},{"$f":"Q1","v":0},{"$f":"S1","v":0},null,null,150,null,{"$f":"U2","v":150}]
[null,null,null,null,null,null,null,null,null,null,null,null,null,null,null,null,null,null,null,null,null,{"$f":"U2-V4","v":120.6}]
[null,null,null,null,null,null,null,null,null,null,null,{"$f":"A4","v":"00:00:00"},null,{"$f":"C4","v":0},{"$f":"D4","v":0},{"$f":"E4","v":0},{"$f":"F4","v":0},null,{"$f":"G4","v":0},null,null,{"$f":"(U2/100)*19.6","v":29.400000000000002}]
[null,null,null,null,null,null,null,null,null,null,null,{"$f":"L4","v":"00:00:00"},null,5,512100,{"$f":"P4","v":0},{"$f":"Q4","v":0},{"$f":"S4","v":0}]
[]
[null,null,null,null,null,null,null,null,null,null,null,{"$f":"A7","v":"00:00:00"},null,{"$f":"C7","v":0},{"$f":"D7","v":0},{"$f":"E7","v":0},{"$f":"F7","v":0},null,{"$f":"G7","v":0}]
[null,null,null,null,null,null,null,null,null,null,null,{"$f":"L7","v":"00:00:00"},null,5,512100,{"$f":"P7","v":0},{"$f":"Q7","v":0},{"$f":"S7","v":0}]
[null,null,null,null,null,null,null,null,null," "]
[null,null,null,null,null,null,null,null,null,null,null,{"$f":"A10","v":"00:00:00"},null,{"$f":"C10","v":0},{"$f":"D10","v":0},{"$f":"E10","v":0},{"$f":"F10","v":0},null,{"$f":"G10","v":0}]
[null,null,null,null,null,null,null,null,null,null,null,{"$f":"L10","v":"00:00:00"},null,5,512100,{"$f":"P10","v":0},{"$f":"Q10","v":0},{"$f":"S10","v":0}]
[]
[null,null,null,null,null,null,null,null,null,null,null,{"$f":"A13","v":"00:00:00"},null,{"$f":"C13","v":0},{"$f":"D13","v":0},{"$f":"E13","v":0},{"$f":"F13","v":0},null,{"$f":"G13","v":0}]
[null,null,null,null,null,null,null,null,null,null,null,{"$f":"L13","v":"00:00:00"},null,5,512100,{"$f":"P13","v":0},{"$f":"Q13","v":0},{"$f":"S13","v":0}]
[]
[null,null,null,null,null,null,null,null,null,null,null,{"$f":"A16","v":"00:00:00"},null,{"$f":"C16","v":0},{"$f":"D16","v":0},{"$f":"E16","v":0},{"$f":"F16","v":0},null,{"$f":"G16","v":0}]
[null,null,null,null,null,null,null,null,null,null,null,{"$f":"L16","v":"00:00:00"},null,5,512100,{"$f":"P16","v":0},{"$f":"Q16","v":0},{"$f":"S16","v":0}]
[]
[null,null,null,null,null,null,null,null,null,null,null,{"$f":"A19","v":"00:00:00"},null,{"$f":"C19","v":0},{"$f":"D19","v":0},{"$f":"E19","v":0},{"$f":"F19","v":0},null,{"$f":"G19","v":0}]
[null,null,null,null,null,null,null,null,null,null,null,{"$f":"L19","v":"00:00:00"},null,5,512100,{"$f":"P19","v":0},{"$f":"Q19","v":0},{"$f":"S19","v":0}]
[]
[]
[]
[]
[]
[null,null,null,null,null,null,{"$f":"SUM(G1:G25)","v":0},{"$f":"SUM(H1:H25)","v":0}," ",{"$f":"SUM(J1:J25)","v":0}]

{"sheet":"Achats","index":10,"n_rows":96,"n_cols":8,"rows_kept":96,"cut":false,"hidden":true,"merged":[]}
["Date opérat.","F","C","Compte","Rèf","Libéllé","Débit","Crédit"]
["2022-08-30",null,4,"401001",null,"Achat FourniBuro",null,103.94]
["2022-08-30",null,6,"606400",null,"Achat FourniBuro",103.94]
[]
[]
[]
[]
[]
[]
[]
[]
[]
[]
[]
[]
[]
[]
[]
[]
[]
[]
[]
[]
[]
[]
[]
[]
[]
[]
[]
[]
[]
[]
[]
[]
[]
[]
[]
[]
[]
[]
[]
[]
[]
[]
[]
[]
[]
[]
[]
[]
[]
[]
[]
[]
[]
[]
[]
[]
[]
[]
[]
[]
[]
[]
[]
[]
[]
[]
[]
[]
[]
[]
[]
[]
[]
[]
[]
[]
[]
[]
[]
[]
[]
[]
[]
[]
[]
[]
[]
[]
[]
[]
[]
[]
[null,null,null,null,null,null,{"$f":"SUM(G2:G95)","v":103.94},{"$f":"SUM(H2:H95)","v":103.94}]

{"sheet":"Caisse","index":11,"n_rows":43,"n_cols":9,"rows_kept":43,"cut":false,"hidden":true,"merged":[]}
[null,null,null,null,null,null,null,null,{"$f":"+H1","v":0}]
[null,null,null,null,null,null,null,null,{"$f":"+I1-G2+H2","v":0}]
[null,null,null,null,null,null,null,null,{"$f":"+I2-G3+H3","v":0}]
[null,null,null,null,null,null,null,null,0]
[null,null,null,null,null,null,null,null,0]
[null,null,null,null,null,null,null,null,0]
[null,null,null,null,null,null,null,null,0]
[null,null,null,null,null,null,null,null,0]
[null,null,null,null,null,null,null,null,0]
[null,null,null,null,null,null,null,null,0]
[null,null,null,null,null,null,null,null,0]
[null,null,null,null,null,null,null,null,0]
[null,null,null,null,null,null,null,null,0]
[null,null,null,null,null,null,null,null,0]
[null,null,null,null,null,null,null,null,0]
[null,null,null,null,null,null,null,null,0]
[null,null,null,null,null,null,null,null,0]
[null,null,null,null,null,null,null,null,0]
[null,null,null,null,null,null,null,null,0]
[null,null,null,null,null,null,null,null,0]
[null,null,null,null,null,null,null,null,0]
[null,null,null,null,null,null,null,null,0]
[null,null,null,null,null,null,null,null,0]
[null,null,null,null,null,null,null,null,0]
[null,null,null,null,null,null,null,null,0]
[null,null,null,null,null,null,null,null,0]
[null,null,null,null,null,null,null,null,0]
[null,null,null,null,null,null,null,null,0]
[]
[null,null,null,null,null,null,{"$f":"SUM(G1:G29)","v":0},{"$f":"SUM(H1:H29)","v":0},{"$f":"+H30-G30","v":0}]
[]
[]
[]
[]
[]
[]
[]
["2020-03-01",null,null,null,null,"SOLDE AU 01/03/2020",null,1203.77,{"$f":"+H38","v":1203.77}]
["2020-03-01",null,null,615000,null,"ESSENCE TONDEUSE 10/02",5,null,{"$f":"+I38-G39+H39","v":1198.77}]
["2020-03-01",null,null,"401DIV",null,"AMAZON 13/02",25.08,null,{"$f":"+I39-G40+H40","v":1173.69}]
["2020-03-01",null,null,615000,null,"CITRONS 26/02",1.5,null,{"$f":"+I40-G41+H41","v":1172.19}]
[]
[null,null,null,null,null,null,{"$f":"SUM(G38:G42)","v":31.58},{"$f":"SUM(H38:H42)","v":1203.77},{"$f":"+H43-G43","v":1172.19}]

{"sheet":"Plan","index":12,"n_rows":72,"n_cols":10,"rows_kept":72,"cut":false,"hidden":false,"merged":[[0,0,0,3]]}
["PLAN COMPTABLE   CSE Antilles Guyane"]
[]
["N°","NOM","N°","NOM",null,null,null,"155 0xx provision ASC",null,"421 0xx salariés"]
[101000,"CAPITAL SOCIAL",null,null,"00","DIVERS ACHATS","01","Yohan LASSALLE","01","Yohan LASSALLE"]
[106100,"RESERVE LEGALE",606100,"Achats materiel","01","REPARATIONS","02","Eric CHARTON","02","Eric CHARTON"]
[106800,"AUTRES RESERVES",606300,"PETIT OUTILLAGE","02","AMENAGEMENTS","03","Lydie RESON","03","Lydie RESON"]
[110000,"REPORT A NOUVEAU",606400,"FOURNITURES DE BUREAU","03","PRESSING","04","Muriel DE GENTIL","04","Muriel DE GENTIL"]
[120000,"RESULTAT DE L'EXERCICE",607000,"Achat de Marchandise","04","TELEPHONE","05","Oriane Mayoute","05","Oriane Mayoute"]
[155000,"Provision pour ASC",603700,"Variation des stocks de marchandises","05","ELECTRICITE","06","Amina ISCAYE","06","Amina ISCAYE"]
[168000,"EMPRUNT YL.LASSALLE",615000,"ENTRETIEN","06","EAU","07","Geraldine PINOS","07","Geraldine"]
[null,null,615500,"CHARGES COLLECTIVES","07","IMPOTS","08","Stephanie LUBIN","08","Stephanie LUBIN"]
[211000,"TERRAIN",616000,"ASSURANCES","08","PUBLICITE","09","Eddy LORBEL","09","Eddy LORBEL"]
[213000,"CONSTRUCTION",618000,"DOCUMENTATION GENERALE","09","ENTRETIEN","10","Olivia LAPORAL","10","Olivia LAPORAL"]
[215000,"MATERIEL ET OUTILLAGE",622600,"HONORAIRES DIVERS","10","ASSURANCES","11","Ma-Ivah BENOIT","11","Ma-Ivah BENOIT"]
[218100,"AGENCEMENTS INSTALLATION",622700,"FRAIS ACTES ET CONTENTIEUX","11","JARDINAGE","12","Lydia THALMENSI","12","Lydia THALMENSI"]
[218200,"MATERIEL DE TRANSPORT",622800,"HONORAIRES DE GESTION","12","FRAIS BANCAIRE","13","Christelle CHOUAN","13","Christelle CHOUAN"]
[218300,"MATERIEL DE BUREAU",623000,"PUBLICITE","13"," RAYM/DEDE","14","Camille GUYOT","14","Camille GUYOT"]
[275000,"DEPOT DE GARANTIE PAYE",624000,"FRAIS DE VOITURE","20","INVESTISSEMENT","15","Mireille ROCHE","15","Mireille ROCHE"]
[281300,"AMORT. CONSTRUCTION",625000,"VOYAGE ET DEPLACEMENT",null,null,"16","Guy RAMALINGON","16","Guy RAMALINGON"]
[281810,"AMORT. AGENCEMENTS INSTALLAT.",625700,"MISSIONS RECEPTIONS",null,null,"17","RAISSA LUSINE","17","RAISSA LUSINE"]
[281820,"AMORT. MATERIEL DE TRANSPORT",626000,"P.T.T. ET TIMBRES",null,null,"18","Xavier CORBIN","18","Xavier CORBIN"]
[281830,"AMORT. MATERIEL DE BUREAU",627000,"SERVICES BANCAIRES",null,null,"19","Mylene MARTIN","19","Mylene MARTIN"]
[null,null,633800,"AUTRES IMPOTS ET TAXES",null,null,"20","Johanne LONGRAIS","20","Johanne LONGRAIS"]
[null,null,635000,"IMPOT FORFAITAIRE SOCIETE",null,null,"21","Max NOSIBOR","21","Max NOSIBOR"]
[null,null,635100,"TAXE FONCIERE",null,null,"22","Maxime ANNEQUIN","22","Maxime ANNEQUIN"]
[null,null,635400,"DROITS ENREG. ET TIMBRES",null,null,"23","ANAIS LERUS","23","ANAIS LERUS"]
["401xxx","Fournisseurs",635800,"TAXE SUR BUREAUX",null,null,"24","Carla MARMOLEJO","24","Carla MARMOLEJO"]
[401001,"Fourniburo",637800,"TAXES DIVERSES",null,null,"25","EDWIN SANDOT","25","EDWIN SANDOT"]
[401002,"Marie Kate Kreation",647000,"ASC ",null,null,"26","Adelmas NESLIDE","26","Adelmas NESLIDE"]
[401003,"Carrefour Destrland",654000,"PERTES S/CREANCES IRRECOU.",null,null,"27","Guillaume SOULAS","27","Guillaume SOULAS"]
[401004,"Air Caraibes",658000,"CHARGES DIVERSES",null,null,28,"Julien LALAIT",28,"Julien LALAIT"]
[401005,"Assurance Avion",661100,"INTERETS D'EMPRUNTS",null,null,29,"Grenelle Triveillot",29,"Grenelle Triveillot"]
[401006,"Location vehicule AutoJumboCAR",661500,"INTERETS CPTES COURANTS",null,null,30,"MAILINE FIDOL",30,"MAILINE FIDOL"]
[401007,"Chronopost",661600,"INTERETS BANCAIRES",null,null,31,"Emilie GUILLAUME",31,"Emilie GUILLAUME"]
[null,null,661800,"INTERETS DES AUTRES DETTES"]
[null,null,668800,"ECART DE CONVERSION"]
[null,null,672000,"CHARGES S/EXERCICE ANTERIEUR"]
[null,null,681000,"DOTATIONS AMORTISSEMENTS"]
[null,null,681700,"DOT.PROV.P/DEP.ACTIFS CIRCUL."]
[403000,"FOURNISSEURS EFFET A PAYER",681500,"Provisions des Charges ASC"]
[408000,"FOURNISSEURS CHARGES A PAYER",695000,"IMPOT SOCIETE"]
[409000,"FOURNISSEURS DEBITEURS"]
[411000,"CLIENTS DIVERS"]
[414000,"AVANCES S/CHARGES RECUES","706000","LOYERS"]
[415000,"CHARGES LOCATIVES","706100","LOYERS S/REGUL DEPOT"]
[416000,"CLIENTS DOUTEUX",706500,"Vente Réparation Divers"]
[419000,"CLIENTS CREDITEURS",706600,"PRESTATIONS DIVERSES"]
[444000,"IMPOTS SUR BENEFICES",707000,"Vente de Marchandise"]
[444100,"IMPOTS S/BENEF. 10%"]
[445500,"TVA A DECAISSER","708050","AVANCES S/CHARGES COLLECTIVES"]
[445600,"TVA DEDUCTIBLE",708051,"REGUL S/CHARGES COLLECTIVES"]
[445660,"TVA DEDUC. NON REGLEE","758000","PRODUITS DIVERS"]
[445700,"TVA COLLECTEE 19.60%","764000","REVENUS TITRES PLACEMENT"]
[445710,"T.V.A. COLLECTEE 20.60%",768000,"AUTRE PRODUITS FINANCIERS"]
[445720,"T.V.A. COLLECTEE REGUL.","771800","AUTRES PRDTS EXCEP.S/OP.GEST."]
[445900,"TVA DEBIT. S/FIN EXERCICE","772000","PRDTS EXCEPT.S/EXERC.ANTERIEUR"]
[448000,"ETAT CHARGES A PAYER","781700","REP/PROV.DEPR.ACTIFS CIRCUL."]
[448700,"ETAT, PRODUITS A RECEVOIR",756010,"Subvention de fonctionnement reçue l’employeur"]
[455400,"CPTE COURANT LASSALLE YOHAN",756020,"Contribution reçue de l’employeur"]
[467000,"DEBIT. ET CREDIT. DIVERS",787500,"Reprises sur provisions exceptionnelles"]
[468600,"DEB. CRED. CHARGES A PAYER"]
[470000,"COMPTE D'ATTENTE"]
[486000,"CHARGES PAYEES D'AVANCE","840000","SOLDE D'EXPLOITATION"]
[487000,"PRDTS CONSTATES D'AVANCE","880000","RESULTAT ATTENTE AFFECT."]
[491000,"PROV.P/DEP.CPTES CLIENTS"]
[]
[508000,"AUTRES VALEURS DE PLACEMENT"]
[512000,"CREDIT AGRICOLE ASC"]
[512001,"CREDIT AGRICOLE FONCTIONNEMENT"]
[518600,"INTERETS COURUS"]
[530000,"CAISSE"]
[580000,"VIREMENTS INTERNES"]

{"sheet":"Echéancier","index":13,"n_rows":0,"n_cols":0,"rows_kept":0,"cut":false,"hidden":true,"merged":[]}

{"sheet":"NOMS","index":14,"n_rows":66,"n_cols":10,"rows_kept":66,"cut":false,"hidden":false,"merged":[]}
[155001,"Yohan LASSALLE"]
[155002,"Eric CHARTON"]
[155003,"Lydie RESON"]
[155004,"Muriel DE GENTIL"]
[155005,"Oriane Mayoute"]
[155006,"Amina ISCAYE"]
[155007,"Geraldine PINOS"]
[155008,"Stephanie LUBIN"]
[155009,"Eddy LORBEL"]
[155010,"Olivia LAPORAL"]
[155011,"Ma-Ivah BENOIT"]
[155012,"Lydia THALMENSI"]
[155013,"Christelle CHOUAN"]
[155014,"Camille GUYOT","depart"]
[155015,"Mireille ROCHE"]
[155016,"Guy RAMALINGON",null,null,null,"2023-09-30"]
[155017,"RAISSA LUSINE","Arrivée dans l'entreprise le "]
[155018,"Xavier CORBIN"]
[155019,"Mylene MARTIN"]
[155020,"Johanne LONGRAIS"]
[155021,"Max NOSIBOR"]
[155022,"Maxime ANNEQUIN","Arrivée dans l'entreprise le ",null,null,"2022-08-01"]
[155023,"ANAIS LERUS"]
[155024,"Carla MARMOLEJO","Arrivée dans l'entreprise le "]
[155025,"EDWIN SANDOT","Arrivée dans l'entreprise le "]
[155026,"Adelmas NESLIDE","Départ de l'entreprise le"]
[155027,"Guillaume SOULAS","Arrivée dans l'entreprise le "]
[155028,"Julien LALAIT","Arrivée dans l'entreprise le ",null,"2022-10-01","2023-09-30"]
[155029,"Grenelle Triveillot"]
[155030,"MAILINE FIDOL","Arrivée dans l'entreprise le ",null,"2023-07-01"]
[155031,"Emilie GUILLAUME","Arrivée dans l'entreprise le ",null,"2023-10-01"]
[]
[]
[]
[]
[null,null,null,null,null,null,null,null,421001,"Yohan LASSALLE"]
[null,null,null,null,null,null,null,null,421002,"Eric CHARTON"]
[null,null,null,null,null,null,null,null,421003,"Lydie RESON"]
[null,null,null,null,null,null,null,null,421004,"Muriel DE GENTIL"]
[null,null,null,null,null,null,null,null,421005,"Oriane Mayoute"]
[null,null,null,null,null,null,null,null,421006,"Amina ISCAYE"]
[null,null,null,null,null,null,null,null,421007,"Geraldine PINOS"]
[null,null,null,null,null,null,null,null,421008,"Stephanie LUBIN"]
[null,null,null,null,null,null,null,null,421009,"Eddy LORBEL"]
[null,null,null,null,null,null,null,null,421010,"Olivia LAPORAL"]
[null,null,null,null,null,null,null,null,421011,"Ma-Ivah BENOIT"]
[null,null,null,null,null,null,null,null,421012,"Lydia THALMENSI"]
[null,null,null,null,null,null,null,null,421013,"Christelle CHOUAN"]
[null,null,null,null,null,null,null,null,421014,"Camille GUYOT"]
[null,null,null,null,null,null,null,null,421015,"Mireille ROCHE"]
[null,null,null,null,null,null,null,null,421016,"Guy RAMALINGON"]
[null,null,null,null,null,null,null,null,421017,"RAISSA LUSINE"]
[null,null,null,null,null,null,null,null,421018,"Xavier CORBIN"]
[null,null,null,null,null,null,null,null,421019,"Mylene MARTIN"]
[null,null,null,null,null,null,null,null,421020,"Johanne LONGRAIS"]
[null,null,"Arrivée dans l'entreprise le ",null,null,null,null,null,421021,"Max NOSIBOR"]
[null,null,"Arrivée dans l'entreprise le ",null,null,null,null,null,421022,"Maxime ANNEQUIN"]
[null,null,"Arrivée dans l'entreprise le ",null,null,null,null,null,421023,"ANAIS LERUS"]
[null,null,"Arrivée dans l'entreprise le ",null,"2022-10-01",null,null,null,421024,"Carla MARMOLEJO"]
[null,null,"Arrivée dans l'entreprise le ",null,null,null,null,null,421025,"EDWIN SANDOT"]
[null,null,null,null,null,null,null,null,421026,"Adelmas NESLIDE"]
[null,null,null,null,null,null,null,null,421027,"Guillaume SOULAS"]
[null,null,null,null,null,null,null,null,421028,"Julien LALAIT"]
[null,null,null,null,null,null,null,null,421029,"Grenelle Triveillot"]
[null,null,null,null,null,null,null,null,421030,"MAILINE FIDOL"]
[null,null,null,null,null,null,null,null,421031,"Emilie GUILLAUME"]

{"sheet":"CALCUL divers","index":15,"n_rows":48,"n_cols":9,"rows_kept":48,"cut":false,"hidden":false,"merged":[]}
[]
[]
[]
[]
[]
[]
[]
[]
[]
[null,null,"Voiture de location",191,null,null,null,null,43.99]
[null,null,"Billet d'avion ",362.83,null,null,null,null,43.99]
[null,null,"Hôtel Beach view",400.53,null,null,null,null,43.99]
[null,null,"Hôtel South Gap",208.57,null,null,null,null,{"$f":"SUM(I10:I12)","v":131.97}]
[null,null,"Hôtel Sweetfield Manor",245.62]
[null,null,"Hôtel La Pagerie",202.4]
[null,null,"Facture Airbnb",216.67]
[null,null,"Facture la Ferme Attitude",150]
[null,null,null,{"$f":"SUM(D10:D17)","v":1977.62}]
[]
[]
[]
[null,null,"Spectable GSL humoriste",70,null,{"$f":"2000-D18","v":22.380000000000109}]
[null,null,"Spectacle FARY humoriste",92.26]
[null,null,null,{"$f":"SUM(D22:D23)","v":162.26}]
[]
[]
[]
[]
[]
[]
[null,null,"Visite Harrisson Cave",156.63999999999999]
[]
[]
[]
[null,null,null,null,null,null,259.17]
[]
[]
[]
[null,null,null,null,null,31.05,757.44]
[null,null,null,null,null,31.05,164.16]
[null,null,null,null,null,25,25.2]
[null,null,null,null,null,{"$f":"SUM(F39:F41)","v":87.1},{"$f":"SUM(G39:G41)","v":946.80000000000007}]
[]
[null,null,null,null,42,null,{"$f":"G42+F42","v":1033.9000000000001}]
[null,null,null,null,42]
[null,null,null,null,32]
[null,null,null,null,32]
[null,null,null,null,{"$f":"SUM(E44:E47)","v":148}]

{"sheet":"Programme","index":16,"n_rows":32,"n_cols":7,"rows_kept":32,"cut":false,"hidden":false,"merged":[]}
["2023-12-29","\nVIREMENT EMIS MIREILLE ROCHE ASC 2023 Voyage",776,"Mireille ROCHE",{"$f":"VLOOKUP(D1,Plan!H4:I43,2,FALSE)","v":"15"},"Voyage","*"]
[]
[]
[]
[]
[null,null,null,"Retour Provision Eric CHARTON"]
[null,null,null,"Retour Provision Eric CHARTON"]
[null,null,null,"ASC Eric CHARTON"]
[null,null,null,"ASC Eric CHARTON"]
[null,null,null,"ASC Eric CHARTON"]
[null,null,null,"ASC Eric CHARTON"]
[]
[]
[]
[null,null,null,"Retour Provision Eric CHARTON"]
[null,null,null,"Retour Provision Eric CHARTON"]
[null,null,null,"ASC Eric CHARTON"]
[null,null,null,"ASC Eric CHARTON"]
[null,null,null,"ASC Eric CHARTON"]
[null,null,null,"ASC Eric CHARTON"]
[]
[]
[]
[]
[null,null,null,"Voyage"]
[null,null,null,"Culture"]
[null,null,null,"Garde enfants"]
[null,null,null,"Sport et loisirs"]
[null,null,null,"NOEL SALARIE"]
[null,null,null,"NOEL enfant1"]
[null,null,null,"NOEL enfant2"]
[null,null,null,"NOEL enfant 3"]